{"text_format":"1","workbook":"xlsx","n_sheets":14,"sheets":["Yearly Class Attendance","AUGUST","SEPTEMBER","OCTOBER","NOVEMBER","DECEMBER","JANUARY","FEBRUARY","MARCH","APRIL","MAY","JUNE","JULY","Sheet1"],"not_rendered":{"charts":0,"images":2,"macros":0,"external_links":0,"defined_names":13,"comments":0,"pivot_tables":0},"unopened":[],"bounds":{"document_bytes":16777216,"sheet_cells":100000,"rows_first":2000,"rows_last":500,"rows_between":2000,"halvings":0,"cell_chars":16384,"cell_head_chars":4096},"cells_cut":0,"cells_raw":0,"read":"whole","date_system":"1900"}

{"sheet":"Yearly Class Attendance","index":0,"n_rows":50,"n_cols":38,"rows_kept":50,"cut":false,"hidden":false,"merged":[[13,10,14,38],[6,1,6,2],[8,1,9,1],[2,17,2,28],[3,17,3,28],[5,17,5,28],[6,17,6,28],[8,8,9,37],[8,2,9,2],[8,3,8,6],[2,30,2,37],[3,30,3,36],[4,30,4,36],[5,30,5,36],[6,30,6,36],[2,4,2,15],[3,4,3,15],[5,4,5,15],[6,4,6,15],[2,1,2,2],[3,1,3,2],[5,1,5,2]]}
[null,"YEARLY CLASS ATTENDANCE SHEET"]
[]
[null,"SCHOOL NAME",null,null,"COURSE TITLE",null,null,null,null,null,null,null,null,null,null,null,null,"TIME / CLASS PERIOD",null,null,null,null,null,null,null,null,null,null,null,null,"KEY"]
[null,null,null,null,null,null,null,null,null,null,null,null,null,null,null,null,null,null,null,null,null,null,null,null,null,null,null,null,null,null,"PRESENT",null,null,null,null,null,null,"P"]
[null,null,null,null,null,null,null,null,null,null,null,null,null,null,null,null,null,null,null,null,null,null,null,null,null,null,null,null,null,null,"UNEXCUSED ABSENCE",null,null,null,null,null,null,"U"]
[null,"PROFESSOR NAME",null,null,"LOCATION",null,null,null,null,null,null,null,null,null,null,null,null,"SCHOOL YEAR",null,null,null,null,null,null,null,null,null,null,null,null,"EXCUSED ABSENCE",null,null,null,null,null,null,"E"]
[null,null,null,null,null,null,null,null,null,null,null,null,null,null,null,null,null,null,null,null,null,null,null,null,null,null,null,null,null,null,"TARDY",null,null,null,null,null,null,"T"]
[]
[null,"STUDENT NAME","STUDENT ID","TOTAL",null,null,null,null,"School Name, Course Title, Time / Class Period, Professor Name, Location, and \nStudent Names and ID Numbers entered on this sheet will automatically populate each monthly tab throughout the document. "]
[null,null,null,"P","U","E","T"]
[null,null,null,{"$f":"SUM(AUGUST!AI11,SEPTEMBER!AI11,OCTOBER!AI11,NOVEMBER!AI11,DECEMBER!AI11,JANUARY!AI11,FEBRUARY!AI11,MARCH!AI11,APRIL!AI11,MAY!AI11,JUNE!AI11,JULY!AI11)","v":0},{"$f":"SUM(AUGUST!AJ11,SEPTEMBER!AJ11,OCTOBER!AJ11,NOVEMBER!AJ11,DECEMBER!AJ11,JANUARY!AJ11,FEBRUARY!AJ11,MARCH!AJ11,APRIL!AJ11,MAY!AJ11,JUNE!AJ11,JULY!AJ11)","v":0},{"$f":"SUM(AUGUST!AK11,SEPTEMBER!AK11,OCTOBER!AK11,NOVEMBER!AK11,DECEMBER!AK11,JANUARY!AK11,FEBRUARY!AK11,MARCH!AK11,APRIL!AK11,MAY!AK11,JUNE!AK11,JULY!AK11)","v":0},{"$f":"SUM(AUGUST!AL11,SEPTEMBER!AL11,OCTOBER!AL11,NOVEMBER!AL11,DECEMBER!AL11,JANUARY!AL11,FEBRUARY!AL11,MARCH!AL11,APRIL!AL11,MAY!AL11,JUNE!AL11,JULY!AL11)","v":0}]
[null,null,null,{"$f":"SUM(AUGUST!AI12,SEPTEMBER!AI12,OCTOBER!AI12,NOVEMBER!AI12,DECEMBER!AI12,JANUARY!AI12,FEBRUARY!AI12,MARCH!AI12,APRIL!AI12,MAY!AI12,JUNE!AI12,JULY!AI12)","v":0},{"$f":"SUM(AUGUST!AJ12,SEPTEMBER!AJ12,OCTOBER!AJ12,NOVEMBER!AJ12,DECEMBER!AJ12,JANUARY!AJ12,FEBRUARY!AJ12,MARCH!AJ12,APRIL!AJ12,MAY!AJ12,JUNE!AJ12,JULY!AJ12)","v":0},{"$f":"SUM(AUGUST!AK12,SEPTEMBER!AK12,OCTOBER!AK12,NOVEMBER!AK12,DECEMBER!AK12,JANUARY!AK12,FEBRUARY!AK12,MARCH!AK12,APRIL!AK12,MAY!AK12,JUNE!AK12,JULY!AK12)","v":0},{"$f":"SUM(AUGUST!AL12,SEPTEMBER!AL12,OCTOBER!AL12,NOVEMBER!AL12,DECEMBER!AL12,JANUARY!AL12,FEBRUARY!AL12,MARCH!AL12,APRIL!AL12,MAY!AL12,JUNE!AL12,JULY!AL12)","v":0}]
[null,null,null,{"$f":"SUM(AUGUST!AI13,SEPTEMBER!AI13,OCTOBER!AI13,NOVEMBER!AI13,DECEMBER!AI13,JANUARY!AI13,FEBRUARY!AI13,MARCH!AI13,APRIL!AI13,MAY!AI13,JUNE!AI13,JULY!AI13)","v":0},{"$f":"SUM(AUGUST!AJ13,SEPTEMBER!AJ13,OCTOBER!AJ13,NOVEMBER!AJ13,DECEMBER!AJ13,JANUARY!AJ13,FEBRUARY!AJ13,MARCH!AJ13,APRIL!AJ13,MAY!AJ13,JUNE!AJ13,JULY!AJ13)","v":0},{"$f":"SUM(AUGUST!AK13,SEPTEMBER!AK13,OCTOBER!AK13,NOVEMBER!AK13,DECEMBER!AK13,JANUARY!AK13,FEBRUARY!AK13,MARCH!AK13,APRIL!AK13,MAY!AK13,JUNE!AK13,JULY!AK13)","v":0},{"$f":"SUM(AUGUST!AL13,SEPTEMBER!AL13,OCTOBER!AL13,NOVEMBER!AL13,DECEMBER!AL13,JANUARY!AL13,FEBRUARY!AL13,MARCH!AL13,APRIL!AL13,MAY!AL13,JUNE!AL13,JULY!AL13)","v":0}]
[null,null,null,{"$f":"SUM(AUGUST!AI14,SEPTEMBER!AI14,OCTOBER!AI14,NOVEMBER!AI14,DECEMBER!AI14,JANUARY!AI14,FEBRUARY!AI14,MARCH!AI14,APRIL!AI14,MAY!AI14,JUNE!AI14,JULY!AI14)","v":0},{"$f":"SUM(AUGUST!AJ14,SEPTEMBER!AJ14,OCTOBER!AJ14,NOVEMBER!AJ14,DECEMBER!AJ14,JANUARY!AJ14,FEBRUARY!AJ14,MARCH!AJ14,APRIL!AJ14,MAY!AJ14,JUNE!AJ14,JULY!AJ14)","v":0},{"$f":"SUM(AUGUST!AK14,SEPTEMBER!AK14,OCTOBER!AK14,NOVEMBER!AK14,DECEMBER!AK14,JANUARY!AK14,FEBRUARY!AK14,MARCH!AK14,APRIL!AK14,MAY!AK14,JUNE!AK14,JULY!AK14)","v":0},{"$f":"SUM(AUGUST!AL14,SEPTEMBER!AL14,OCTOBER!AL14,NOVEMBER!AL14,DECEMBER!AL14,JANUARY!AL14,FEBRUARY!AL14,MARCH!AL14,APRIL!AL14,MAY!AL14,JUNE!AL14,JULY!AL14)","v":0},null,null,null,"CLICK HERE TO CREATE YEARLY CLASS ATTENDANCE SHEET TEMPLATES IN SMARTSHEET"]
[null,null,null,{"$f":"SUM(AUGUST!AI15,SEPTEMBER!AI15,OCTOBER!AI15,NOVEMBER!AI15,DECEMBER!AI15,JANUARY!AI15,FEBRUARY!AI15,MARCH!AI15,APRIL!AI15,MAY!AI15,JUNE!AI15,JULY!AI15)","v":0},{"$f":"SUM(AUGUST!AJ15,SEPTEMBER!AJ15,OCTOBER!AJ15,NOVEMBER!AJ15,DECEMBER!AJ15,JANUARY!AJ15,FEBRUARY!AJ15,MARCH!AJ15,APRIL!AJ15,MAY!AJ15,JUNE!AJ15,JULY!AJ15)","v":0},{"$f":"SUM(AUGUST!AK15,SEPTEMBER!AK15,OCTOBER!AK15,NOVEMBER!AK15,DECEMBER!AK15,JANUARY!AK15,FEBRUARY!AK15,MARCH!AK15,APRIL!AK15,MAY!AK15,JUNE!AK15,JULY!AK15)","v":0},{"$f":"SUM(AUGUST!AL15,SEPTEMBER!AL15,OCTOBER!AL15,NOVEMBER!AL15,DECEMBER!AL15,JANUARY!AL15,FEBRUARY!AL15,MARCH!AL15,APRIL!AL15,MAY!AL15,JUNE!AL15,JULY!AL15)","v":0}]
[null,null,null,{"$f":"SUM(AUGUST!AI16,SEPTEMBER!AI16,OCTOBER!AI16,NOVEMBER!AI16,DECEMBER!AI16,JANUARY!AI16,FEBRUARY!AI16,MARCH!AI16,APRIL!AI16,MAY!AI16,JUNE!AI16,JULY!AI16)","v":0},{"$f":"SUM(AUGUST!AJ16,SEPTEMBER!AJ16,OCTOBER!AJ16,NOVEMBER!AJ16,DECEMBER!AJ16,JANUARY!AJ16,FEBRUARY!AJ16,MARCH!AJ16,APRIL!AJ16,MAY!AJ16,JUNE!AJ16,JULY!AJ16)","v":0},{"$f":"SUM(AUGUST!AK16,SEPTEMBER!AK16,OCTOBER!AK16,NOVEMBER!AK16,DECEMBER!AK16,JANUARY!AK16,FEBRUARY!AK16,MARCH!AK16,APRIL!AK16,MAY!AK16,JUNE!AK16,JULY!AK16)","v":0},{"$f":"SUM(AUGUST!AL16,SEPTEMBER!AL16,OCTOBER!AL16,NOVEMBER!AL16,DECEMBER!AL16,JANUARY!AL16,FEBRUARY!AL16,MARCH!AL16,APRIL!AL16,MAY!AL16,JUNE!AL16,JULY!AL16)","v":0}]
[null,null,null,{"$f":"SUM(AUGUST!AI17,SEPTEMBER!AI17,OCTOBER!AI17,NOVEMBER!AI17,DECEMBER!AI17,JANUARY!AI17,FEBRUARY!AI17,MARCH!AI17,APRIL!AI17,MAY!AI17,JUNE!AI17,JULY!AI17)","v":0},{"$f":"SUM(AUGUST!AJ17,SEPTEMBER!AJ17,OCTOBER!AJ17,NOVEMBER!AJ17,DECEMBER!AJ17,JANUARY!AJ17,FEBRUARY!AJ17,MARCH!AJ17,APRIL!AJ17,MAY!AJ17,JUNE!AJ17,JULY!AJ17)","v":0},{"$f":"SUM(AUGUST!AK17,SEPTEMBER!AK17,OCTOBER!AK17,NOVEMBER!AK17,DECEMBER!AK17,JANUARY!AK17,FEBRUARY!AK17,MARCH!AK17,APRIL!AK17,MAY!AK17,JUNE!AK17,JULY!AK17)","v":0},{"$f":"SUM(AUGUST!AL17,SEPTEMBER!AL17,OCTOBER!AL17,NOVEMBER!AL17,DECEMBER!AL17,JANUARY!AL17,FEBRUARY!AL17,MARCH!AL17,APRIL!AL17,MAY!AL17,JUNE!AL17,JULY!AL17)","v":0}]
[null,null,null,{"$f":"SUM(AUGUST!AI18,SEPTEMBER!AI18,OCTOBER!AI18,NOVEMBER!AI18,DECEMBER!AI18,JANUARY!AI18,FEBRUARY!AI18,MARCH!AI18,APRIL!AI18,MAY!AI18,JUNE!AI18,JULY!AI18)","v":0},{"$f":"SUM(AUGUST!AJ18,SEPTEMBER!AJ18,OCTOBER!AJ18,NOVEMBER!AJ18,DECEMBER!AJ18,JANUARY!AJ18,FEBRUARY!AJ18,MARCH!AJ18,APRIL!AJ18,MAY!AJ18,JUNE!AJ18,JULY!AJ18)","v":0},{"$f":"SUM(AUGUST!AK18,SEPTEMBER!AK18,OCTOBER!AK18,NOVEMBER!AK18,DECEMBER!AK18,JANUARY!AK18,FEBRUARY!AK18,MARCH!AK18,APRIL!AK18,MAY!AK18,JUNE!AK18,JULY!AK18)","v":0},{"$f":"SUM(AUGUST!AL18,SEPTEMBER!AL18,OCTOBER!AL18,NOVEMBER!AL18,DECEMBER!AL18,JANUARY!AL18,FEBRUARY!AL18,MARCH!AL18,APRIL!AL18,MAY!AL18,JUNE!AL18,JULY!AL18)","v":0}]
[null,null,null,{"$f":"SUM(AUGUST!AI19,SEPTEMBER!AI19,OCTOBER!AI19,NOVEMBER!AI19,DECEMBER!AI19,JANUARY!AI19,FEBRUARY!AI19,MARCH!AI19,APRIL!AI19,MAY!AI19,JUNE!AI19,JULY!AI19)","v":0},{"$f":"SUM(AUGUST!AJ19,SEPTEMBER!AJ19,OCTOBER!AJ19,NOVEMBER!AJ19,DECEMBER!AJ19,JANUARY!AJ19,FEBRUARY!AJ19,MARCH!AJ19,APRIL!AJ19,MAY!AJ19,JUNE!AJ19,JULY!AJ19)","v":0},{"$f":"SUM(AUGUST!AK19,SEPTEMBER!AK19,OCTOBER!AK19,NOVEMBER!AK19,DECEMBER!AK19,JANUARY!AK19,FEBRUARY!AK19,MARCH!AK19,APRIL!AK19,MAY!AK19,JUNE!AK19,JULY!AK19)","v":0},{"$f":"SUM(AUGUST!AL19,SEPTEMBER!AL19,OCTOBER!AL19,NOVEMBER!AL19,DECEMBER!AL19,JANUARY!AL19,FEBRUARY!AL19,MARCH!AL19,APRIL!AL19,MAY!AL19,JUNE!AL19,JULY!AL19)","v":0}]
[null,null,null,{"$f":"SUM(AUGUST!AI20,SEPTEMBER!AI20,OCTOBER!AI20,NOVEMBER!AI20,DECEMBER!AI20,JANUARY!AI20,FEBRUARY!AI20,MARCH!AI20,APRIL!AI20,MAY!AI20,JUNE!AI20,JULY!AI20)","v":0},{"$f":"SUM(AUGUST!AJ20,SEPTEMBER!AJ20,OCTOBER!AJ20,NOVEMBER!AJ20,DECEMBER!AJ20,JANUARY!AJ20,FEBRUARY!AJ20,MARCH!AJ20,APRIL!AJ20,MAY!AJ20,JUNE!AJ20,JULY!AJ20)","v":0},{"$f":"SUM(AUGUST!AK20,SEPTEMBER!AK20,OCTOBER!AK20,NOVEMBER!AK20,DECEMBER!AK20,JANUARY!AK20,FEBRUARY!AK20,MARCH!AK20,APRIL!AK20,MAY!AK20,JUNE!AK20,JULY!AK20)","v":0},{"$f":"SUM(AUGUST!AL20,SEPTEMBER!AL20,OCTOBER!AL20,NOVEMBER!AL20,DECEMBER!AL20,JANUARY!AL20,FEBRUARY!AL20,MARCH!AL20,APRIL!AL20,MAY!AL20,JUNE!AL20,JULY!AL20)","v":0}]
[null,null,null,{"$f":"SUM(AUGUST!AI21,SEPTEMBER!AI21,OCTOBER!AI21,NOVEMBER!AI21,DECEMBER!AI21,JANUARY!AI21,FEBRUARY!AI21,MARCH!AI21,APRIL!AI21,MAY!AI21,JUNE!AI21,JULY!AI21)","v":0},{"$f":"SUM(AUGUST!AJ21,SEPTEMBER!AJ21,OCTOBER!AJ21,NOVEMBER!AJ21,DECEMBER!AJ21,JANUARY!AJ21,FEBRUARY!AJ21,MARCH!AJ21,APRIL!AJ21,MAY!AJ21,JUNE!AJ21,JULY!AJ21)","v":0},{"$f":"SUM(AUGUST!AK21,SEPTEMBER!AK21,OCTOBER!AK21,NOVEMBER!AK21,DECEMBER!AK21,JANUARY!AK21,FEBRUARY!AK21,MARCH!AK21,APRIL!AK21,MAY!AK21,JUNE!AK21,JULY!AK21)","v":0},{"$f":"SUM(AUGUST!AL21,SEPTEMBER!AL21,OCTOBER!AL21,NOVEMBER!AL21,DECEMBER!AL21,JANUARY!AL21,FEBRUARY!AL21,MARCH!AL21,APRIL!AL21,MAY!AL21,JUNE!AL21,JULY!AL21)","v":0}]
[null,null,null,{"$f":"SUM(AUGUST!AI22,SEPTEMBER!AI22,OCTOBER!AI22,NOVEMBER!AI22,DECEMBER!AI22,JANUARY!AI22,FEBRUARY!AI22,MARCH!AI22,APRIL!AI22,MAY!AI22,JUNE!AI22,JULY!AI22)","v":0},{"$f":"SUM(AUGUST!AJ22,SEPTEMBER!AJ22,OCTOBER!AJ22,NOVEMBER!AJ22,DECEMBER!AJ22,JANUARY!AJ22,FEBRUARY!AJ22,MARCH!AJ22,APRIL!AJ22,MAY!AJ22,JUNE!AJ22,JULY!AJ22)","v":0},{"$f":"SUM(AUGUST!AK22,SEPTEMBER!AK22,OCTOBER!AK22,NOVEMBER!AK22,DECEMBER!AK22,JANUARY!AK22,FEBRUARY!AK22,MARCH!AK22,APRIL!AK22,MAY!AK22,JUNE!AK22,JULY!AK22)","v":0},{"$f":"SUM(AUGUST!AL22,SEPTEMBER!AL22,OCTOBER!AL22,NOVEMBER!AL22,DECEMBER!AL22,JANUARY!AL22,FEBRUARY!AL22,MARCH!AL22,APRIL!AL22,MAY!AL22,JUNE!AL22,JULY!AL22)","v":0}]
[null,null,null,{"$f":"SUM(AUGUST!AI23,SEPTEMBER!AI23,OCTOBER!AI23,NOVEMBER!AI23,DECEMBER!AI23,JANUARY!AI23,FEBRUARY!AI23,MARCH!AI23,APRIL!AI23,MAY!AI23,JUNE!AI23,JULY!AI23)","v":0},{"$f":"SUM(AUGUST!AJ23,SEPTEMBER!AJ23,OCTOBER!AJ23,NOVEMBER!AJ23,DECEMBER!AJ23,JANUARY!AJ23,FEBRUARY!AJ23,MARCH!AJ23,APRIL!AJ23,MAY!AJ23,JUNE!AJ23,JULY!AJ23)","v":0},{"$f":"SUM(AUGUST!AK23,SEPTEMBER!AK23,OCTOBER!AK23,NOVEMBER!AK23,DECEMBER!AK23,JANUARY!AK23,FEBRUARY!AK23,MARCH!AK23,APRIL!AK23,MAY!AK23,JUNE!AK23,JULY!AK23)","v":0},{"$f":"SUM(AUGUST!AL23,SEPTEMBER!AL23,OCTOBER!AL23,NOVEMBER!AL23,DECEMBER!AL23,JANUARY!AL23,FEBRUARY!AL23,MARCH!AL23,APRIL!AL23,MAY!AL23,JUNE!AL23,JULY!AL23)","v":0}]
[null,null,null,{"$f":"SUM(AUGUST!AI24,SEPTEMBER!AI24,OCTOBER!AI24,NOVEMBER!AI24,DECEMBER!AI24,JANUARY!AI24,FEBRUARY!AI24,MARCH!AI24,APRIL!AI24,MAY!AI24,JUNE!AI24,JULY!AI24)","v":0},{"$f":"SUM(AUGUST!AJ24,SEPTEMBER!AJ24,OCTOBER!AJ24,NOVEMBER!AJ24,DECEMBER!AJ24,JANUARY!AJ24,FEBRUARY!AJ24,MARCH!AJ24,APRIL!AJ24,MAY!AJ24,JUNE!AJ24,JULY!AJ24)","v":0},{"$f":"SUM(AUGUST!AK24,SEPTEMBER!AK24,OCTOBER!AK24,NOVEMBER!AK24,DECEMBER!AK24,JANUARY!AK24,FEBRUARY!AK24,MARCH!AK24,APRIL!AK24,MAY!AK24,JUNE!AK24,JULY!AK24)","v":0},{"$f":"SUM(AUGUST!AL24,SEPTEMBER!AL24,OCTOBER!AL24,NOVEMBER!AL24,DECEMBER!AL24,JANUARY!AL24,FEBRUARY!AL24,MARCH!AL24,APRIL!AL24,MAY!AL24,JUNE!AL24,JULY!AL24)","v":0}]
[null,null,null,{"$f":"SUM(AUGUST!AI25,SEPTEMBER!AI25,OCTOBER!AI25,NOVEMBER!AI25,DECEMBER!AI25,JANUARY!AI25,FEBRUARY!AI25,MARCH!AI25,APRIL!AI25,MAY!AI25,JUNE!AI25,JULY!AI25)","v":0},{"$f":"SUM(AUGUST!AJ25,SEPTEMBER!AJ25,OCTOBER!AJ25,NOVEMBER!AJ25,DECEMBER!AJ25,JANUARY!AJ25,FEBRUARY!AJ25,MARCH!AJ25,APRIL!AJ25,MAY!AJ25,JUNE!AJ25,JULY!AJ25)","v":0},{"$f":"SUM(AUGUST!AK25,SEPTEMBER!AK25,OCTOBER!AK25,NOVEMBER!AK25,DECEMBER!AK25,JANUARY!AK25,FEBRUARY!AK25,MARCH!AK25,APRIL!AK25,MAY!AK25,JUNE!AK25,JULY!AK25)","v":0},{"$f":"SUM(AUGUST!AL25,SEPTEMBER!AL25,OCTOBER!AL25,NOVEMBER!AL25,DECEMBER!AL25,JANUARY!AL25,FEBRUARY!AL25,MARCH!AL25,APRIL!AL25,MAY!AL25,JUNE!AL25,JULY!AL25)","v":0}]
[null,null,null,{"$f":"SUM(AUGUST!AI26,SEPTEMBER!AI26,OCTOBER!AI26,NOVEMBER!AI26,DECEMBER!AI26,JANUARY!AI26,FEBRUARY!AI26,MARCH!AI26,APRIL!AI26,MAY!AI26,JUNE!AI26,JULY!AI26)","v":0},{"$f":"SUM(AUGUST!AJ26,SEPTEMBER!AJ26,OCTOBER!AJ26,NOVEMBER!AJ26,DECEMBER!AJ26,JANUARY!AJ26,FEBRUARY!AJ26,MARCH!AJ26,APRIL!AJ26,MAY!AJ26,JUNE!AJ26,JULY!AJ26)","v":0},{"$f":"SUM(AUGUST!AK26,SEPTEMBER!AK26,OCTOBER!AK26,NOVEMBER!AK26,DECEMBER!AK26,JANUARY!AK26,FEBRUARY!AK26,MARCH!AK26,APRIL!AK26,MAY!AK26,JUNE!AK26,JULY!AK26)","v":0},{"$f":"SUM(AUGUST!AL26,SEPTEMBER!AL26,OCTOBER!AL26,NOVEMBER!AL26,DECEMBER!AL26,JANUARY!AL26,FEBRUARY!AL26,MARCH!AL26,APRIL!AL26,MAY!AL26,JUNE!AL26,JULY!AL26)","v":0}]
[null,null,null,{"$f":"SUM(AUGUST!AI27,SEPTEMBER!AI27,OCTOBER!AI27,NOVEMBER!AI27,DECEMBER!AI27,JANUARY!AI27,FEBRUARY!AI27,MARCH!AI27,APRIL!AI27,MAY!AI27,JUNE!AI27,JULY!AI27)","v":0},{"$f":"SUM(AUGUST!AJ27,SEPTEMBER!AJ27,OCTOBER!AJ27,NOVEMBER!AJ27,DECEMBER!AJ27,JANUARY!AJ27,FEBRUARY!AJ27,MARCH!AJ27,APRIL!AJ27,MAY!AJ27,JUNE!AJ27,JULY!AJ27)","v":0},{"$f":"SUM(AUGUST!AK27,SEPTEMBER!AK27,OCTOBER!AK27,NOVEMBER!AK27,DECEMBER!AK27,JANUARY!AK27,FEBRUARY!AK27,MARCH!AK27,APRIL!AK27,MAY!AK27,JUNE!AK27,JULY!AK27)","v":0},{"$f":"SUM(AUGUST!AL27,SEPTEMBER!AL27,OCTOBER!AL27,NOVEMBER!AL27,DECEMBER!AL27,JANUARY!AL27,FEBRUARY!AL27,MARCH!AL27,APRIL!AL27,MAY!AL27,JUNE!AL27,JULY!AL27)","v":0}]
[null,null,null,{"$f":"SUM(AUGUST!AI28,SEPTEMBER!AI28,OCTOBER!AI28,NOVEMBER!AI28,DECEMBER!AI28,JANUARY!AI28,FEBRUARY!AI28,MARCH!AI28,APRIL!AI28,MAY!AI28,JUNE!AI28,JULY!AI28)","v":0},{"$f":"SUM(AUGUST!AJ28,SEPTEMBER!AJ28,OCTOBER!AJ28,NOVEMBER!AJ28,DECEMBER!AJ28,JANUARY!AJ28,FEBRUARY!AJ28,MARCH!AJ28,APRIL!AJ28,MAY!AJ28,JUNE!AJ28,JULY!AJ28)","v":0},{"$f":"SUM(AUGUST!AK28,SEPTEMBER!AK28,OCTOBER!AK28,NOVEMBER!AK28,DECEMBER!AK28,JANUARY!AK28,FEBRUARY!AK28,MARCH!AK28,APRIL!AK28,MAY!AK28,JUNE!AK28,JULY!AK28)","v":0},{"$f":"SUM(AUGUST!AL28,SEPTEMBER!AL28,OCTOBER!AL28,NOVEMBER!AL28,DECEMBER!AL28,JANUARY!AL28,FEBRUARY!AL28,MARCH!AL28,APRIL!AL28,MAY!AL28,JUNE!AL28,JULY!AL28)","v":0}]
[null,null,null,{"$f":"SUM(AUGUST!AI29,SEPTEMBER!AI29,OCTOBER!AI29,NOVEMBER!AI29,DECEMBER!AI29,JANUARY!AI29,FEBRUARY!AI29,MARCH!AI29,APRIL!AI29,MAY!AI29,JUNE!AI29,JULY!AI29)","v":0},{"$f":"SUM(AUGUST!AJ29,SEPTEMBER!AJ29,OCTOBER!AJ29,NOVEMBER!AJ29,DECEMBER!AJ29,JANUARY!AJ29,FEBRUARY!AJ29,MARCH!AJ29,APRIL!AJ29,MAY!AJ29,JUNE!AJ29,JULY!AJ29)","v":0},{"$f":"SUM(AUGUST!AK29,SEPTEMBER!AK29,OCTOBER!AK29,NOVEMBER!AK29,DECEMBER!AK29,JANUARY!AK29,FEBRUARY!AK29,MARCH!AK29,APRIL!AK29,MAY!AK29,JUNE!AK29,JULY!AK29)","v":0},{"$f":"SUM(AUGUST!AL29,SEPTEMBER!AL29,OCTOBER!AL29,NOVEMBER!AL29,DECEMBER!AL29,JANUARY!AL29,FEBRUARY!AL29,MARCH!AL29,APRIL!AL29,MAY!AL29,JUNE!AL29,JULY!AL29)","v":0}]
[null,null,null,{"$f":"SUM(AUGUST!AI30,SEPTEMBER!AI30,OCTOBER!AI30,NOVEMBER!AI30,DECEMBER!AI30,JANUARY!AI30,FEBRUARY!AI30,MARCH!AI30,APRIL!AI30,MAY!AI30,JUNE!AI30,JULY!AI30)","v":0},{"$f":"SUM(AUGUST!AJ30,SEPTEMBER!AJ30,OCTOBER!AJ30,NOVEMBER!AJ30,DECEMBER!AJ30,JANUARY!AJ30,FEBRUARY!AJ30,MARCH!AJ30,APRIL!AJ30,MAY!AJ30,JUNE!AJ30,JULY!AJ30)","v":0},{"$f":"SUM(AUGUST!AK30,SEPTEMBER!AK30,OCTOBER!AK30,NOVEMBER!AK30,DECEMBER!AK30,JANUARY!AK30,FEBRUARY!AK30,MARCH!AK30,APRIL!AK30,MAY!AK30,JUNE!AK30,JULY!AK30)","v":0},{"$f":"SUM(AUGUST!AL30,SEPTEMBER!AL30,OCTOBER!AL30,NOVEMBER!AL30,DECEMBER!AL30,JANUARY!AL30,FEBRUARY!AL30,MARCH!AL30,APRIL!AL30,MAY!AL30,JUNE!AL30,JULY!AL30)","v":0}]
[null,null,null,{"$f":"SUM(AUGUST!AI31,SEPTEMBER!AI31,OCTOBER!AI31,NOVEMBER!AI31,DECEMBER!AI31,JANUARY!AI31,FEBRUARY!AI31,MARCH!AI31,APRIL!AI31,MAY!AI31,JUNE!AI31,JULY!AI31)","v":0},{"$f":"SUM(AUGUST!AJ31,SEPTEMBER!AJ31,OCTOBER!AJ31,NOVEMBER!AJ31,DECEMBER!AJ31,JANUARY!AJ31,FEBRUARY!AJ31,MARCH!AJ31,APRIL!AJ31,MAY!AJ31,JUNE!AJ31,JULY!AJ31)","v":0},{"$f":"SUM(AUGUST!AK31,SEPTEMBER!AK31,OCTOBER!AK31,NOVEMBER!AK31,DECEMBER!AK31,JANUARY!AK31,FEBRUARY!AK31,MARCH!AK31,APRIL!AK31,MAY!AK31,JUNE!AK31,JULY!AK31)","v":0},{"$f":"SUM(AUGUST!AL31,SEPTEMBER!AL31,OCTOBER!AL31,NOVEMBER!AL31,DECEMBER!AL31,JANUARY!AL31,FEBRUARY!AL31,MARCH!AL31,APRIL!AL31,MAY!AL31,JUNE!AL31,JULY!AL31)","v":0}]
[null,null,null,{"$f":"SUM(AUGUST!AI32,SEPTEMBER!AI32,OCTOBER!AI32,NOVEMBER!AI32,DECEMBER!AI32,JANUARY!AI32,FEBRUARY!AI32,MARCH!AI32,APRIL!AI32,MAY!AI32,JUNE!AI32,JULY!AI32)","v":0},{"$f":"SUM(AUGUST!AJ32,SEPTEMBER!AJ32,OCTOBER!AJ32,NOVEMBER!AJ32,DECEMBER!AJ32,JANUARY!AJ32,FEBRUARY!AJ32,MARCH!AJ32,APRIL!AJ32,MAY!AJ32,JUNE!AJ32,JULY!AJ32)","v":0},{"$f":"SUM(AUGUST!AK32,SEPTEMBER!AK32,OCTOBER!AK32,NOVEMBER!AK32,DECEMBER!AK32,JANUARY!AK32,FEBRUARY!AK32,MARCH!AK32,APRIL!AK32,MAY!AK32,JUNE!AK32,JULY!AK32)","v":0},{"$f":"SUM(AUGUST!AL32,SEPTEMBER!AL32,OCTOBER!AL32,NOVEMBER!AL32,DECEMBER!AL32,JANUARY!AL32,FEBRUARY!AL32,MARCH!AL32,APRIL!AL32,MAY!AL32,JUNE!AL32,JULY!AL32)","v":0}]
[null,null,null,{"$f":"SUM(AUGUST!AI33,SEPTEMBER!AI33,OCTOBER!AI33,NOVEMBER!AI33,DECEMBER!AI33,JANUARY!AI33,FEBRUARY!AI33,MARCH!AI33,APRIL!AI33,MAY!AI33,JUNE!AI33,JULY!AI33)","v":0},{"$f":"SUM(AUGUST!AJ33,SEPTEMBER!AJ33,OCTOBER!AJ33,NOVEMBER!AJ33,DECEMBER!AJ33,JANUARY!AJ33,FEBRUARY!AJ33,MARCH!AJ33,APRIL!AJ33,MAY!AJ33,JUNE!AJ33,JULY!AJ33)","v":0},{"$f":"SUM(AUGUST!AK33,SEPTEMBER!AK33,OCTOBER!AK33,NOVEMBER!AK33,DECEMBER!AK33,JANUARY!AK33,FEBRUARY!AK33,MARCH!AK33,APRIL!AK33,MAY!AK33,JUNE!AK33,JULY!AK33)","v":0},{"$f":"SUM(AUGUST!AL33,SEPTEMBER!AL33,OCTOBER!AL33,NOVEMBER!AL33,DECEMBER!AL33,JANUARY!AL33,FEBRUARY!AL33,MARCH!AL33,APRIL!AL33,MAY!AL33,JUNE!AL33,JULY!AL33)","v":0}]
[null,null,null,{"$f":"SUM(AUGUST!AI34,SEPTEMBER!AI34,OCTOBER!AI34,NOVEMBER!AI34,DECEMBER!AI34,JANUARY!AI34,FEBRUARY!AI34,MARCH!AI34,APRIL!AI34,MAY!AI34,JUNE!AI34,JULY!AI34)","v":0},{"$f":"SUM(AUGUST!AJ34,SEPTEMBER!AJ34,OCTOBER!AJ34,NOVEMBER!AJ34,DECEMBER!AJ34,JANUARY!AJ34,FEBRUARY!AJ34,MARCH!AJ34,APRIL!AJ34,MAY!AJ34,JUNE!AJ34,JULY!AJ34)","v":0},{"$f":"SUM(AUGUST!AK34,SEPTEMBER!AK34,OCTOBER!AK34,NOVEMBER!AK34,DECEMBER!AK34,JANUARY!AK34,FEBRUARY!AK34,MARCH!AK34,APRIL!AK34,MAY!AK34,JUNE!AK34,JULY!AK34)","v":0},{"$f":"SUM(AUGUST!AL34,SEPTEMBER!AL34,OCTOBER!AL34,NOVEMBER!AL34,DECEMBER!AL34,JANUARY!AL34,FEBRUARY!AL34,MARCH!AL34,APRIL!AL34,MAY!AL34,JUNE!AL34,JULY!AL34)","v":0}]
[null,null,null,{"$f":"SUM(AUGUST!AI35,SEPTEMBER!AI35,OCTOBER!AI35,NOVEMBER!AI35,DECEMBER!AI35,JANUARY!AI35,FEBRUARY!AI35,MARCH!AI35,APRIL!AI35,MAY!AI35,JUNE!AI35,JULY!AI35)","v":0},{"$f":"SUM(AUGUST!AJ35,SEPTEMBER!AJ35,OCTOBER!AJ35,NOVEMBER!AJ35,DECEMBER!AJ35,JANUARY!AJ35,FEBRUARY!AJ35,MARCH!AJ35,APRIL!AJ35,MAY!AJ35,JUNE!AJ35,JULY!AJ35)","v":0},{"$f":"SUM(AUGUST!AK35,SEPTEMBER!AK35,OCTOBER!AK35,NOVEMBER!AK35,DECEMBER!AK35,JANUARY!AK35,FEBRUARY!AK35,MARCH!AK35,APRIL!AK35,MAY!AK35,JUNE!AK35,JULY!AK35)","v":0},{"$f":"SUM(AUGUST!AL35,SEPTEMBER!AL35,OCTOBER!AL35,NOVEMBER!AL35,DECEMBER!AL35,JANUARY!AL35,FEBRUARY!AL35,MARCH!AL35,APRIL!AL35,MAY!AL35,JUNE!AL35,JULY!AL35)","v":0}]
[null,null,null,{"$f":"SUM(AUGUST!AI36,SEPTEMBER!AI36,OCTOBER!AI36,NOVEMBER!AI36,DECEMBER!AI36,JANUARY!AI36,FEBRUARY!AI36,MARCH!AI36,APRIL!AI36,MAY!AI36,JUNE!AI36,JULY!AI36)","v":0},{"$f":"SUM(AUGUST!AJ36,SEPTEMBER!AJ36,OCTOBER!AJ36,NOVEMBER!AJ36,DECEMBER!AJ36,JANUARY!AJ36,FEBRUARY!AJ36,MARCH!AJ36,APRIL!AJ36,MAY!AJ36,JUNE!AJ36,JULY!AJ36)","v":0},{"$f":"SUM(AUGUST!AK36,SEPTEMBER!AK36,OCTOBER!AK36,NOVEMBER!AK36,DECEMBER!AK36,JANUARY!AK36,FEBRUARY!AK36,MARCH!AK36,APRIL!AK36,MAY!AK36,JUNE!AK36,JULY!AK36)","v":0},{"$f":"SUM(AUGUST!AL36,SEPTEMBER!AL36,OCTOBER!AL36,NOVEMBER!AL36,DECEMBER!AL36,JANUARY!AL36,FEBRUARY!AL36,MARCH!AL36,APRIL!AL36,MAY!AL36,JUNE!AL36,JULY!AL36)","v":0}]
[null,null,null,{"$f":"SUM(AUGUST!AI37,SEPTEMBER!AI37,OCTOBER!AI37,NOVEMBER!AI37,DECEMBER!AI37,JANUARY!AI37,FEBRUARY!AI37,MARCH!AI37,APRIL!AI37,MAY!AI37,JUNE!AI37,JULY!AI37)","v":0},{"$f":"SUM(AUGUST!AJ37,SEPTEMBER!AJ37,OCTOBER!AJ37,NOVEMBER!AJ37,DECEMBER!AJ37,JANUARY!AJ37,FEBRUARY!AJ37,MARCH!AJ37,APRIL!AJ37,MAY!AJ37,JUNE!AJ37,JULY!AJ37)","v":0},{"$f":"SUM(AUGUST!AK37,SEPTEMBER!AK37,OCTOBER!AK37,NOVEMBER!AK37,DECEMBER!AK37,JANUARY!AK37,FEBRUARY!AK37,MARCH!AK37,APRIL!AK37,MAY!AK37,JUNE!AK37,JULY!AK37)","v":0},{"$f":"SUM(AUGUST!AL37,SEPTEMBER!AL37,OCTOBER!AL37,NOVEMBER!AL37,DECEMBER!AL37,JANUARY!AL37,FEBRUARY!AL37,MARCH!AL37,APRIL!AL37,MAY!AL37,JUNE!AL37,JULY!AL37)","v":0}]
[null,null,null,{"$f":"SUM(AUGUST!AI38,SEPTEMBER!AI38,OCTOBER!AI38,NOVEMBER!AI38,DECEMBER!AI38,JANUARY!AI38,FEBRUARY!AI38,MARCH!AI38,APRIL!AI38,MAY!AI38,JUNE!AI38,JULY!AI38)","v":0},{"$f":"SUM(AUGUST!AJ38,SEPTEMBER!AJ38,OCTOBER!AJ38,NOVEMBER!AJ38,DECEMBER!AJ38,JANUARY!AJ38,FEBRUARY!AJ38,MARCH!AJ38,APRIL!AJ38,MAY!AJ38,JUNE!AJ38,JULY!AJ38)","v":0},{"$f":"SUM(AUGUST!AK38,SEPTEMBER!AK38,OCTOBER!AK38,NOVEMBER!AK38,DECEMBER!AK38,JANUARY!AK38,FEBRUARY!AK38,MARCH!AK38,APRIL!AK38,MAY!AK38,JUNE!AK38,JULY!AK38)","v":0},{"$f":"SUM(AUGUST!AL38,SEPTEMBER!AL38,OCTOBER!AL38,NOVEMBER!AL38,DECEMBER!AL38,JANUARY!AL38,FEBRUARY!AL38,MARCH!AL38,APRIL!AL38,MAY!AL38,JUNE!AL38,JULY!AL38)","v":0}]
[null,null,null,{"$f":"SUM(AUGUST!AI39,SEPTEMBER!AI39,OCTOBER!AI39,NOVEMBER!AI39,DECEMBER!AI39,JANUARY!AI39,FEBRUARY!AI39,MARCH!AI39,APRIL!AI39,MAY!AI39,JUNE!AI39,JULY!AI39)","v":0},{"$f":"SUM(AUGUST!AJ39,SEPTEMBER!AJ39,OCTOBER!AJ39,NOVEMBER!AJ39,DECEMBER!AJ39,JANUARY!AJ39,FEBRUARY!AJ39,MARCH!AJ39,APRIL!AJ39,MAY!AJ39,JUNE!AJ39,JULY!AJ39)","v":0},{"$f":"SUM(AUGUST!AK39,SEPTEMBER!AK39,OCTOBER!AK39,NOVEMBER!AK39,DECEMBER!AK39,JANUARY!AK39,FEBRUARY!AK39,MARCH!AK39,APRIL!AK39,MAY!AK39,JUNE!AK39,JULY!AK39)","v":0},{"$f":"SUM(AUGUST!AL39,SEPTEMBER!AL39,OCTOBER!AL39,NOVEMBER!AL39,DECEMBER!AL39,JANUARY!AL39,FEBRUARY!AL39,MARCH!AL39,APRIL!AL39,MAY!AL39,JUNE!AL39,JULY!AL39)","v":0}]
[null,null,null,{"$f":"SUM(AUGUST!AI40,SEPTEMBER!AI40,OCTOBER!AI40,NOVEMBER!AI40,DECEMBER!AI40,JANUARY!AI40,FEBRUARY!AI40,MARCH!AI40,APRIL!AI40,MAY!AI40,JUNE!AI40,JULY!AI40)","v":0},{"$f":"SUM(AUGUST!AJ40,SEPTEMBER!AJ40,OCTOBER!AJ40,NOVEMBER!AJ40,DECEMBER!AJ40,JANUARY!AJ40,FEBRUARY!AJ40,MARCH!AJ40,APRIL!AJ40,MAY!AJ40,JUNE!AJ40,JULY!AJ40)","v":0},{"$f":"SUM(AUGUST!AK40,SEPTEMBER!AK40,OCTOBER!AK40,NOVEMBER!AK40,DECEMBER!AK40,JANUARY!AK40,FEBRUARY!AK40,MARCH!AK40,APRIL!AK40,MAY!AK40,JUNE!AK40,JULY!AK40)","v":0},{"$f":"SUM(AUGUST!AL40,SEPTEMBER!AL40,OCTOBER!AL40,NOVEMBER!AL40,DECEMBER!AL40,JANUARY!AL40,FEBRUARY!AL40,MARCH!AL40,APRIL!AL40,MAY!AL40,JUNE!AL40,JULY!AL40)","v":0}]
[null,null,null,{"$f":"SUM(AUGUST!AI41,SEPTEMBER!AI41,OCTOBER!AI41,NOVEMBER!AI41,DECEMBER!AI41,JANUARY!AI41,FEBRUARY!AI41,MARCH!AI41,APRIL!AI41,MAY!AI41,JUNE!AI41,JULY!AI41)","v":0},{"$f":"SUM(AUGUST!AJ41,SEPTEMBER!AJ41,OCTOBER!AJ41,NOVEMBER!AJ41,DECEMBER!AJ41,JANUARY!AJ41,FEBRUARY!AJ41,MARCH!AJ41,APRIL!AJ41,MAY!AJ41,JUNE!AJ41,JULY!AJ41)","v":0},{"$f":"SUM(AUGUST!AK41,SEPTEMBER!AK41,OCTOBER!AK41,NOVEMBER!AK41,DECEMBER!AK41,JANUARY!AK41,FEBRUARY!AK41,MARCH!AK41,APRIL!AK41,MAY!AK41,JUNE!AK41,JULY!AK41)","v":0},{"$f":"SUM(AUGUST!AL41,SEPTEMBER!AL41,OCTOBER!AL41,NOVEMBER!AL41,DECEMBER!AL41,JANUARY!AL41,FEBRUARY!AL41,MARCH!AL41,APRIL!AL41,MAY!AL41,JUNE!AL41,JULY!AL41)","v":0}]
[null,null,null,{"$f":"SUM(AUGUST!AI42,SEPTEMBER!AI42,OCTOBER!AI42,NOVEMBER!AI42,DECEMBER!AI42,JANUARY!AI42,FEBRUARY!AI42,MARCH!AI42,APRIL!AI42,MAY!AI42,JUNE!AI42,JULY!AI42)","v":0},{"$f":"SUM(AUGUST!AJ42,SEPTEMBER!AJ42,OCTOBER!AJ42,NOVEMBER!AJ42,DECEMBER!AJ42,JANUARY!AJ42,FEBRUARY!AJ42,MARCH!AJ42,APRIL!AJ42,MAY!AJ42,JUNE!AJ42,JULY!AJ42)","v":0},{"$f":"SUM(AUGUST!AK42,SEPTEMBER!AK42,OCTOBER!AK42,NOVEMBER!AK42,DECEMBER!AK42,JANUARY!AK42,FEBRUARY!AK42,MARCH!AK42,APRIL!AK42,MAY!AK42,JUNE!AK42,JULY!AK42)","v":0},{"$f":"SUM(AUGUST!AL42,SEPTEMBER!AL42,OCTOBER!AL42,NOVEMBER!AL42,DECEMBER!AL42,JANUARY!AL42,FEBRUARY!AL42,MARCH!AL42,APRIL!AL42,MAY!AL42,JUNE!AL42,JULY!AL42)","v":0}]
[null,null,null,{"$f":"SUM(AUGUST!AI43,SEPTEMBER!AI43,OCTOBER!AI43,NOVEMBER!AI43,DECEMBER!AI43,JANUARY!AI43,FEBRUARY!AI43,MARCH!AI43,APRIL!AI43,MAY!AI43,JUNE!AI43,JULY!AI43)","v":0},{"$f":"SUM(AUGUST!AJ43,SEPTEMBER!AJ43,OCTOBER!AJ43,NOVEMBER!AJ43,DECEMBER!AJ43,JANUARY!AJ43,FEBRUARY!AJ43,MARCH!AJ43,APRIL!AJ43,MAY!AJ43,JUNE!AJ43,JULY!AJ43)","v":0},{"$f":"SUM(AUGUST!AK43,SEPTEMBER!AK43,OCTOBER!AK43,NOVEMBER!AK43,DECEMBER!AK43,JANUARY!AK43,FEBRUARY!AK43,MARCH!AK43,APRIL!AK43,MAY!AK43,JUNE!AK43,JULY!AK43)","v":0},{"$f":"SUM(AUGUST!AL43,SEPTEMBER!AL43,OCTOBER!AL43,NOVEMBER!AL43,DECEMBER!AL43,JANUARY!AL43,FEBRUARY!AL43,MARCH!AL43,APRIL!AL43,MAY!AL43,JUNE!AL43,JULY!AL43)","v":0}]
[null,null,null,{"$f":"SUM(AUGUST!AI44,SEPTEMBER!AI44,OCTOBER!AI44,NOVEMBER!AI44,DECEMBER!AI44,JANUARY!AI44,FEBRUARY!AI44,MARCH!AI44,APRIL!AI44,MAY!AI44,JUNE!AI44,JULY!AI44)","v":0},{"$f":"SUM(AUGUST!AJ44,SEPTEMBER!AJ44,OCTOBER!AJ44,NOVEMBER!AJ44,DECEMBER!AJ44,JANUARY!AJ44,FEBRUARY!AJ44,MARCH!AJ44,APRIL!AJ44,MAY!AJ44,JUNE!AJ44,JULY!AJ44)","v":0},{"$f":"SUM(AUGUST!AK44,SEPTEMBER!AK44,OCTOBER!AK44,NOVEMBER!AK44,DECEMBER!AK44,JANUARY!AK44,FEBRUARY!AK44,MARCH!AK44,APRIL!AK44,MAY!AK44,JUNE!AK44,JULY!AK44)","v":0},{"$f":"SUM(AUGUST!AL44,SEPTEMBER!AL44,OCTOBER!AL44,NOVEMBER!AL44,DECEMBER!AL44,JANUARY!AL44,FEBRUARY!AL44,MARCH!AL44,APRIL!AL44,MAY!AL44,JUNE!AL44,JULY!AL44)","v":0}]
[null,null,null,{"$f":"SUM(AUGUST!AI45,SEPTEMBER!AI45,OCTOBER!AI45,NOVEMBER!AI45,DECEMBER!AI45,JANUARY!AI45,FEBRUARY!AI45,MARCH!AI45,APRIL!AI45,MAY!AI45,JUNE!AI45,JULY!AI45)","v":0},{"$f":"SUM(AUGUST!AJ45,SEPTEMBER!AJ45,OCTOBER!AJ45,NOVEMBER!AJ45,DECEMBER!AJ45,JANUARY!AJ45,FEBRUARY!AJ45,MARCH!AJ45,APRIL!AJ45,MAY!AJ45,JUNE!AJ45,JULY!AJ45)","v":0},{"$f":"SUM(AUGUST!AK45,SEPTEMBER!AK45,OCTOBER!AK45,NOVEMBER!AK45,DECEMBER!AK45,JANUARY!AK45,FEBRUARY!AK45,MARCH!AK45,APRIL!AK45,MAY!AK45,JUNE!AK45,JULY!AK45)","v":0},{"$f":"SUM(AUGUST!AL45,SEPTEMBER!AL45,OCTOBER!AL45,NOVEMBER!AL45,DECEMBER!AL45,JANUARY!AL45,FEBRUARY!AL45,MARCH!AL45,APRIL!AL45,MAY!AL45,JUNE!AL45,JULY!AL45)","v":0}]
[null,null,null,{"$f":"SUM(AUGUST!AI46,SEPTEMBER!AI46,OCTOBER!AI46,NOVEMBER!AI46,DECEMBER!AI46,JANUARY!AI46,FEBRUARY!AI46,MARCH!AI46,APRIL!AI46,MAY!AI46,JUNE!AI46,JULY!AI46)","v":0},{"$f":"SUM(AUGUST!AJ46,SEPTEMBER!AJ46,OCTOBER!AJ46,NOVEMBER!AJ46,DECEMBER!AJ46,JANUARY!AJ46,FEBRUARY!AJ46,MARCH!AJ46,APRIL!AJ46,MAY!AJ46,JUNE!AJ46,JULY!AJ46)","v":0},{"$f":"SUM(AUGUST!AK46,SEPTEMBER!AK46,OCTOBER!AK46,NOVEMBER!AK46,DECEMBER!AK46,JANUARY!AK46,FEBRUARY!AK46,MARCH!AK46,APRIL!AK46,MAY!AK46,JUNE!AK46,JULY!AK46)","v":0},{"$f":"SUM(AUGUST!AL46,SEPTEMBER!AL46,OCTOBER!AL46,NOVEMBER!AL46,DECEMBER!AL46,JANUARY!AL46,FEBRUARY!AL46,MARCH!AL46,APRIL!AL46,MAY!AL46,JUNE!AL46,JULY!AL46)","v":0}]
[null,null,null,{"$f":"SUM(AUGUST!AI47,SEPTEMBER!AI47,OCTOBER!AI47,NOVEMBER!AI47,DECEMBER!AI47,JANUARY!AI47,FEBRUARY!AI47,MARCH!AI47,APRIL!AI47,MAY!AI47,JUNE!AI47,JULY!AI47)","v":0},{"$f":"SUM(AUGUST!AJ47,SEPTEMBER!AJ47,OCTOBER!AJ47,NOVEMBER!AJ47,DECEMBER!AJ47,JANUARY!AJ47,FEBRUARY!AJ47,MARCH!AJ47,APRIL!AJ47,MAY!AJ47,JUNE!AJ47,JULY!AJ47)","v":0},{"$f":"SUM(AUGUST!AK47,SEPTEMBER!AK47,OCTOBER!AK47,NOVEMBER!AK47,DECEMBER!AK47,JANUARY!AK47,FEBRUARY!AK47,MARCH!AK47,APRIL!AK47,MAY!AK47,JUNE!AK47,JULY!AK47)","v":0},{"$f":"SUM(AUGUST!AL47,SEPTEMBER!AL47,OCTOBER!AL47,NOVEMBER!AL47,DECEMBER!AL47,JANUARY!AL47,FEBRUARY!AL47,MARCH!AL47,APRIL!AL47,MAY!AL47,JUNE!AL47,JULY!AL47)","v":0}]
[null,null,null,{"$f":"SUM(AUGUST!AI48,SEPTEMBER!AI48,OCTOBER!AI48,NOVEMBER!AI48,DECEMBER!AI48,JANUARY!AI48,FEBRUARY!AI48,MARCH!AI48,APRIL!AI48,MAY!AI48,JUNE!AI48,JULY!AI48)","v":0},{"$f":"SUM(AUGUST!AJ48,SEPTEMBER!AJ48,OCTOBER!AJ48,NOVEMBER!AJ48,DECEMBER!AJ48,JANUARY!AJ48,FEBRUARY!AJ48,MARCH!AJ48,APRIL!AJ48,MAY!AJ48,JUNE!AJ48,JULY!AJ48)","v":0},{"$f":"SUM(AUGUST!AK48,SEPTEMBER!AK48,OCTOBER!AK48,NOVEMBER!AK48,DECEMBER!AK48,JANUARY!AK48,FEBRUARY!AK48,MARCH!AK48,APRIL!AK48,MAY!AK48,JUNE!AK48,JULY!AK48)","v":0},{"$f":"SUM(AUGUST!AL48,SEPTEMBER!AL48,OCTOBER!AL48,NOVEMBER!AL48,DECEMBER!AL48,JANUARY!AL48,FEBRUARY!AL48,MARCH!AL48,APRIL!AL48,MAY!AL48,JUNE!AL48,JULY!AL48)","v":0}]
[null,null,null,{"$f":"SUM(AUGUST!AI49,SEPTEMBER!AI49,OCTOBER!AI49,NOVEMBER!AI49,DECEMBER!AI49,JANUARY!AI49,FEBRUARY!AI49,MARCH!AI49,APRIL!AI49,MAY!AI49,JUNE!AI49,JULY!AI49)","v":0},{"$f":"SUM(AUGUST!AJ49,SEPTEMBER!AJ49,OCTOBER!AJ49,NOVEMBER!AJ49,DECEMBER!AJ49,JANUARY!AJ49,FEBRUARY!AJ49,MARCH!AJ49,APRIL!AJ49,MAY!AJ49,JUNE!AJ49,JULY!AJ49)","v":0},{"$f":"SUM(AUGUST!AK49,SEPTEMBER!AK49,OCTOBER!AK49,NOVEMBER!AK49,DECEMBER!AK49,JANUARY!AK49,FEBRUARY!AK49,MARCH!AK49,APRIL!AK49,MAY!AK49,JUNE!AK49,JULY!AK49)","v":0},{"$f":"SUM(AUGUST!AL49,SEPTEMBER!AL49,OCTOBER!AL49,NOVEMBER!AL49,DECEMBER!AL49,JANUARY!AL49,FEBRUARY!AL49,MARCH!AL49,APRIL!AL49,MAY!AL49,JUNE!AL49,JULY!AL49)","v":0}]
[null,null,null,{"$f":"SUM(AUGUST!AI50,SEPTEMBER!AI50,OCTOBER!AI50,NOVEMBER!AI50,DECEMBER!AI50,JANUARY!AI50,FEBRUARY!AI50,MARCH!AI50,APRIL!AI50,MAY!AI50,JUNE!AI50,JULY!AI50)","v":0},{"$f":"SUM(AUGUST!AJ50,SEPTEMBER!AJ50,OCTOBER!AJ50,NOVEMBER!AJ50,DECEMBER!AJ50,JANUARY!AJ50,FEBRUARY!AJ50,MARCH!AJ50,APRIL!AJ50,MAY!AJ50,JUNE!AJ50,JULY!AJ50)","v":0},{"$f":"SUM(AUGUST!AK50,SEPTEMBER!AK50,OCTOBER!AK50,NOVEMBER!AK50,DECEMBER!AK50,JANUARY!AK50,FEBRUARY!AK50,MARCH!AK50,APRIL!AK50,MAY!AK50,JUNE!AK50,JULY!AK50)","v":0},{"$f":"SUM(AUGUST!AL50,SEPTEMBER!AL50,OCTOBER!AL50,NOVEMBER!AL50,DECEMBER!AL50,JANUARY!AL50,FEBRUARY!AL50,MARCH!AL50,APRIL!AL50,MAY!AL50,JUNE!AL50,JULY!AL50)","v":0}]

{"sheet":"AUGUST","index":1,"n_rows":52,"n_cols":38,"rows_kept":52,"cut":false,"hidden":false,"merged":[[2,1,2,2],[2,4,2,15],[2,17,2,28],[2,30,2,37],[3,1,3,2],[3,4,3,15],[3,17,3,28],[3,30,3,36],[6,30,6,36],[4,30,4,36],[5,1,5,2],[5,4,5,15],[5,17,5,20],[5,21,5,25],[5,26,5,28],[5,30,5,36],[6,1,6,2],[6,4,6,15],[6,17,6,20],[6,21,6,25],[6,26,6,28],[51,2,51,33],[8,1,9,1],[8,2,9,2],[8,3,8,33],[8,34,8,37]]}
[null,"YEARLY CLASS ATTENDANCE SHEET"]
[]
[null,"SCHOOL NAME",null,null,"COURSE TITLE",null,null,null,null,null,null,null,null,null,null,null,null,"TIME / CLASS PERIOD",null,null,null,null,null,null,null,null,null,null,null,null,"KEY"]
[null,{"$f":"'Yearly Class Attendance'!B4:C4","v":0},null,null,{"$f":"'Yearly Class Attendance'!E4:P4","v":0},null,null,null,null,null,null,null,null,null,null,null,null,{"$f":"'Yearly Class Attendance'!R4:AC4","v":0},null,null,null,null,null,null,null,null,null,null,null,null,"PRESENT",null,null,null,null,null,null,"P"]
[null,null,null,null,null,null,null,null,null,null,null,null,null,null,null,null,null,null,null,null,null,null,null,null,null,null,null,null,null,null,"UNEXCUSED ABSENCE",null,null,null,null,null,null,"U"]
[null,"PROFESSOR NAME",null,null,"LOCATION",null,null,null,null,null,null,null,null,null,null,null,null,"SEMESTER",null,null,null,"MONTH",null,null,null,null,"YEAR",null,null,null,"EXCUSED ABSENCE",null,null,null,null,null,null,"E"]
[null,{"$f":"'Yearly Class Attendance'!B7:C7","v":0},null,null,{"$f":"'Yearly Class Attendance'!E7:P7","v":0},null,null,null,null,null,null,null,null,null,null,null,null,null,null,null,null,"AUGUST",null,null,null,null,null,null,null,null,"TARDY",null,null,null,null,null,null,"T"]
[]
[null,"STUDENT NAME","STUDENT ID","DATE",null,null,null,null,null,null,null,null,null,null,null,null,null,null,null,null,null,null,null,null,null,null,null,null,null,null,null,null,null,null,"TOTAL"]
[null,null,null,1,{"$f":"D10+1","v":2},{"$f":"E10+1","v":3},4,5,6,7,8,9,10,11,12,13,14,15,16,17,18,19,20,21,22,23,24,25,26,27,28,29,30,31,"P","U","E","T"]
[null,{"$f":"'Yearly Class Attendance'!B11:C50","v":0},{"$f":"'Yearly Class Attendance'!C11:D50","v":0},null,null,null,null,null,null,null,null,null,null,null,null,null,null,null,null,null,null,null,null,null,null,null,null,null,null,null,null,null,null,null,{"$f":"COUNTIF(D11:AH11,\"*\"&AI$10&\"*\")","v":0},{"$f":"COUNTIF(E11:AI11,\"*\"&AJ$10&\"*\")","v":0},0,0]
[null,{"$f":"'Yearly Class Attendance'!B12:B12","v":0},{"$f":"'Yearly Class Attendance'!C12:C12","v":0},null,null,null,null,null,null,null,null,null,null,null,null,null,null,null,null,null,null,null,null,null,null,null,null,null,null,null,null,null,null,null,{"$f":"COUNTIF(D12:AH12,\"*\"&AI$10&\"*\")","v":0},0,0,0]
[null,{"$f":"'Yearly Class Attendance'!B13:C52","v":0},{"$f":"'Yearly Class Attendance'!C13:D52","v":0},null,null,null,null,null,null,null,null,null,null,null,null,null,null,null,null,null,null,null,null,null,null,null,null,null,null,null,null,null,null,null,{"$f":"COUNTIF(D13:AH13,\"*\"&AI$10&\"*\")","v":0},0,0,0]
[null,{"$f":"'Yearly Class Attendance'!B14:B14","v":0},{"$f":"'Yearly Class Attendance'!C14:C14","v":0},null,null,null,null,null,null,null,null,null,null,null,null,null,null,null,null,null,null,null,null,null,null,null,null,null,null,null,null,null,null,null,0,0,0,0]
[null,{"$f":"'Yearly Class Attendance'!B15:C54","v":0},{"$f":"'Yearly Class Attendance'!C15:D54","v":0},null,null,null,null,null,null,null,null,null,null,null,null,null,null,null,null,null,null,null,null,null,null,null,null,null,null,null,null,null,null,null,0,0,0,0]
[null,{"$f":"'Yearly Class Attendance'!B16:B16","v":0},{"$f":"'Yearly Class Attendance'!C16:C16","v":0},null,null,null,null,null,null,null,null,null,null,null,null,null,null,null,null,null,null,null,null,null,null,null,null,null,null,null,null,null,null,null,0,0,0,0]
[null,{"$f":"'Yearly Class Attendance'!B17:C56","v":0},{"$f":"'Yearly Class Attendance'!C17:D56","v":0},null,null,null,null,null,null,null,null,null,null,null,null,null,null,null,null,null,null,null,null,null,null,null,null,null,null,null,null,null,null,null,0,0,0,0]
[null,{"$f":"'Yearly Class Attendance'!B18:B18","v":0},{"$f":"'Yearly Class Attendance'!C18:C18","v":0},null,null,null,null,null,null,null,null,null,null,null,null,null,null,null,null,null,null,null,null,null,null,null,null,null,null,null,null,null,null,null,0,0,0,0]
[null,{"$f":"'Yearly Class Attendance'!B19:C58","v":0},{"$f":"'Yearly Class Attendance'!C19:D58","v":0},null,null,null,null,null,null,null,null,null,null,null,null,null,null,null,null,null,null,null,null,null,null,null,null,null,null,null,null,null,null,null,0,0,0,0]
[null,{"$f":"'Yearly Class Attendance'!B20:B20","v":0},{"$f":"'Yearly Class Attendance'!C20:C20","v":0},null,null,null,null,null,null,null,null,null,null,null,null,null,null,null,null,null,null,null,null,null,null,null,null,null,null,null,null,null,null,null,0,0,0,0]
[null,{"$f":"'Yearly Class Attendance'!B21:C60","v":0},{"$f":"'Yearly Class Attendance'!C21:D60","v":0},null,null,null,null,null,null,null,null,null,null,null,null,null,null,null,null,null,null,null,null,null,null,null,null,null,null,null,null,null,null,null,0,0,0,0]
[null,{"$f":"'Yearly Class Attendance'!B22:B22","v":0},{"$f":"'Yearly Class Attendance'!C22:C22","v":0},null,null,null,null,null,null,null,null,null,null,null,null,null,null,null,null,null,null,null,null,null,null,null,null,null,null,null,null,null,null,null,0,0,0,0]
[null,{"$f":"'Yearly Class Attendance'!B23:C62","v":0},{"$f":"'Yearly Class Attendance'!C23:D62","v":0},null,null,null,null,null,null,null,null,null,null,null,null,null,null,null,null,null,null,null,null,null,null,null,null,null,null,null,null,null,null,null,0,0,0,0]
[null,{"$f":"'Yearly Class Attendance'!B24:B24","v":0},{"$f":"'Yearly Class Attendance'!C24:C24","v":0},null,null,null,null,null,null,null,null,null,null,null,null,null,null,null,null,null,null,null,null,null,null,null,null,null,null,null,null,null,null,null,0,0,0,0]
[null,{"$f":"'Yearly Class Attendance'!B25:C64","v":0},{"$f":"'Yearly Class Attendance'!C25:D64","v":0},null,null,null,null,null,null,null,null,null,null,null,null,null,null,null,null,null,null,null,null,null,null,null,null,null,null,null,null,null,null,null,0,0,0,0]
[null,{"$f":"'Yearly Class Attendance'!B26:B26","v":0},{"$f":"'Yearly Class Attendance'!C26:C26","v":0},null,null,null,null,null,null,null,null,null,null,null,null,null,null,null,null,null,null,null,null,null,null,null,null,null,null,null,null,null,null,null,0,0,0,0]
[null,{"$f":"'Yearly Class Attendance'!B27:C66","v":0},{"$f":"'Yearly Class Attendance'!C27:D66","v":0},null,null,null,null,null,null,null,null,null,null,null,null,null,null,null,null,null,null,null,null,null,null,null,null,null,null,null,null,null,null,null,0,0,0,0]
[null,{"$f":"'Yearly Class Attendance'!B28:B28","v":0},{"$f":"'Yearly Class Attendance'!C28:C28","v":0},null,null,null,null,null,null,null,null,null,null,null,null,null,null,null,null,null,null,null,null,null,null,null,null,null,null,null,null,null,null,null,0,0,0,0]
[null,{"$f":"'Yearly Class Attendance'!B29:C68","v":0},{"$f":"'Yearly Class Attendance'!C29:D68","v":0},null,null,null,null,null,null,null,null,null,null,null,null,null,null,null,null,null,null,null,null,null,null,null,null,null,null,null,null,null,null,null,{"$f":"COUNTIF(D29:AH29,\"*\"&AI$10&\"*\")","v":0},0,0,0]
[null,{"$f":"'Yearly Class Attendance'!B30:B30","v":0},{"$f":"'Yearly Class Attendance'!C30:C30","v":0},null,null,null,null,null,null,null,null,null,null,null,null,null,null,null,null,null,null,null,null,null,null,null,null,null,null,null,null,null,null,null,0,0,0,0]
[null,{"$f":"'Yearly Class Attendance'!B31:C70","v":0},{"$f":"'Yearly Class Attendance'!C31:D70","v":0},null,null,null,null,null,null,null,null,null,null,null,null,null,null,null,null,null,null,null,null,null,null,null,null,null,null,null,null,null,null,null,0,0,0,0]
[null,{"$f":"'Yearly Class Attendance'!B32:B32","v":0},{"$f":"'Yearly Class Attendance'!C32:C32","v":0},null,null,null,null,null,null,null,null,null,null,null,null,null,null,null,null,null,null,null,null,null,null,null,null,null,null,null,null,null,null,null,0,0,0,0]
[null,{"$f":"'Yearly Class Attendance'!B33:C72","v":0},{"$f":"'Yearly Class Attendance'!C33:D72","v":0},null,null,null,null,null,null,null,null,null,null,null,null,null,null,null,null,null,null,null,null,null,null,null,null,null,null,null,null,null,null,null,0,0,0,0]
[null,{"$f":"'Yearly Class Attendance'!B34:B34","v":0},{"$f":"'Yearly Class Attendance'!C34:C34","v":0},null,null,null,null,null,null,null,null,null,null,null,null,null,null,null,null,null,null,null,null,null,null,null,null,null,null,null,null,null,null,null,0,0,0,0]
[null,{"$f":"'Yearly Class Attendance'!B35:C74","v":0},{"$f":"'Yearly Class Attendance'!C35:D74","v":0},null,null,null,null,null,null,null,null,null,null,null,null,null,null,null,null,null,null,null,null,null,null,null,null,null,null,null,null,null,null,null,0,0,0,0]
[null,{"$f":"'Yearly Class Attendance'!B36:B36","v":0},{"$f":"'Yearly Class Attendance'!C36:C36","v":0},null,null,null,null,null,null,null,null,null,null,null,null,null,null,null,null,null,null,null,null,null,null,null,null,null,null,null,null,null,null,null,0,0,0,0]
[null,{"$f":"'Yearly Class Attendance'!B37:C76","v":0},{"$f":"'Yearly Class Attendance'!C37:D76","v":0},null,null,null,null,null,null,null,null,null,null,null,null,null,null,null,null,null,null,null,null,null,null,null,null,null,null,null,null,null,null,null,0,0,0,0]
[null,{"$f":"'Yearly Class Attendance'!B38:B38","v":0},{"$f":"'Yearly Class Attendance'!C38:C38","v":0},null,null,null,null,null,null,null,null,null,null,null,null,null,null,null,null,null,null,null,null,null,null,null,null,null,null,null,null,null,null,null,0,0,0,0]
[null,{"$f":"'Yearly Class Attendance'!B39:C78","v":0},{"$f":"'Yearly Class Attendance'!C39:D78","v":0},null,null,null,null,null,null,null,null,null,null,null,null,null,null,null,null,null,null,null,null,null,null,null,null,null,null,null,null,null,null,null,0,0,0,0]
[null,{"$f":"'Yearly Class Attendance'!B40:B40","v":0},{"$f":"'Yearly Class Attendance'!C40:C40","v":0},null,null,null,null,null,null,null,null,null,null,null,null,null,null,null,null,null,null,null,null,null,null,null,null,null,null,null,null,null,null,null,0,0,0,0]
[null,{"$f":"'Yearly Class Attendance'!B41:C80","v":0},{"$f":"'Yearly Class Attendance'!C41:D80","v":0},null,null,null,null,null,null,null,null,null,null,null,null,null,null,null,null,null,null,null,null,null,null,null,null,null,null,null,null,null,null,null,{"$f":"COUNTIF(D41:AH41,\"*\"&AI$10&\"*\")","v":0},{"$f":"COUNTIF(E41:AI41,\"*\"&AJ$10&\"*\")","v":0},{"$f":"COUNTIF(F41:AJ41,\"*\"&AK$10&\"*\")","v":0},{"$f":"COUNTIF(G41:AK41,\"*\"&AL$10&\"*\")","v":0}]
[null,{"$f":"'Yearly Class Attendance'!B42:B42","v":0},{"$f":"'Yearly Class Attendance'!C42:C42","v":0},null,null,null,null,null,null,null,null,null,null,null,null,null,null,null,null,null,null,null,null,null,null,null,null,null,null,null,null,null,null,null,0,0,0,0]
[null,{"$f":"'Yearly Class Attendance'!B43:C82","v":0},{"$f":"'Yearly Class Attendance'!C43:D82","v":0},null,null,null,null,null,null,null,null,null,null,null,null,null,null,null,null,null,null,null,null,null,null,null,null,null,null,null,null,null,null,null,0,0,0,0]
[null,{"$f":"'Yearly Class Attendance'!B44:B44","v":0},{"$f":"'Yearly Class Attendance'!C44:C44","v":0},null,null,null,null,null,null,null,null,null,null,null,null,null,null,null,null,null,null,null,null,null,null,null,null,null,null,null,null,null,null,null,0,0,0,0]
[null,{"$f":"'Yearly Class Attendance'!B45:C84","v":0},{"$f":"'Yearly Class Attendance'!C45:D84","v":0},null,null,null,null,null,null,null,null,null,null,null,null,null,null,null,null,null,null,null,null,null,null,null,null,null,null,null,null,null,null,null,0,0,0,0]
[null,{"$f":"'Yearly Class Attendance'!B46:B46","v":0},{"$f":"'Yearly Class Attendance'!C46:C46","v":0},null,null,null,null,null,null,null,null,null,null,null,null,null,null,null,null,null,null,null,null,null,null,null,null,null,null,null,null,null,null,null,0,0,0,0]
[null,{"$f":"'Yearly Class Attendance'!B47:C86","v":0},{"$f":"'Yearly Class Attendance'!C47:D86","v":0},null,null,null,null,null,null,null,null,null,null,null,null,null,null,null,null,null,null,null,null,null,null,null,null,null,null,null,null,null,null,null,0,0,0,0]
[null,{"$f":"'Yearly Class Attendance'!B48:B48","v":0},{"$f":"'Yearly Class Attendance'!C48:C48","v":0},null,null,null,null,null,null,null,null,null,null,null,null,null,null,null,null,null,null,null,null,null,null,null,null,null,null,null,null,null,null,null,0,0,0,0]
[null,{"$f":"'Yearly Class Attendance'!B49:C88","v":0},{"$f":"'Yearly Class Attendance'!C49:D88","v":0},null,null,null,null,null,null,null,null,null,null,null,null,null,null,null,null,null,null,null,null,null,null,null,null,null,null,null,null,null,null,null,0,0,0,0]
[null,{"$f":"'Yearly Class Attendance'!B50:B50","v":0},{"$f":"'Yearly Class Attendance'!C50:C50","v":0},null,null,null,null,null,null,null,null,null,null,null,null,null,null,null,null,null,null,null,null,null,null,null,null,null,null,null,null,null,null,null,0,0,0,0]
[]
[null,null,"CLICK HERE TO CREATE YEARLY CLASS ATTENDANCE SHEET TEMPLATES IN SMARTSHEET"]

{"sheet":"SEPTEMBER","index":2,"n_rows":52,"n_cols":38,"rows_kept":52,"cut":false,"hidden":false,"merged":[[2,1,2,2],[2,4,2,15],[2,17,2,28],[2,30,2,37],[3,1,3,2],[3,4,3,15],[3,17,3,28],[3,30,3,36],[6,30,6,36],[4,30,4,36],[5,1,5,2],[5,4,5,15],[5,17,5,20],[5,21,5,25],[5,26,5,28],[5,30,5,36],[6,1,6,2],[6,4,6,15],[6,17,6,20],[6,21,6,25],[6,26,6,28],[51,2,51,33],[8,1,9,1],[8,2,9,2],[8,3,8,33],[8,34,8,37]]}
[null,"YEARLY CLASS ATTENDANCE SHEET"]
[]
[null,"SCHOOL NAME",null,null,"COURSE TITLE",null,null,null,null,null,null,null,null,null,null,null,null,"TIME / CLASS PERIOD",null,null,null,null,null,null,null,null,null,null,null,null,"KEY"]
[null,{"$f":"'Yearly Class Attendance'!B4:C4","v":0},null,null,{"$f":"'Yearly Class Attendance'!E4:P4","v":0},null,null,null,null,null,null,null,null,null,null,null,null,{"$f":"'Yearly Class Attendance'!R4:AC4","v":0},null,null,null,null,null,null,null,null,null,null,null,null,"PRESENT",null,null,null,null,null,null,"P"]
[null,null,null,null,null,null,null,null,null,null,null,null,null,null,null,null,null,null,null,null,null,null,null,null,null,null,null,null,null,null,"UNEXCUSED ABSENCE",null,null,null,null,null,null,"U"]
[null,"PROFESSOR NAME",null,null,"LOCATION",null,null,null,null,null,null,null,null,null,null,null,null,"SEMESTER",null,null,null,"MONTH",null,null,null,null,"YEAR",null,null,null,"EXCUSED ABSENCE",null,null,null,null,null,null,"E"]
[null,{"$f":"'Yearly Class Attendance'!B7:C7","v":0},null,null,{"$f":"'Yearly Class Attendance'!E7:P7","v":0},null,null,null,null,null,null,null,null,null,null,null,null,null,null,null,null,"SEPTEMBER",null,null,null,null,null,null,null,null,"TARDY",null,null,null,null,null,null,"T"]
[]
[null,"STUDENT NAME","STUDENT ID","DATE",null,null,null,null,null,null,null,null,null,null,null,null,null,null,null,null,null,null,null,null,null,null,null,null,null,null,null,null,null,null,"TOTAL"]
[null,null,null,1,{"$f":"D10+1","v":2},{"$f":"E10+1","v":3},4,5,6,7,8,9,10,11,12,13,14,15,16,17,18,19,20,21,22,23,24,25,26,27,28,29,30,31,"P","U","E","T"]
[null,{"$f":"'Yearly Class Attendance'!B11:C50","v":0},{"$f":"'Yearly Class Attendance'!C11:D50","v":0},null,null,null,null,null,null,null,null,null,null,null,null,null,null,null,null,null,null,null,null,null,null,null,null,null,null,null,null,null,null,null,{"$f":"COUNTIF(D11:AH11,\"*\"&AI$10&\"*\")","v":0},{"$f":"COUNTIF(E11:AI11,\"*\"&AJ$10&\"*\")","v":0},0,0]
[null,{"$f":"'Yearly Class Attendance'!B12:B12","v":0},{"$f":"'Yearly Class Attendance'!C12:C12","v":0},null,null,null,null,null,null,null,null,null,null,null,null,null,null,null,null,null,null,null,null,null,null,null,null,null,null,null,null,null,null,null,{"$f":"COUNTIF(D12:AH12,\"*\"&AI$10&\"*\")","v":0},0,0,0]
[null,{"$f":"'Yearly Class Attendance'!B13:C52","v":0},{"$f":"'Yearly Class Attendance'!C13:D52","v":0},null,null,null,null,null,null,null,null,null,null,null,null,null,null,null,null,null,null,null,null,null,null,null,null,null,null,null,null,null,null,null,{"$f":"COUNTIF(D13:AH13,\"*\"&AI$10&\"*\")","v":0},0,0,0]
[null,{"$f":"'Yearly Class Attendance'!B14:B14","v":0},{"$f":"'Yearly Class Attendance'!C14:C14","v":0},null,null,null,null,null,null,null,null,null,null,null,null,null,null,null,null,null,null,null,null,null,null,null,null,null,null,null,null,null,null,null,0,0,0,0]
[null,{"$f":"'Yearly Class Attendance'!B15:C54","v":0},{"$f":"'Yearly Class Attendance'!C15:D54","v":0},null,null,null,null,null,null,null,null,null,null,null,null,null,null,null,null,null,null,null,null,null,null,null,null,null,null,null,null,null,null,null,0,0,0,0]
[null,{"$f":"'Yearly Class Attendance'!B16:B16","v":0},{"$f":"'Yearly Class Attendance'!C16:C16","v":0},null,null,null,null,null,null,null,null,null,null,null,null,null,null,null,null,null,null,null,null,null,null,null,null,null,null,null,null,null,null,null,0,0,0,0]
[null,{"$f":"'Yearly Class Attendance'!B17:C56","v":0},{"$f":"'Yearly Class Attendance'!C17:D56","v":0},null,null,null,null,null,null,null,null,null,null,null,null,null,null,null,null,null,null,null,null,null,null,null,null,null,null,null,null,null,null,null,0,0,0,0]
[null,{"$f":"'Yearly Class Attendance'!B18:B18","v":0},{"$f":"'Yearly Class Attendance'!C18:C18","v":0},null,null,null,null,null,null,null,null,null,null,null,null,null,null,null,null,null,null,null,null,null,null,null,null,null,null,null,null,null,null,null,0,0,0,0]
[null,{"$f":"'Yearly Class Attendance'!B19:C58","v":0},{"$f":"'Yearly Class Attendance'!C19:D58","v":0},null,null,null,null,null,null,null,null,null,null,null,null,null,null,null,null,null,null,null,null,null,null,null,null,null,null,null,null,null,null,null,0,0,0,0]
[null,{"$f":"'Yearly Class Attendance'!B20:B20","v":0},{"$f":"'Yearly Class Attendance'!C20:C20","v":0},null,null,null,null,null,null,null,null,null,null,null,null,null,null,null,null,null,null,null,null,null,null,null,null,null,null,null,null,null,null,null,0,0,0,0]
[null,{"$f":"'Yearly Class Attendance'!B21:C60","v":0},{"$f":"'Yearly Class Attendance'!C21:D60","v":0},null,null,null,null,null,null,null,null,null,null,null,null,null,null,null,null,null,null,null,null,null,null,null,null,null,null,null,null,null,null,null,0,0,0,0]
[null,{"$f":"'Yearly Class Attendance'!B22:B22","v":0},{"$f":"'Yearly Class Attendance'!C22:C22","v":0},null,null,null,null,null,null,null,null,null,null,null,null,null,null,null,null,null,null,null,null,null,null,null,null,null,null,null,null,null,null,null,0,0,0,0]
[null,{"$f":"'Yearly Class Attendance'!B23:C62","v":0},{"$f":"'Yearly Class Attendance'!C23:D62","v":0},null,null,null,null,null,null,null,null,null,null,null,null,null,null,null,null,null,null,null,null,null,null,null,null,null,null,null,null,null,null,null,0,0,0,0]
[null,{"$f":"'Yearly Class Attendance'!B24:B24","v":0},{"$f":"'Yearly Class Attendance'!C24:C24","v":0},null,null,null,null,null,null,null,null,null,null,null,null,null,null,null,null,null,null,null,null,null,null,null,null,null,null,null,null,null,null,null,0,0,0,0]
[null,{"$f":"'Yearly Class Attendance'!B25:C64","v":0},{"$f":"'Yearly Class Attendance'!C25:D64","v":0},null,null,null,null,null,null,null,null,null,null,null,null,null,null,null,null,null,null,null,null,null,null,null,null,null,null,null,null,null,null,null,0,0,0,0]
[null,{"$f":"'Yearly Class Attendance'!B26:B26","v":0},{"$f":"'Yearly Class Attendance'!C26:C26","v":0},null,null,null,null,null,null,null,null,null,null,null,null,null,null,null,null,null,null,null,null,null,null,null,null,null,null,null,null,null,null,null,0,0,0,0]
[null,{"$f":"'Yearly Class Attendance'!B27:C66","v":0},{"$f":"'Yearly Class Attendance'!C27:D66","v":0},null,null,null,null,null,null,null,null,null,null,null,null,null,null,null,null,null,null,null,null,null,null,null,null,null,null,null,null,null,null,null,0,0,0,0]
[null,{"$f":"'Yearly Class Attendance'!B28:B28","v":0},{"$f":"'Yearly Class Attendance'!C28:C28","v":0},null,null,null,null,null,null,null,null,null,null,null,null,null,null,null,null,null,null,null,null,null,null,null,null,null,null,null,null,null,null,null,0,0,0,0]
[null,{"$f":"'Yearly Class Attendance'!B29:C68","v":0},{"$f":"'Yearly Class Attendance'!C29:D68","v":0},null,null,null,null,null,null,null,null,null,null,null,null,null,null,null,null,null,null,null,null,null,null,null,null,null,null,null,null,null,null,null,{"$f":"COUNTIF(D29:AH29,\"*\"&AI$10&\"*\")","v":0},0,0,0]
[null,{"$f":"'Yearly Class Attendance'!B30:B30","v":0},{"$f":"'Yearly Class Attendance'!C30:C30","v":0},null,null,null,null,null,null,null,null,null,null,null,null,null,null,null,null,null,null,null,null,null,null,null,null,null,null,null,null,null,null,null,0,0,0,0]
[null,{"$f":"'Yearly Class Attendance'!B31:C70","v":0},{"$f":"'Yearly Class Attendance'!C31:D70","v":0},null,null,null,null,null,null,null,null,null,null,null,null,null,null,null,null,null,null,null,null,null,null,null,null,null,null,null,null,null,null,null,0,0,0,0]
[null,{"$f":"'Yearly Class Attendance'!B32:B32","v":0},{"$f":"'Yearly Class Attendance'!C32:C32","v":0},null,null,null,null,null,null,null,null,null,null,null,null,null,null,null,null,null,null,null,null,null,null,null,null,null,null,null,null,null,null,null,0,0,0,0]
[null,{"$f":"'Yearly Class Attendance'!B33:C72","v":0},{"$f":"'Yearly Class Attendance'!C33:D72","v":0},null,null,null,null,null,null,null,null,null,null,null,null,null,null,null,null,null,null,null,null,null,null,null,null,null,null,null,null,null,null,null,0,0,0,0]
[null,{"$f":"'Yearly Class Attendance'!B34:B34","v":0},{"$f":"'Yearly Class Attendance'!C34:C34","v":0},null,null,null,null,null,null,null,null,null,null,null,null,null,null,null,null,null,null,null,null,null,null,null,null,null,null,null,null,null,null,null,0,0,0,0]
[null,{"$f":"'Yearly Class Attendance'!B35:C74","v":0},{"$f":"'Yearly Class Attendance'!C35:D74","v":0},null,null,null,null,null,null,null,null,null,null,null,null,null,null,null,null,null,null,null,null,null,null,null,null,null,null,null,null,null,null,null,0,0,0,0]
[null,{"$f":"'Yearly Class Attendance'!B36:B36","v":0},{"$f":"'Yearly Class Attendance'!C36:C36","v":0},null,null,null,null,null,null,null,null,null,null,null,null,null,null,null,null,null,null,null,null,null,null,null,null,null,null,null,null,null,null,null,0,0,0,0]
[null,{"$f":"'Yearly Class Attendance'!B37:C76","v":0},{"$f":"'Yearly Class Attendance'!C37:D76","v":0},null,null,null,null,null,null,null,null,null,null,null,null,null,null,null,null,null,null,null,null,null,null,null,null,null,null,null,null,null,null,null,0,0,0,0]
[null,{"$f":"'Yearly Class Attendance'!B38:B38","v":0},{"$f":"'Yearly Class Attendance'!C38:C38","v":0},null,null,null,null,null,null,null,null,null,null,null,null,null,null,null,null,null,null,null,null,null,null,null,null,null,null,null,null,null,null,null,0,0,0,0]
[null,{"$f":"'Yearly Class Attendance'!B39:C78","v":0},{"$f":"'Yearly Class Attendance'!C39:D78","v":0},null,null,null,null,null,null,null,null,null,null,null,null,null,null,null,null,null,null,null,null,null,null,null,null,null,null,null,null,null,null,null,0,0,0,0]
[null,{"$f":"'Yearly Class Attendance'!B40:B40","v":0},{"$f":"'Yearly Class Attendance'!C40:C40","v":0},null,null,null,null,null,null,null,null,null,null,null,null,null,null,null,null,null,null,null,null,null,null,null,null,null,null,null,null,null,null,null,0,0,0,0]
[null,{"$f":"'Yearly Class Attendance'!B41:C80","v":0},{"$f":"'Yearly Class Attendance'!C41:D80","v":0},null,null,null,null,null,null,null,null,null,null,null,null,null,null,null,null,null,null,null,null,null,null,null,null,null,null,null,null,null,null,null,{"$f":"COUNTIF(D41:AH41,\"*\"&AI$10&\"*\")","v":0},{"$f":"COUNTIF(E41:AI41,\"*\"&AJ$10&\"*\")","v":0},{"$f":"COUNTIF(F41:AJ41,\"*\"&AK$10&\"*\")","v":0},{"$f":"COUNTIF(G41:AK41,\"*\"&AL$10&\"*\")","v":0}]
[null,{"$f":"'Yearly Class Attendance'!B42:B42","v":0},{"$f":"'Yearly Class Attendance'!C42:C42","v":0},null,null,null,null,null,null,null,null,null,null,null,null,null,null,null,null,null,null,null,null,null,null,null,null,null,null,null,null,null,null,null,0,0,0,0]
[null,{"$f":"'Yearly Class Attendance'!B43:C82","v":0},{"$f":"'Yearly Class Attendance'!C43:D82","v":0},null,null,null,null,null,null,null,null,null,null,null,null,null,null,null,null,null,null,null,null,null,null,null,null,null,null,null,null,null,null,null,0,0,0,0]
[null,{"$f":"'Yearly Class Attendance'!B44:B44","v":0},{"$f":"'Yearly Class Attendance'!C44:C44","v":0},null,null,null,null,null,null,null,null,null,null,null,null,null,null,null,null,null,null,null,null,null,null,null,null,null,null,null,null,null,null,null,0,0,0,0]
[null,{"$f":"'Yearly Class Attendance'!B45:C84","v":0},{"$f":"'Yearly Class Attendance'!C45:D84","v":0},null,null,null,null,null,null,null,null,null,null,null,null,null,null,null,null,null,null,null,null,null,null,null,null,null,null,null,null,null,null,null,0,0,0,0]
[null,{"$f":"'Yearly Class Attendance'!B46:B46","v":0},{"$f":"'Yearly Class Attendance'!C46:C46","v":0},null,null,null,null,null,null,null,null,null,null,null,null,null,null,null,null,null,null,null,null,null,null,null,null,null,null,null,null,null,null,null,0,0,0,0]
[null,{"$f":"'Yearly Class Attendance'!B47:C86","v":0},{"$f":"'Yearly Class Attendance'!C47:D86","v":0},null,null,null,null,null,null,null,null,null,null,null,null,null,null,null,null,null,null,null,null,null,null,null,null,null,null,null,null,null,null,null,0,0,0,0]
[null,{"$f":"'Yearly Class Attendance'!B48:B48","v":0},{"$f":"'Yearly Class Attendance'!C48:C48","v":0},null,null,null,null,null,null,null,null,null,null,null,null,null,null,null,null,null,null,null,null,null,null,null,null,null,null,null,null,null,null,null,0,0,0,0]
[null,{"$f":"'Yearly Class Attendance'!B49:C88","v":0},{"$f":"'Yearly Class Attendance'!C49:D88","v":0},null,null,null,null,null,null,null,null,null,null,null,null,null,null,null,null,null,null,null,null,null,null,null,null,null,null,null,null,null,null,null,0,0,0,0]
[null,{"$f":"'Yearly Class Attendance'!B50:B50","v":0},{"$f":"'Yearly Class Attendance'!C50:C50","v":0},null,null,null,null,null,null,null,null,null,null,null,null,null,null,null,null,null,null,null,null,null,null,null,null,null,null,null,null,null,null,null,0,0,0,0]
[]
[null,null,"CLICK HERE TO CREATE YEARLY CLASS ATTENDANCE SHEET TEMPLATES IN SMARTSHEET"]

{"sheet":"OCTOBER","index":3,"n_rows":52,"n_cols":38,"rows_kept":52,"cut":false,"hidden":false,"merged":[[2,1,2,2],[2,4,2,15],[2,17,2,28],[2,30,2,37],[3,1,3,2],[3,4,3,15],[3,17,3,28],[3,30,3,36],[6,30,6,36],[4,30,4,36],[5,1,5,2],[5,4,5,15],[5,17,5,20],[5,21,5,25],[5,26,5,28],[5,30,5,36],[6,1,6,2],[6,4,6,15],[6,17,6,20],[6,21,6,25],[6,26,6,28],[51,2,51,33],[8,1,9,1],[8,2,9,2],[8,3,8,33],[8,34,8,37]]}
[null,"YEARLY CLASS ATTENDANCE SHEET"]
[]
[null,"SCHOOL NAME",null,null,"COURSE TITLE",null,null,null,null,null,null,null,null,null,null,null,null,"TIME / CLASS PERIOD",null,null,null,null,null,null,null,null,null,null,null,null,"KEY"]
[null,{"$f":"'Yearly Class Attendance'!B4:C4","v":0},null,null,{"$f":"'Yearly Class Attendance'!E4:P4","v":0},null,null,null,null,null,null,null,null,null,null,null,null,{"$f":"'Yearly Class Attendance'!R4:AC4","v":0},null,null,null,null,null,null,null,null,null,null,null,null,"PRESENT",null,null,null,null,null,null,"P"]
[null,null,null,null,null,null,null,null,null,null,null,null,null,null,null,null,null,null,null,null,null,null,null,null,null,null,null,null,null,null,"UNEXCUSED ABSENCE",null,null,null,null,null,null,"U"]
[null,"PROFESSOR NAME",null,null,"LOCATION",null,null,null,null,null,null,null,null,null,null,null,null,"SEMESTER",null,null,null,"MONTH",null,null,null,null,"YEAR",null,null,null,"EXCUSED ABSENCE",null,null,null,null,null,null,"E"]
[null,{"$f":"'Yearly Class Attendance'!B7:C7","v":0},null,null,{"$f":"'Yearly Class Attendance'!E7:P7","v":0},null,null,null,null,null,null,null,null,null,null,null,null,null,null,null,null,"OCTOBER",null,null,null,null,null,null,null,null,"TARDY",null,null,null,null,null,null,"T"]
[]
[null,"STUDENT NAME","STUDENT ID","DATE",null,null,null,null,null,null,null,null,null,null,null,null,null,null,null,null,null,null,null,null,null,null,null,null,null,null,null,null,null,null,"TOTAL"]
[null,null,null,1,{"$f":"D10+1","v":2},{"$f":"E10+1","v":3},4,5,6,7,8,9,10,11,12,13,14,15,16,17,18,19,20,21,22,23,24,25,26,27,28,29,30,31,"P","U","E","T"]
[null,{"$f":"'Yearly Class Attendance'!B11:C50","v":0},{"$f":"'Yearly Class Attendance'!C11:D50","v":0},null,null,null,null,null,null,null,null,null,null,null,null,null,null,null,null,null,null,null,null,null,null,null,null,null,null,null,null,null,null,null,{"$f":"COUNTIF(D11:AH11,\"*\"&AI$10&\"*\")","v":0},{"$f":"COUNTIF(E11:AI11,\"*\"&AJ$10&\"*\")","v":0},0,0]
[null,{"$f":"'Yearly Class Attendance'!B12:B12","v":0},{"$f":"'Yearly Class Attendance'!C12:C12","v":0},null,null,null,null,null,null,null,null,null,null,null,null,null,null,null,null,null,null,null,null,null,null,null,null,null,null,null,null,null,null,null,{"$f":"COUNTIF(D12:AH12,\"*\"&AI$10&\"*\")","v":0},0,0,0]
[null,{"$f":"'Yearly Class Attendance'!B13:C52","v":0},{"$f":"'Yearly Class Attendance'!C13:D52","v":0},null,null,null,null,null,null,null,null,null,null,null,null,null,null,null,null,null,null,null,null,null,null,null,null,null,null,null,null,null,null,null,{"$f":"COUNTIF(D13:AH13,\"*\"&AI$10&\"*\")","v":0},0,0,0]
[null,{"$f":"'Yearly Class Attendance'!B14:B14","v":0},{"$f":"'Yearly Class Attendance'!C14:C14","v":0},null,null,null,null,null,null,null,null,null,null,null,null,null,null,null,null,null,null,null,null,null,null,null,null,null,null,null,null,null,null,null,0,0,0,0]
[null,{"$f":"'Yearly Class Attendance'!B15:C54","v":0},{"$f":"'Yearly Class Attendance'!C15:D54","v":0},null,null,null,null,null,null,null,null,null,null,null,null,null,null,null,null,null,null,null,null,null,null,null,null,null,null,null,null,null,null,null,0,0,0,0]
[null,{"$f":"'Yearly Class Attendance'!B16:B16","v":0},{"$f":"'Yearly Class Attendance'!C16:C16","v":0},null,null,null,null,null,null,null,null,null,null,null,null,null,null,null,null,null,null,null,null,null,null,null,null,null,null,null,null,null,null,null,0,0,0,0]
[null,{"$f":"'Yearly Class Attendance'!B17:C56","v":0},{"$f":"'Yearly Class Attendance'!C17:D56","v":0},null,null,null,null,null,null,null,null,null,null,null,null,null,null,null,null,null,null,null,null,null,null,null,null,null,null,null,null,null,null,null,0,0,0,0]
[null,{"$f":"'Yearly Class Attendance'!B18:B18","v":0},{"$f":"'Yearly Class Attendance'!C18:C18","v":0},null,null,null,null,null,null,null,null,null,null,null,null,null,null,null,null,null,null,null,null,null,null,null,null,null,null,null,null,null,null,null,0,0,0,0]
[null,{"$f":"'Yearly Class Attendance'!B19:C58","v":0},{"$f":"'Yearly Class Attendance'!C19:D58","v":0},null,null,null,null,null,null,null,null,null,null,null,null,null,null,null,null,null,null,null,null,null,null,null,null,null,null,null,null,null,null,null,0,0,0,0]
[null,{"$f":"'Yearly Class Attendance'!B20:B20","v":0},{"$f":"'Yearly Class Attendance'!C20:C20","v":0},null,null,null,null,null,null,null,null,null,null,null,null,null,null,null,null,null,null,null,null,null,null,null,null,null,null,null,null,null,null,null,0,0,0,0]
[null,{"$f":"'Yearly Class Attendance'!B21:C60","v":0},{"$f":"'Yearly Class Attendance'!C21:D60","v":0},null,null,null,null,null,null,null,null,null,null,null,null,null,null,null,null,null,null,null,null,null,null,null,null,null,null,null,null,null,null,null,0,0,0,0]
[null,{"$f":"'Yearly Class Attendance'!B22:B22","v":0},{"$f":"'Yearly Class Attendance'!C22:C22","v":0},null,null,null,null,null,null,null,null,null,null,null,null,null,null,null,null,null,null,null,null,null,null,null,null,null,null,null,null,null,null,null,0,0,0,0]
[null,{"$f":"'Yearly Class Attendance'!B23:C62","v":0},{"$f":"'Yearly Class Attendance'!C23:D62","v":0},null,null,null,null,null,null,null,null,null,null,null,null,null,null,null,null,null,null,null,null,null,null,null,null,null,null,null,null,null,null,null,0,0,0,0]
[null,{"$f":"'Yearly Class Attendance'!B24:B24","v":0},{"$f":"'Yearly Class Attendance'!C24:C24","v":0},null,null,null,null,null,null,null,null,null,null,null,null,null,null,null,null,null,null,null,null,null,null,null,null,null,null,null,null,null,null,null,0,0,0,0]
[null,{"$f":"'Yearly Class Attendance'!B25:C64","v":0},{"$f":"'Yearly Class Attendance'!C25:D64","v":0},null,null,null,null,null,null,null,null,null,null,null,null,null,null,null,null,null,null,null,null,null,null,null,null,null,null,null,null,null,null,null,0,0,0,0]
[null,{"$f":"'Yearly Class Attendance'!B26:B26","v":0},{"$f":"'Yearly Class Attendance'!C26:C26","v":0},null,null,null,null,null,null,null,null,null,null,null,null,null,null,null,null,null,null,null,null,null,null,null,null,null,null,null,null,null,null,null,0,0,0,0]
[null,{"$f":"'Yearly Class Attendance'!B27:C66","v":0},{"$f":"'Yearly Class Attendance'!C27:D66","v":0},null,null,null,null,null,null,null,null,null,null,null,null,null,null,null,null,null,null,null,null,null,null,null,null,null,null,null,null,null,null,null,0,0,0,0]
[null,{"$f":"'Yearly Class Attendance'!B28:B28","v":0},{"$f":"'Yearly Class Attendance'!C28:C28","v":0},null,null,null,null,null,null,null,null,null,null,null,null,null,null,null,null,null,null,null,null,null,null,null,null,null,null,null,null,null,null,null,0,0,0,0]
[null,{"$f":"'Yearly Class Attendance'!B29:C68","v":0},{"$f":"'Yearly Class Attendance'!C29:D68","v":0},null,null,null,null,null,null,null,null,null,null,null,null,null,null,null,null,null,null,null,null,null,null,null,null,null,null,null,null,null,null,null,{"$f":"COUNTIF(D29:AH29,\"*\"&AI$10&\"*\")","v":0},0,0,0]
[null,{"$f":"'Yearly Class Attendance'!B30:B30","v":0},{"$f":"'Yearly Class Attendance'!C30:C30","v":0},null,null,null,null,null,null,null,null,null,null,null,null,null,null,null,null,null,null,null,null,null,null,null,null,null,null,null,null,null,null,null,0,0,0,0]
[null,{"$f":"'Yearly Class Attendance'!B31:C70","v":0},{"$f":"'Yearly Class Attendance'!C31:D70","v":0},null,null,null,null,null,null,null,null,null,null,null,null,null,null,null,null,null,null,null,null,null,null,null,null,null,null,null,null,null,null,null,0,0,0,0]
[null,{"$f":"'Yearly Class Attendance'!B32:B32","v":0},{"$f":"'Yearly Class Attendance'!C32:C32","v":0},null,null,null,null,null,null,null,null,null,null,null,null,null,null,null,null,null,null,null,null,null,null,null,null,null,null,null,null,null,null,null,0,0,0,0]
[null,{"$f":"'Yearly Class Attendance'!B33:C72","v":0},{"$f":"'Yearly Class Attendance'!C33:D72","v":0},null,null,null,null,null,null,null,null,null,null,null,null,null,null,null,null,null,null,null,null,null,null,null,null,null,null,null,null,null,null,null,0,0,0,0]
[null,{"$f":"'Yearly Class Attendance'!B34:B34","v":0},{"$f":"'Yearly Class Attendance'!C34:C34","v":0},null,null,null,null,null,null,null,null,null,null,null,null,null,null,null,null,null,null,null,null,null,null,null,null,null,null,null,null,null,null,null,0,0,0,0]
[null,{"$f":"'Yearly Class Attendance'!B35:C74","v":0},{"$f":"'Yearly Class Attendance'!C35:D74","v":0},null,null,null,null,null,null,null,null,null,null,null,null,null,null,null,null,null,null,null,null,null,null,null,null,null,null,null,null,null,null,null,0,0,0,0]
[null,{"$f":"'Yearly Class Attendance'!B36:B36","v":0},{"$f":"'Yearly Class Attendance'!C36:C36","v":0},null,null,null,null,null,null,null,null,null,null,null,null,null,null,null,null,null,null,null,null,null,null,null,null,null,null,null,null,null,null,null,0,0,0,0]
[null,{"$f":"'Yearly Class Attendance'!B37:C76","v":0},{"$f":"'Yearly Class Attendance'!C37:D76","v":0},null,null,null,null,null,null,null,null,null,null,null,null,null,null,null,null,null,null,null,null,null,null,null,null,null,null,null,null,null,null,null,0,0,0,0]
[null,{"$f":"'Yearly Class Attendance'!B38:B38","v":0},{"$f":"'Yearly Class Attendance'!C38:C38","v":0},null,null,null,null,null,null,null,null,null,null,null,null,null,null,null,null,null,null,null,null,null,null,null,null,null,null,null,null,null,null,null,0,0,0,0]
[null,{"$f":"'Yearly Class Attendance'!B39:C78","v":0},{"$f":"'Yearly Class Attendance'!C39:D78","v":0},null,null,null,null,null,null,null,null,null,null,null,null,null,null,null,null,null,null,null,null,null,null,null,null,null,null,null,null,null,null,null,0,0,0,0]
[null,{"$f":"'Yearly Class Attendance'!B40:B40","v":0},{"$f":"'Yearly Class Attendance'!C40:C40","v":0},null,null,null,null,null,null,null,null,null,null,null,null,null,null,null,null,null,null,null,null,null,null,null,null,null,null,null,null,null,null,null,0,0,0,0]
[null,{"$f":"'Yearly Class Attendance'!B41:C80","v":0},{"$f":"'Yearly Class Attendance'!C41:D80","v":0},null,null,null,null,null,null,null,null,null,null,null,null,null,null,null,null,null,null,null,null,null,null,null,null,null,null,null,null,null,null,null,{"$f":"COUNTIF(D41:AH41,\"*\"&AI$10&\"*\")","v":0},{"$f":"COUNTIF(E41:AI41,\"*\"&AJ$10&\"*\")","v":0},{"$f":"COUNTIF(F41:AJ41,\"*\"&AK$10&\"*\")","v":0},{"$f":"COUNTIF(G41:AK41,\"*\"&AL$10&\"*\")","v":0}]
[null,{"$f":"'Yearly Class Attendance'!B42:B42","v":0},{"$f":"'Yearly Class Attendance'!C42:C42","v":0},null,null,null,null,null,null,null,null,null,null,null,null,null,null,null,null,null,null,null,null,null,null,null,null,null,null,null,null,null,null,null,0,0,0,0]
[null,{"$f":"'Yearly Class Attendance'!B43:C82","v":0},{"$f":"'Yearly Class Attendance'!C43:D82","v":0},null,null,null,null,null,null,null,null,null,null,null,null,null,null,null,null,null,null,null,null,null,null,null,null,null,null,null,null,null,null,null,0,0,0,0]
[null,{"$f":"'Yearly Class Attendance'!B44:B44","v":0},{"$f":"'Yearly Class Attendance'!C44:C44","v":0},null,null,null,null,null,null,null,null,null,null,null,null,null,null,null,null,null,null,null,null,null,null,null,null,null,null,null,null,null,null,null,0,0,0,0]
[null,{"$f":"'Yearly Class Attendance'!B45:C84","v":0},{"$f":"'Yearly Class Attendance'!C45:D84","v":0},null,null,null,null,null,null,null,null,null,null,null,null,null,null,null,null,null,null,null,null,null,null,null,null,null,null,null,null,null,null,null,0,0,0,0]
[null,{"$f":"'Yearly Class Attendance'!B46:B46","v":0},{"$f":"'Yearly Class Attendance'!C46:C46","v":0},null,null,null,null,null,null,null,null,null,null,null,null,null,null,null,null,null,null,null,null,null,null,null,null,null,null,null,null,null,null,null,0,0,0,0]
[null,{"$f":"'Yearly Class Attendance'!B47:C86","v":0},{"$f":"'Yearly Class Attendance'!C47:D86","v":0},null,null,null,null,null,null,null,null,null,null,null,null,null,null,null,null,null,null,null,null,null,null,null,null,null,null,null,null,null,null,null,0,0,0,0]
[null,{"$f":"'Yearly Class Attendance'!B48:B48","v":0},{"$f":"'Yearly Class Attendance'!C48:C48","v":0},null,null,null,null,null,null,null,null,null,null,null,null,null,null,null,null,null,null,null,null,null,null,null,null,null,null,null,null,null,null,null,0,0,0,0]
[null,{"$f":"'Yearly Class Attendance'!B49:C88","v":0},{"$f":"'Yearly Class Attendance'!C49:D88","v":0},null,null,null,null,null,null,null,null,null,null,null,null,null,null,null,null,null,null,null,null,null,null,null,null,null,null,null,null,null,null,null,0,0,0,0]
[null,{"$f":"'Yearly Class Attendance'!B50:B50","v":0},{"$f":"'Yearly Class Attendance'!C50:C50","v":0},null,null,null,null,null,null,null,null,null,null,null,null,null,null,null,null,null,null,null,null,null,null,null,null,null,null,null,null,null,null,null,0,0,0,0]
[]
[null,null,"CLICK HERE TO CREATE YEARLY CLASS ATTENDANCE SHEET TEMPLATES IN SMARTSHEET"]

{"sheet":"NOVEMBER","index":4,"n_rows":52,"n_cols":38,"rows_kept":52,"cut":false,"hidden":false,"merged":[[2,1,2,2],[2,4,2,15],[2,17,2,28],[2,30,2,37],[3,1,3,2],[3,4,3,15],[3,17,3,28],[3,30,3,36],[6,30,6,36],[4,30,4,36],[5,1,5,2],[5,4,5,15],[5,17,5,20],[5,21,5,25],[5,26,5,28],[5,30,5,36],[6,1,6,2],[6,4,6,15],[6,17,6,20],[6,21,6,25],[6,26,6,28],[51,2,51,33],[8,1,9,1],[8,2,9,2],[8,3,8,33],[8,34,8,37]]}
[null,"YEARLY CLASS ATTENDANCE SHEET"]
[]
[null,"SCHOOL NAME",null,null,"COURSE TITLE",null,null,null,null,null,null,null,null,null,null,null,null,"TIME / CLASS PERIOD",null,null,null,null,null,null,null,null,null,null,null,null,"KEY"]
[null,{"$f":"'Yearly Class Attendance'!B4:C4","v":0},null,null,{"$f":"'Yearly Class Attendance'!E4:P4","v":0},null,null,null,null,null,null,null,null,null,null,null,null,{"$f":"'Yearly Class Attendance'!R4:AC4","v":0},null,null,null,null,null,null,null,null,null,null,null,null,"PRESENT",null,null,null,null,null,null,"P"]
[null,null,null,null,null,null,null,null,null,null,null,null,null,null,null,null,null,null,null,null,null,null,null,null,null,null,null,null,null,null,"UNEXCUSED ABSENCE",null,null,null,null,null,null,"U"]
[null,"PROFESSOR NAME",null,null,"LOCATION",null,null,null,null,null,null,null,null,null,null,null,null,"SEMESTER",null,null,null,"MONTH",null,null,null,null,"YEAR",null,null,null,"EXCUSED ABSENCE",null,null,null,null,null,null,"E"]
[null,{"$f":"'Yearly Class Attendance'!B7:C7","v":0},null,null,{"$f":"'Yearly Class Attendance'!E7:P7","v":0},null,null,null,null,null,null,null,null,null,null,null,null,null,null,null,null,"NOVEMBER",null,null,null,null,null,null,null,null,"TARDY",null,null,null,null,null,null,"T"]
[]
[null,"STUDENT NAME","STUDENT ID","DATE",null,null,null,null,null,null,null,null,null,null,null,null,null,null,null,null,null,null,null,null,null,null,null,null,null,null,null,null,null,null,"TOTAL"]
[null,null,null,1,{"$f":"D10+1","v":2},{"$f":"E10+1","v":3},4,5,6,7,8,9,10,11,12,13,14,15,16,17,18,19,20,21,22,23,24,25,26,27,28,29,30,31,"P","U","E","T"]
[null,{"$f":"'Yearly Class Attendance'!B11:C50","v":0},{"$f":"'Yearly Class Attendance'!C11:D50","v":0},null,null,null,null,null,null,null,null,null,null,null,null,null,null,null,null,null,null,null,null,null,null,null,null,null,null,null,null,null,null,null,{"$f":"COUNTIF(D11:AH11,\"*\"&AI$10&\"*\")","v":0},{"$f":"COUNTIF(E11:AI11,\"*\"&AJ$10&\"*\")","v":0},0,0]
[null,{"$f":"'Yearly Class Attendance'!B12:B12","v":0},{"$f":"'Yearly Class Attendance'!C12:C12","v":0},null,null,null,null,null,null,null,null,null,null,null,null,null,null,null,null,null,null,null,null,null,null,null,null,null,null,null,null,null,null,null,{"$f":"COUNTIF(D12:AH12,\"*\"&AI$10&\"*\")","v":0},0,0,0]
[null,{"$f":"'Yearly Class Attendance'!B13:C52","v":0},{"$f":"'Yearly Class Attendance'!C13:D52","v":0},null,null,null,null,null,null,null,null,null,null,null,null,null,null,null,null,null,null,null,null,null,null,null,null,null,null,null,null,null,null,null,{"$f":"COUNTIF(D13:AH13,\"*\"&AI$10&\"*\")","v":0},0,0,0]
[null,{"$f":"'Yearly Class Attendance'!B14:B14","v":0},{"$f":"'Yearly Class Attendance'!C14:C14","v":0},null,null,null,null,null,null,null,null,null,null,null,null,null,null,null,null,null,null,null,null,null,null,null,null,null,null,null,null,null,null,null,0,0,0,0]
[null,{"$f":"'Yearly Class Attendance'!B15:C54","v":0},{"$f":"'Yearly Class Attendance'!C15:D54","v":0},null,null,null,null,null,null,null,null,null,null,null,null,null,null,null,null,null,null,null,null,null,null,null,null,null,null,null,null,null,null,null,0,0,0,0]
[null,{"$f":"'Yearly Class Attendance'!B16:B16","v":0},{"$f":"'Yearly Class Attendance'!C16:C16","v":0},null,null,null,null,null,null,null,null,null,null,null,null,null,null,null,null,null,null,null,null,null,null,null,null,null,null,null,null,null,null,null,0,0,0,0]
[null,{"$f":"'Yearly Class Attendance'!B17:C56","v":0},{"$f":"'Yearly Class Attendance'!C17:D56","v":0},null,null,null,null,null,null,null,null,null,null,null,null,null,null,null,null,null,null,null,null,null,null,null,null,null,null,null,null,null,null,null,0,0,0,0]
[null,{"$f":"'Yearly Class Attendance'!B18:B18","v":0},{"$f":"'Yearly Class Attendance'!C18:C18","v":0},null,null,null,null,null,null,null,null,null,null,null,null,null,null,null,null,null,null,null,null,null,null,null,null,null,null,null,null,null,null,null,0,0,0,0]
[null,{"$f":"'Yearly Class Attendance'!B19:C58","v":0},{"$f":"'Yearly Class Attendance'!C19:D58","v":0},null,null,null,null,null,null,null,null,null,null,null,null,null,null,null,null,null,null,null,null,null,null,null,null,null,null,null,null,null,null,null,0,0,0,0]
[null,{"$f":"'Yearly Class Attendance'!B20:B20","v":0},{"$f":"'Yearly Class Attendance'!C20:C20","v":0},null,null,null,null,null,null,null,null,null,null,null,null,null,null,null,null,null,null,null,null,null,null,null,null,null,null,null,null,null,null,null,0,0,0,0]
[null,{"$f":"'Yearly Class Attendance'!B21:C60","v":0},{"$f":"'Yearly Class Attendance'!C21:D60","v":0},null,null,null,null,null,null,null,null,null,null,null,null,null,null,null,null,null,null,null,null,null,null,null,null,null,null,null,null,null,null,null,0,0,0,0]
[null,{"$f":"'Yearly Class Attendance'!B22:B22","v":0},{"$f":"'Yearly Class Attendance'!C22:C22","v":0},null,null,null,null,null,null,null,null,null,null,null,null,null,null,null,null,null,null,null,null,null,null,null,null,null,null,null,null,null,null,null,0,0,0,0]
[null,{"$f":"'Yearly Class Attendance'!B23:C62","v":0},{"$f":"'Yearly Class Attendance'!C23:D62","v":0},null,null,null,null,null,null,null,null,null,null,null,null,null,null,null,null,null,null,null,null,null,null,null,null,null,null,null,null,null,null,null,0,0,0,0]
[null,{"$f":"'Yearly Class Attendance'!B24:B24","v":0},{"$f":"'Yearly Class Attendance'!C24:C24","v":0},null,null,null,null,null,null,null,null,null,null,null,null,null,null,null,null,null,null,null,null,null,null,null,null,null,null,null,null,null,null,null,0,0,0,0]
[null,{"$f":"'Yearly Class Attendance'!B25:C64","v":0},{"$f":"'Yearly Class Attendance'!C25:D64","v":0},null,null,null,null,null,null,null,null,null,null,null,null,null,null,null,null,null,null,null,null,null,null,null,null,null,null,null,null,null,null,null,0,0,0,0]
[null,{"$f":"'Yearly Class Attendance'!B26:B26","v":0},{"$f":"'Yearly Class Attendance'!C26:C26","v":0},null,null,null,null,null,null,null,null,null,null,null,null,null,null,null,null,null,null,null,null,null,null,null,null,null,null,null,null,null,null,null,0,0,0,0]
[null,{"$f":"'Yearly Class Attendance'!B27:C66","v":0},{"$f":"'Yearly Class Attendance'!C27:D66","v":0},null,null,null,null,null,null,null,null,null,null,null,null,null,null,null,null,null,null,null,null,null,null,null,null,null,null,null,null,null,null,null,0,0,0,0]
[null,{"$f":"'Yearly Class Attendance'!B28:B28","v":0},{"$f":"'Yearly Class Attendance'!C28:C28","v":0},null,null,null,null,null,null,null,null,null,null,null,null,null,null,null,null,null,null,null,null,null,null,null,null,null,null,null,null,null,null,null,0,0,0,0]
[null,{"$f":"'Yearly Class Attendance'!B29:C68","v":0},{"$f":"'Yearly Class Attendance'!C29:D68","v":0},null,null,null,null,null,null,null,null,null,null,null,null,null,null,null,null,null,null,null,null,null,null,null,null,null,null,null,null,null,null,null,{"$f":"COUNTIF(D29:AH29,\"*\"&AI$10&\"*\")","v":0},0,0,0]
[null,{"$f":"'Yearly Class Attendance'!B30:B30","v":0},{"$f":"'Yearly Class Attendance'!C30:C30","v":0},null,null,null,null,null,null,null,null,null,null,null,null,null,null,null,null,null,null,null,null,null,null,null,null,null,null,null,null,null,null,null,0,0,0,0]
[null,{"$f":"'Yearly Class Attendance'!B31:C70","v":0},{"$f":"'Yearly Class Attendance'!C31:D70","v":0},null,null,null,null,null,null,null,null,null,null,null,null,null,null,null,null,null,null,null,null,null,null,null,null,null,null,null,null,null,null,null,0,0,0,0]
[null,{"$f":"'Yearly Class Attendance'!B32:B32","v":0},{"$f":"'Yearly Class Attendance'!C32:C32","v":0},null,null,null,null,null,null,null,null,null,null,null,null,null,null,null,null,null,null,null,null,null,null,null,null,null,null,null,null,null,null,null,0,0,0,0]
[null,{"$f":"'Yearly Class Attendance'!B33:C72","v":0},{"$f":"'Yearly Class Attendance'!C33:D72","v":0},null,null,null,null,null,null,null,null,null,null,null,null,null,null,null,null,null,null,null,null,null,null,null,null,null,null,null,null,null,null,null,0,0,0,0]
[null,{"$f":"'Yearly Class Attendance'!B34:B34","v":0},{"$f":"'Yearly Class Attendance'!C34:C34","v":0},null,null,null,null,null,null,null,null,null,null,null,null,null,null,null,null,null,null,null,null,null,null,null,null,null,null,null,null,null,null,null,0,0,0,0]
[null,{"$f":"'Yearly Class Attendance'!B35:C74","v":0},{"$f":"'Yearly Class Attendance'!C35:D74","v":0},null,null,null,null,null,null,null,null,null,null,null,null,null,null,null,null,null,null,null,null,null,null,null,null,null,null,null,null,null,null,null,0,0,0,0]
[null,{"$f":"'Yearly Class Attendance'!B36:B36","v":0},{"$f":"'Yearly Class Attendance'!C36:C36","v":0},null,null,null,null,null,null,null,null,null,null,null,null,null,null,null,null,null,null,null,null,null,null,null,null,null,null,null,null,null,null,null,0,0,0,0]
[null,{"$f":"'Yearly Class Attendance'!B37:C76","v":0},{"$f":"'Yearly Class Attendance'!C37:D76","v":0},null,null,null,null,null,null,null,null,null,null,null,null,null,null,null,null,null,null,null,null,null,null,null,null,null,null,null,null,null,null,null,0,0,0,0]
[null,{"$f":"'Yearly Class Attendance'!B38:B38","v":0},{"$f":"'Yearly Class Attendance'!C38:C38","v":0},null,null,null,null,null,null,null,null,null,null,null,null,null,null,null,null,null,null,null,null,null,null,null,null,null,null,null,null,null,null,null,0,0,0,0]
[null,{"$f":"'Yearly Class Attendance'!B39:C78","v":0},{"$f":"'Yearly Class Attendance'!C39:D78","v":0},null,null,null,null,null,null,null,null,null,null,null,null,null,null,null,null,null,null,null,null,null,null,null,null,null,null,null,null,null,null,null,0,0,0,0]
[null,{"$f":"'Yearly Class Attendance'!B40:B40","v":0},{"$f":"'Yearly Class Attendance'!C40:C40","v":0},null,null,null,null,null,null,null,null,null,null,null,null,null,null,null,null,null,null,null,null,null,null,null,null,null,null,null,null,null,null,null,0,0,0,0]
[null,{"$f":"'Yearly Class Attendance'!B41:C80","v":0},{"$f":"'Yearly Class Attendance'!C41:D80","v":0},null,null,null,null,null,null,null,null,null,null,null,null,null,null,null,null,null,null,null,null,null,null,null,null,null,null,null,null,null,null,null,{"$f":"COUNTIF(D41:AH41,\"*\"&AI$10&\"*\")","v":0},{"$f":"COUNTIF(E41:AI41,\"*\"&AJ$10&\"*\")","v":0},{"$f":"COUNTIF(F41:AJ41,\"*\"&AK$10&\"*\")","v":0},{"$f":"COUNTIF(G41:AK41,\"*\"&AL$10&\"*\")","v":0}]
[null,{"$f":"'Yearly Class Attendance'!B42:B42","v":0},{"$f":"'Yearly Class Attendance'!C42:C42","v":0},null,null,null,null,null,null,null,null,null,null,null,null,null,null,null,null,null,null,null,null,null,null,null,null,null,null,null,null,null,null,null,0,0,0,0]
[null,{"$f":"'Yearly Class Attendance'!B43:C82","v":0},{"$f":"'Yearly Class Attendance'!C43:D82","v":0},null,null,null,null,null,null,null,null,null,null,null,null,null,null,null,null,null,null,null,null,null,null,null,null,null,null,null,null,null,null,null,0,0,0,0]
[null,{"$f":"'Yearly Class Attendance'!B44:B44","v":0},{"$f":"'Yearly Class Attendance'!C44:C44","v":0},null,null,null,null,null,null,null,null,null,null,null,null,null,null,null,null,null,null,null,null,null,null,null,null,null,null,null,null,null,null,null,0,0,0,0]
[null,{"$f":"'Yearly Class Attendance'!B45:C84","v":0},{"$f":"'Yearly Class Attendance'!C45:D84","v":0},null,null,null,null,null,null,null,null,null,null,null,null,null,null,null,null,null,null,null,null,null,null,null,null,null,null,null,null,null,null,null,0,0,0,0]
[null,{"$f":"'Yearly Class Attendance'!B46:B46","v":0},{"$f":"'Yearly Class Attendance'!C46:C46","v":0},null,null,null,null,null,null,null,null,null,null,null,null,null,null,null,null,null,null,null,null,null,null,null,null,null,null,null,null,null,null,null,0,0,0,0]
[null,{"$f":"'Yearly Class Attendance'!B47:C86","v":0},{"$f":"'Yearly Class Attendance'!C47:D86","v":0},null,null,null,null,null,null,null,null,null,null,null,null,null,null,null,null,null,null,null,null,null,null,null,null,null,null,null,null,null,null,null,0,0,0,0]
[null,{"$f":"'Yearly Class Attendance'!B48:B48","v":0},{"$f":"'Yearly Class Attendance'!C48:C48","v":0},null,null,null,null,null,null,null,null,null,null,null,null,null,null,null,null,null,null,null,null,null,null,null,null,null,null,null,null,null,null,null,0,0,0,0]
[null,{"$f":"'Yearly Class Attendance'!B49:C88","v":0},{"$f":"'Yearly Class Attendance'!C49:D88","v":0},null,null,null,null,null,null,null,null,null,null,null,null,null,null,null,null,null,null,null,null,null,null,null,null,null,null,null,null,null,null,null,0,0,0,0]
[null,{"$f":"'Yearly Class Attendance'!B50:B50","v":0},{"$f":"'Yearly Class Attendance'!C50:C50","v":0},null,null,null,null,null,null,null,null,null,null,null,null,null,null,null,null,null,null,null,null,null,null,null,null,null,null,null,null,null,null,null,0,0,0,0]
[]
[null,null,"CLICK HERE TO CREATE YEARLY CLASS ATTENDANCE SHEET TEMPLATES IN SMARTSHEET"]

{"sheet":"DECEMBER","index":5,"n_rows":52,"n_cols":38,"rows_kept":52,"cut":false,"hidden":false,"merged":[[2,1,2,2],[2,4,2,15],[2,17,2,28],[2,30,2,37],[3,1,3,2],[3,4,3,15],[3,17,3,28],[3,30,3,36],[6,30,6,36],[4,30,4,36],[5,1,5,2],[5,4,5,15],[5,17,5,20],[5,21,5,25],[5,26,5,28],[5,30,5,36],[6,1,6,2],[6,4,6,15],[6,17,6,20],[6,21,6,25],[6,26,6,28],[51,2,51,33],[8,1,9,1],[8,2,9,2],[8,3,8,33],[8,34,8,37]]}
[null,"YEARLY CLASS ATTENDANCE SHEET"]
[]
[null,"SCHOOL NAME",null,null,"COURSE TITLE",null,null,null,null,null,null,null,null,null,null,null,null,"TIME / CLASS PERIOD",null,null,null,null,null,null,null,null,null,null,null,null,"KEY"]
[null,{"$f":"'Yearly Class Attendance'!B4:C4","v":0},null,null,{"$f":"'Yearly Class Attendance'!E4:P4","v":0},null,null,null,null,null,null,null,null,null,null,null,null,{"$f":"'Yearly Class Attendance'!R4:AC4","v":0},null,null,null,null,null,null,null,null,null,null,null,null,"PRESENT",null,null,null,null,null,null,"P"]
[null,null,null,null,null,null,null,null,null,null,null,null,null,null,null,null,null,null,null,null,null,null,null,null,null,null,null,null,null,null,"UNEXCUSED ABSENCE",null,null,null,null,null,null,"U"]
[null,"PROFESSOR NAME",null,null,"LOCATION",null,null,null,null,null,null,null,null,null,null,null,null,"SEMESTER",null,null,null,"MONTH",null,null,null,null,"YEAR",null,null,null,"EXCUSED ABSENCE",null,null,null,null,null,null,"E"]
[null,{"$f":"'Yearly Class Attendance'!B7:C7","v":0},null,null,{"$f":"'Yearly Class Attendance'!E7:P7","v":0},null,null,null,null,null,null,null,null,null,null,null,null,null,null,null,null,"DECEMBER",null,null,null,null,null,null,null,null,"TARDY",null,null,null,null,null,null,"T"]
[]
[null,"STUDENT NAME","STUDENT ID","DATE",null,null,null,null,null,null,null,null,null,null,null,null,null,null,null,null,null,null,null,null,null,null,null,null,null,null,null,null,null,null,"TOTAL"]
[null,null,null,1,{"$f":"D10+1","v":2},{"$f":"E10+1","v":3},4,5,6,7,8,9,10,11,12,13,14,15,16,17,18,19,20,21,22,23,24,25,26,27,28,29,30,31,"P","U","E","T"]
[null,{"$f":"'Yearly Class Attendance'!B11:C50","v":0},{"$f":"'Yearly Class Attendance'!C11:D50","v":0},null,null,null,null,null,null,null,null,null,null,null,null,null,null,null,null,null,null,null,null,null,null,null,null,null,null,null,null,null,null,null,{"$f":"COUNTIF(D11:AH11,\"*\"&AI$10&\"*\")","v":0},{"$f":"COUNTIF(E11:AI11,\"*\"&AJ$10&\"*\")","v":0},0,0]
[null,{"$f":"'Yearly Class Attendance'!B12:B12","v":0},{"$f":"'Yearly Class Attendance'!C12:C12","v":0},null,null,null,null,null,null,null,null,null,null,null,null,null,null,null,null,null,null,null,null,null,null,null,null,null,null,null,null,null,null,null,{"$f":"COUNTIF(D12:AH12,\"*\"&AI$10&\"*\")","v":0},0,0,0]
[null,{"$f":"'Yearly Class Attendance'!B13:C52","v":0},{"$f":"'Yearly Class Attendance'!C13:D52","v":0},null,null,null,null,null,null,null,null,null,null,null,null,null,null,null,null,null,null,null,null,null,null,null,null,null,null,null,null,null,null,null,{"$f":"COUNTIF(D13:AH13,\"*\"&AI$10&\"*\")","v":0},0,0,0]
[null,{"$f":"'Yearly Class Attendance'!B14:B14","v":0},{"$f":"'Yearly Class Attendance'!C14:C14","v":0},null,null,null,null,null,null,null,null,null,null,null,null,null,null,null,null,null,null,null,null,null,null,null,null,null,null,null,null,null,null,null,0,0,0,0]
[null,{"$f":"'Yearly Class Attendance'!B15:C54","v":0},{"$f":"'Yearly Class Attendance'!C15:D54","v":0},null,null,null,null,null,null,null,null,null,null,null,null,null,null,null,null,null,null,null,null,null,null,null,null,null,null,null,null,null,null,null,0,0,0,0]
[null,{"$f":"'Yearly Class Attendance'!B16:B16","v":0},{"$f":"'Yearly Class Attendance'!C16:C16","v":0},null,null,null,null,null,null,null,null,null,null,null,null,null,null,null,null,null,null,null,null,null,null,null,null,null,null,null,null,null,null,null,0,0,0,0]
[null,{"$f":"'Yearly Class Attendance'!B17:C56","v":0},{"$f":"'Yearly Class Attendance'!C17:D56","v":0},null,null,null,null,null,null,null,null,null,null,null,null,null,null,null,null,null,null,null,null,null,null,null,null,null,null,null,null,null,null,null,0,0,0,0]
[null,{"$f":"'Yearly Class Attendance'!B18:B18","v":0},{"$f":"'Yearly Class Attendance'!C18:C18","v":0},null,null,null,null,null,null,null,null,null,null,null,null,null,null,null,null,null,null,null,null,null,null,null,null,null,null,null,null,null,null,null,0,0,0,0]
[null,{"$f":"'Yearly Class Attendance'!B19:C58","v":0},{"$f":"'Yearly Class Attendance'!C19:D58","v":0},null,null,null,null,null,null,null,null,null,null,null,null,null,null,null,null,null,null,null,null,null,null,null,null,null,null,null,null,null,null,null,0,0,0,0]
[null,{"$f":"'Yearly Class Attendance'!B20:B20","v":0},{"$f":"'Yearly Class Attendance'!C20:C20","v":0},null,null,null,null,null,null,null,null,null,null,null,null,null,null,null,null,null,null,null,null,null,null,null,null,null,null,null,null,null,null,null,0,0,0,0]
[null,{"$f":"'Yearly Class Attendance'!B21:C60","v":0},{"$f":"'Yearly Class Attendance'!C21:D60","v":0},null,null,null,null,null,null,null,null,null,null,null,null,null,null,null,null,null,null,null,null,null,null,null,null,null,null,null,null,null,null,null,0,0,0,0]
[null,{"$f":"'Yearly Class Attendance'!B22:B22","v":0},{"$f":"'Yearly Class Attendance'!C22:C22","v":0},null,null,null,null,null,null,null,null,null,null,null,null,null,null,null,null,null,null,null,null,null,null,null,null,null,null,null,null,null,null,null,0,0,0,0]
[null,{"$f":"'Yearly Class Attendance'!B23:C62","v":0},{"$f":"'Yearly Class Attendance'!C23:D62","v":0},null,null,null,null,null,null,null,null,null,null,null,null,null,null,null,null,null,null,null,null,null,null,null,null,null,null,null,null,null,null,null,0,0,0,0]
[null,{"$f":"'Yearly Class Attendance'!B24:B24","v":0},{"$f":"'Yearly Class Attendance'!C24:C24","v":0},null,null,null,null,null,null,null,null,null,null,null,null,null,null,null,null,null,null,null,null,null,null,null,null,null,null,null,null,null,null,null,0,0,0,0]
[null,{"$f":"'Yearly Class Attendance'!B25:C64","v":0},{"$f":"'Yearly Class Attendance'!C25:D64","v":0},null,null,null,null,null,null,null,null,null,null,null,null,null,null,null,null,null,null,null,null,null,null,null,null,null,null,null,null,null,null,null,0,0,0,0]
[null,{"$f":"'Yearly Class Attendance'!B26:B26","v":0},{"$f":"'Yearly Class Attendance'!C26:C26","v":0},null,null,null,null,null,null,null,null,null,null,null,null,null,null,null,null,null,null,null,null,null,null,null,null,null,null,null,null,null,null,null,0,0,0,0]
[null,{"$f":"'Yearly Class Attendance'!B27:C66","v":0},{"$f":"'Yearly Class Attendance'!C27:D66","v":0},null,null,null,null,null,null,null,null,null,null,null,null,null,null,null,null,null,null,null,null,null,null,null,null,null,null,null,null,null,null,null,0,0,0,0]
[null,{"$f":"'Yearly Class Attendance'!B28:B28","v":0},{"$f":"'Yearly Class Attendance'!C28:C28","v":0},null,null,null,null,null,null,null,null,null,null,null,null,null,null,null,null,null,null,null,null,null,null,null,null,null,null,null,null,null,null,null,0,0,0,0]
[null,{"$f":"'Yearly Class Attendance'!B29:C68","v":0},{"$f":"'Yearly Class Attendance'!C29:D68","v":0},null,null,null,null,null,null,null,null,null,null,null,null,null,null,null,null,null,null,null,null,null,null,null,null,null,null,null,null,null,null,null,{"$f":"COUNTIF(D29:AH29,\"*\"&AI$10&\"*\")","v":0},0,0,0]
[null,{"$f":"'Yearly Class Attendance'!B30:B30","v":0},{"$f":"'Yearly Class Attendance'!C30:C30","v":0},null,null,null,null,null,null,null,null,null,null,null,null,null,null,null,null,null,null,null,null,null,null,null,null,null,null,null,null,null,null,null,0,0,0,0]
[null,{"$f":"'Yearly Class Attendance'!B31:C70","v":0},{"$f":"'Yearly Class Attendance'!C31:D70","v":0},null,null,null,null,null,null,null,null,null,null,null,null,null,null,null,null,null,null,null,null,null,null,null,null,null,null,null,null,null,null,null,0,0,0,0]
[null,{"$f":"'Yearly Class Attendance'!B32:B32","v":0},{"$f":"'Yearly Class Attendance'!C32:C32","v":0},null,null,null,null,null,null,null,null,null,null,null,null,null,null,null,null,null,null,null,null,null,null,null,null,null,null,null,null,null,null,null,0,0,0,0]
[null,{"$f":"'Yearly Class Attendance'!B33:C72","v":0},{"$f":"'Yearly Class Attendance'!C33:D72","v":0},null,null,null,null,null,null,null,null,null,null,null,null,null,null,null,null,null,null,null,null,null,null,null,null,null,null,null,null,null,null,null,0,0,0,0]
[null,{"$f":"'Yearly Class Attendance'!B34:B34","v":0},{"$f":"'Yearly Class Attendance'!C34:C34","v":0},null,null,null,null,null,null,null,null,null,null,null,null,null,null,null,null,null,null,null,null,null,null,null,null,null,null,null,null,null,null,null,0,0,0,0]
[null,{"$f":"'Yearly Class Attendance'!B35:C74","v":0},{"$f":"'Yearly Class Attendance'!C35:D74","v":0},null,null,null,null,null,null,null,null,null,null,null,null,null,null,null,null,null,null,null,null,null,null,null,null,null,null,null,null,null,null,null,0,0,0,0]
[null,{"$f":"'Yearly Class Attendance'!B36:B36","v":0},{"$f":"'Yearly Class Attendance'!C36:C36","v":0},null,null,null,null,null,null,null,null,null,null,null,null,null,null,null,null,null,null,null,null,null,null,null,null,null,null,null,null,null,null,null,0,0,0,0]
[null,{"$f":"'Yearly Class Attendance'!B37:C76","v":0},{"$f":"'Yearly Class Attendance'!C37:D76","v":0},null,null,null,null,null,null,null,null,null,null,null,null,null,null,null,null,null,null,null,null,null,null,null,null,null,null,null,null,null,null,null,0,0,0,0]
[null,{"$f":"'Yearly Class Attendance'!B38:B38","v":0},{"$f":"'Yearly Class Attendance'!C38:C38","v":0},null,null,null,null,null,null,null,null,null,null,null,null,null,null,null,null,null,null,null,null,null,null,null,null,null,null,null,null,null,null,null,0,0,0,0]
[null,{"$f":"'Yearly Class Attendance'!B39:C78","v":0},{"$f":"'Yearly Class Attendance'!C39:D78","v":0},null,null,null,null,null,null,null,null,null,null,null,null,null,null,null,null,null,null,null,null,null,null,null,null,null,null,null,null,null,null,null,0,0,0,0]
[null,{"$f":"'Yearly Class Attendance'!B40:B40","v":0},{"$f":"'Yearly Class Attendance'!C40:C40","v":0},null,null,null,null,null,null,null,null,null,null,null,null,null,null,null,null,null,null,null,null,null,null,null,null,null,null,null,null,null,null,null,0,0,0,0]
[null,{"$f":"'Yearly Class Attendance'!B41:C80","v":0},{"$f":"'Yearly Class Attendance'!C41:D80","v":0},null,null,null,null,null,null,null,null,null,null,null,null,null,null,null,null,null,null,null,null,null,null,null,null,null,null,null,null,null,null,null,{"$f":"COUNTIF(D41:AH41,\"*\"&AI$10&\"*\")","v":0},{"$f":"COUNTIF(E41:AI41,\"*\"&AJ$10&\"*\")","v":0},{"$f":"COUNTIF(F41:AJ41,\"*\"&AK$10&\"*\")","v":0},{"$f":"COUNTIF(G41:AK41,\"*\"&AL$10&\"*\")","v":0}]
[null,{"$f":"'Yearly Class Attendance'!B42:B42","v":0},{"$f":"'Yearly Class Attendance'!C42:C42","v":0},null,null,null,null,null,null,null,null,null,null,null,null,null,null,null,null,null,null,null,null,null,null,null,null,null,null,null,null,null,null,null,0,0,0,0]
[null,{"$f":"'Yearly Class Attendance'!B43:C82","v":0},{"$f":"'Yearly Class Attendance'!C43:D82","v":0},null,null,null,null,null,null,null,null,null,null,null,null,null,null,null,null,null,null,null,null,null,null,null,null,null,null,null,null,null,null,null,0,0,0,0]
[null,{"$f":"'Yearly Class Attendance'!B44:B44","v":0},{"$f":"'Yearly Class Attendance'!C44:C44","v":0},null,null,null,null,null,null,null,null,null,null,null,null,null,null,null,null,null,null,null,null,null,null,null,null,null,null,null,null,null,null,null,0,0,0,0]
[null,{"$f":"'Yearly Class Attendance'!B45:C84","v":0},{"$f":"'Yearly Class Attendance'!C45:D84","v":0},null,null,null,null,null,null,null,null,null,null,null,null,null,null,null,null,null,null,null,null,null,null,null,null,null,null,null,null,null,null,null,0,0,0,0]
[null,{"$f":"'Yearly Class Attendance'!B46:B46","v":0},{"$f":"'Yearly Class Attendance'!C46:C46","v":0},null,null,null,null,null,null,null,null,null,null,null,null,null,null,null,null,null,null,null,null,null,null,null,null,null,null,null,null,null,null,null,0,0,0,0]
[null,{"$f":"'Yearly Class Attendance'!B47:C86","v":0},{"$f":"'Yearly Class Attendance'!C47:D86","v":0},null,null,null,null,null,null,null,null,null,null,null,null,null,null,null,null,null,null,null,null,null,null,null,null,null,null,null,null,null,null,null,0,0,0,0]
[null,{"$f":"'Yearly Class Attendance'!B48:B48","v":0},{"$f":"'Yearly Class Attendance'!C48:C48","v":0},null,null,null,null,null,null,null,null,null,null,null,null,null,null,null,null,null,null,null,null,null,null,null,null,null,null,null,null,null,null,null,0,0,0,0]
[null,{"$f":"'Yearly Class Attendance'!B49:C88","v":0},{"$f":"'Yearly Class Attendance'!C49:D88","v":0},null,null,null,null,null,null,null,null,null,null,null,null,null,null,null,null,null,null,null,null,null,null,null,null,null,null,null,null,null,null,null,0,0,0,0]
[null,{"$f":"'Yearly Class Attendance'!B50:B50","v":0},{"$f":"'Yearly Class Attendance'!C50:C50","v":0},null,null,null,null,null,null,null,null,null,null,null,null,null,null,null,null,null,null,null,null,null,null,null,null,null,null,null,null,null,null,null,0,0,0,0]
[]
[null,null,"CLICK HERE TO CREATE YEARLY CLASS ATTENDANCE SHEET TEMPLATES IN SMARTSHEET"]

{"sheet":"JANUARY","index":6,"n_rows":52,"n_cols":38,"rows_kept":52,"cut":false,"hidden":false,"merged":[[2,1,2,2],[2,4,2,15],[2,17,2,28],[2,30,2,37],[3,1,3,2],[3,4,3,15],[3,17,3,28],[3,30,3,36],[6,30,6,36],[4,30,4,36],[5,1,5,2],[5,4,5,15],[5,17,5,20],[5,21,5,25],[5,26,5,28],[5,30,5,36],[6,1,6,2],[6,4,6,15],[6,17,6,20],[6,21,6,25],[6,26,6,28],[51,2,51,33],[8,1,9,1],[8,2,9,2],[8,3,8,33],[8,34,8,37]]}
[null,"YEARLY CLASS ATTENDANCE SHEET"]
[]
[null,"SCHOOL NAME",null,null,"COURSE TITLE",null,null,null,null,null,null,null,null,null,null,null,null,"TIME / CLASS PERIOD",null,null,null,null,null,null,null,null,null,null,null,null,"KEY"]
[null,{"$f":"'Yearly Class Attendance'!B4:C4","v":0},null,null,{"$f":"'Yearly Class Attendance'!E4:P4","v":0},null,null,null,null,null,null,null,null,null,null,null,null,{"$f":"'Yearly Class Attendance'!R4:AC4","v":0},null,null,null,null,null,null,null,null,null,null,null,null,"PRESENT",null,null,null,null,null,null,"P"]
[null,null,null,null,null,null,null,null,null,null,null,null,null,null,null,null,null,null,null,null,null,null,null,null,null,null,null,null,null,null,"UNEXCUSED ABSENCE",null,null,null,null,null,null,"U"]
[null,"PROFESSOR NAME",null,null,"LOCATION",null,null,null,null,null,null,null,null,null,null,null,null,"SEMESTER",null,null,null,"MONTH",null,null,null,null,"YEAR",null,null,null,"EXCUSED ABSENCE",null,null,null,null,null,null,"E"]
[null,{"$f":"'Yearly Class Attendance'!B7:C7","v":0},null,null,{"$f":"'Yearly Class Attendance'!E7:P7","v":0},null,null,null,null,null,null,null,null,null,null,null,null,null,null,null,null,"JANUARY",null,null,null,null,null,null,null,null,"TARDY",null,null,null,null,null,null,"T"]
[]
[null,"STUDENT NAME","STUDENT ID","DATE",null,null,null,null,null,null,null,null,null,null,null,null,null,null,null,null,null,null,null,null,null,null,null,null,null,null,null,null,null,null,"TOTAL"]
[null,null,null,1,{"$f":"D10+1","v":2},{"$f":"E10+1","v":3},4,5,6,7,8,9,10,11,12,13,14,15,16,17,18,19,20,21,22,23,24,25,26,27,28,29,30,31,"P","U","E","T"]
[null,{"$f":"'Yearly Class Attendance'!B11:C50","v":0},{"$f":"'Yearly Class Attendance'!C11:D50","v":0},null,null,null,null,null,null,null,null,null,null,null,null,null,null,null,null,null,null,null,null,null,null,null,null,null,null,null,null,null,null,null,{"$f":"COUNTIF(D11:AH11,\"*\"&AI$10&\"*\")","v":0},{"$f":"COUNTIF(E11:AI11,\"*\"&AJ$10&\"*\")","v":0},0,0]
[null,{"$f":"'Yearly Class Attendance'!B12:B12","v":0},{"$f":"'Yearly Class Attendance'!C12:C12","v":0},null,null,null,null,null,null,null,null,null,null,null,null,null,null,null,null,null,null,null,null,null,null,null,null,null,null,null,null,null,null,null,{"$f":"COUNTIF(D12:AH12,\"*\"&AI$10&\"*\")","v":0},0,0,0]
[null,{"$f":"'Yearly Class Attendance'!B13:C52","v":0},{"$f":"'Yearly Class Attendance'!C13:D52","v":0},null,null,null,null,null,null,null,null,null,null,null,null,null,null,null,null,null,null,null,null,null,null,null,null,null,null,null,null,null,null,null,{"$f":"COUNTIF(D13:AH13,\"*\"&AI$10&\"*\")","v":0},0,0,0]
[null,{"$f":"'Yearly Class Attendance'!B14:B14","v":0},{"$f":"'Yearly Class Attendance'!C14:C14","v":0},null,null,null,null,null,null,null,null,null,null,null,null,null,null,null,null,null,null,null,null,null,null,null,null,null,null,null,null,null,null,null,0,0,0,0]
[null,{"$f":"'Yearly Class Attendance'!B15:C54","v":0},{"$f":"'Yearly Class Attendance'!C15:D54","v":0},null,null,null,null,null,null,null,null,null,null,null,null,null,null,null,null,null,null,null,null,null,null,null,null,null,null,null,null,null,null,null,0,0,0,0]
[null,{"$f":"'Yearly Class Attendance'!B16:B16","v":0},{"$f":"'Yearly Class Attendance'!C16:C16","v":0},null,null,null,null,null,null,null,null,null,null,null,null,null,null,null,null,null,null,null,null,null,null,null,null,null,null,null,null,null,null,null,0,0,0,0]
[null,{"$f":"'Yearly Class Attendance'!B17:C56","v":0},{"$f":"'Yearly Class Attendance'!C17:D56","v":0},null,null,null,null,null,null,null,null,null,null,null,null,null,null,null,null,null,null,null,null,null,null,null,null,null,null,null,null,null,null,null,0,0,0,0]
[null,{"$f":"'Yearly Class Attendance'!B18:B18","v":0},{"$f":"'Yearly Class Attendance'!C18:C18","v":0},null,null,null,null,null,null,null,null,null,null,null,null,null,null,null,null,null,null,null,null,null,null,null,null,null,null,null,null,null,null,null,0,0,0,0]
[null,{"$f":"'Yearly Class Attendance'!B19:C58","v":0},{"$f":"'Yearly Class Attendance'!C19:D58","v":0},null,null,null,null,null,null,null,null,null,null,null,null,null,null,null,null,null,null,null,null,null,null,null,null,null,null,null,null,null,null,null,0,0,0,0]
[null,{"$f":"'Yearly Class Attendance'!B20:B20","v":0},{"$f":"'Yearly Class Attendance'!C20:C20","v":0},null,null,null,null,null,null,null,null,null,null,null,null,null,null,null,null,null,null,null,null,null,null,null,null,null,null,null,null,null,null,null,0,0,0,0]
[null,{"$f":"'Yearly Class Attendance'!B21:C60","v":0},{"$f":"'Yearly Class Attendance'!C21:D60","v":0},null,null,null,null,null,null,null,null,null,null,null,null,null,null,null,null,null,null,null,null,null,null,null,null,null,null,null,null,null,null,null,0,0,0,0]
[null,{"$f":"'Yearly Class Attendance'!B22:B22","v":0},{"$f":"'Yearly Class Attendance'!C22:C22","v":0},null,null,null,null,null,null,null,null,null,null,null,null,null,null,null,null,null,null,null,null,null,null,null,null,null,null,null,null,null,null,null,0,0,0,0]
[null,{"$f":"'Yearly Class Attendance'!B23:C62","v":0},{"$f":"'Yearly Class Attendance'!C23:D62","v":0},null,null,null,null,null,null,null,null,null,null,null,null,null,null,null,null,null,null,null,null,null,null,null,null,null,null,null,null,null,null,null,0,0,0,0]
[null,{"$f":"'Yearly Class Attendance'!B24:B24","v":0},{"$f":"'Yearly Class Attendance'!C24:C24","v":0},null,null,null,null,null,null,null,null,null,null,null,null,null,null,null,null,null,null,null,null,null,null,null,null,null,null,null,null,null,null,null,0,0,0,0]
[null,{"$f":"'Yearly Class Attendance'!B25:C64","v":0},{"$f":"'Yearly Class Attendance'!C25:D64","v":0},null,null,null,null,null,null,null,null,null,null,null,null,null,null,null,null,null,null,null,null,null,null,null,null,null,null,null,null,null,null,null,0,0,0,0]
[null,{"$f":"'Yearly Class Attendance'!B26:B26","v":0},{"$f":"'Yearly Class Attendance'!C26:C26","v":0},null,null,null,null,null,null,null,null,null,null,null,null,null,null,null,null,null,null,null,null,null,null,null,null,null,null,null,null,null,null,null,0,0,0,0]
[null,{"$f":"'Yearly Class Attendance'!B27:C66","v":0},{"$f":"'Yearly Class Attendance'!C27:D66","v":0},null,null,null,null,null,null,null,null,null,null,null,null,null,null,null,null,null,null,null,null,null,null,null,null,null,null,null,null,null,null,null,0,0,0,0]
[null,{"$f":"'Yearly Class Attendance'!B28:B28","v":0},{"$f":"'Yearly Class Attendance'!C28:C28","v":0},null,null,null,null,null,null,null,null,null,null,null,null,null,null,null,null,null,null,null,null,null,null,null,null,null,null,null,null,null,null,null,0,0,0,0]
[null,{"$f":"'Yearly Class Attendance'!B29:C68","v":0},{"$f":"'Yearly Class Attendance'!C29:D68","v":0},null,null,null,null,null,null,null,null,null,null,null,null,null,null,null,null,null,null,null,null,null,null,null,null,null,null,null,null,null,null,null,{"$f":"COUNTIF(D29:AH29,\"*\"&AI$10&\"*\")","v":0},0,0,0]
[null,{"$f":"'Yearly Class Attendance'!B30:B30","v":0},{"$f":"'Yearly Class Attendance'!C30:C30","v":0},null,null,null,null,null,null,null,null,null,null,null,null,null,null,null,null,null,null,null,null,null,null,null,null,null,null,null,null,null,null,null,0,0,0,0]
[null,{"$f":"'Yearly Class Attendance'!B31:C70","v":0},{"$f":"'Yearly Class Attendance'!C31:D70","v":0},null,null,null,null,null,null,null,null,null,null,null,null,null,null,null,null,null,null,null,null,null,null,null,null,null,null,null,null,null,null,null,0,0,0,0]
[null,{"$f":"'Yearly Class Attendance'!B32:B32","v":0},{"$f":"'Yearly Class Attendance'!C32:C32","v":0},null,null,null,null,null,null,null,null,null,null,null,null,null,null,null,null,null,null,null,null,null,null,null,null,null,null,null,null,null,null,null,0,0,0,0]
[null,{"$f":"'Yearly Class Attendance'!B33:C72","v":0},{"$f":"'Yearly Class Attendance'!C33:D72","v":0},null,null,null,null,null,null,null,null,null,null,null,null,null,null,null,null,null,null,null,null,null,null,null,null,null,null,null,null,null,null,null,0,0,0,0]
[null,{"$f":"'Yearly Class Attendance'!B34:B34","v":0},{"$f":"'Yearly Class Attendance'!C34:C34","v":0},null,null,null,null,null,null,null,null,null,null,null,null,null,null,null,null,null,null,null,null,null,null,null,null,null,null,null,null,null,null,null,0,0,0,0]
[null,{"$f":"'Yearly Class Attendance'!B35:C74","v":0},{"$f":"'Yearly Class Attendance'!C35:D74","v":0},null,null,null,null,null,null,null,null,null,null,null,null,null,null,null,null,null,null,null,null,null,null,null,null,null,null,null,null,null,null,null,0,0,0,0]
[null,{"$f":"'Yearly Class Attendance'!B36:B36","v":0},{"$f":"'Yearly Class Attendance'!C36:C36","v":0},null,null,null,null,null,null,null,null,null,null,null,null,null,null,null,null,null,null,null,null,null,null,null,null,null,null,null,null,null,null,null,0,0,0,0]
[null,{"$f":"'Yearly Class Attendance'!B37:C76","v":0},{"$f":"'Yearly Class Attendance'!C37:D76","v":0},null,null,null,null,null,null,null,null,null,null,null,null,null,null,null,null,null,null,null,null,null,null,null,null,null,null,null,null,null,null,null,0,0,0,0]
[null,{"$f":"'Yearly Class Attendance'!B38:B38","v":0},{"$f":"'Yearly Class Attendance'!C38:C38","v":0},null,null,null,null,null,null,null,null,null,null,null,null,null,null,null,null,null,null,null,null,null,null,null,null,null,null,null,null,null,null,null,0,0,0,0]
[null,{"$f":"'Yearly Class Attendance'!B39:C78","v":0},{"$f":"'Yearly Class Attendance'!C39:D78","v":0},null,null,null,null,null,null,null,null,null,null,null,null,null,null,null,null,null,null,null,null,null,null,null,null,null,null,null,null,null,null,null,0,0,0,0]
[null,{"$f":"'Yearly Class Attendance'!B40:B40","v":0},{"$f":"'Yearly Class Attendance'!C40:C40","v":0},null,null,null,null,null,null,null,null,null,null,null,null,null,null,null,null,null,null,null,null,null,null,null,null,null,null,null,null,null,null,null,0,0,0,0]
[null,{"$f":"'Yearly Class Attendance'!B41:C80","v":0},{"$f":"'Yearly Class Attendance'!C41:D80","v":0},null,null,null,null,null,null,null,null,null,null,null,null,null,null,null,null,null,null,null,null,null,null,null,null,null,null,null,null,null,null,null,{"$f":"COUNTIF(D41:AH41,\"*\"&AI$10&\"*\")","v":0},{"$f":"COUNTIF(E41:AI41,\"*\"&AJ$10&\"*\")","v":0},{"$f":"COUNTIF(F41:AJ41,\"*\"&AK$10&\"*\")","v":0},{"$f":"COUNTIF(G41:AK41,\"*\"&AL$10&\"*\")","v":0}]
[null,{"$f":"'Yearly Class Attendance'!B42:B42","v":0},{"$f":"'Yearly Class Attendance'!C42:C42","v":0},null,null,null,null,null,null,null,null,null,null,null,null,null,null,null,null,null,null,null,null,null,null,null,null,null,null,null,null,null,null,null,0,0,0,0]
[null,{"$f":"'Yearly Class Attendance'!B43:C82","v":0},{"$f":"'Yearly Class Attendance'!C43:D82","v":0},null,null,null,null,null,null,null,null,null,null,null,null,null,null,null,null,null,null,null,null,null,null,null,null,null,null,null,null,null,null,null,0,0,0,0]
[null,{"$f":"'Yearly Class Attendance'!B44:B44","v":0},{"$f":"'Yearly Class Attendance'!C44:C44","v":0},null,null,null,null,null,null,null,null,null,null,null,null,null,null,null,null,null,null,null,null,null,null,null,null,null,null,null,null,null,null,null,0,0,0,0]
[null,{"$f":"'Yearly Class Attendance'!B45:C84","v":0},{"$f":"'Yearly Class Attendance'!C45:D84","v":0},null,null,null,null,null,null,null,null,null,null,null,null,null,null,null,null,null,null,null,null,null,null,null,null,null,null,null,null,null,null,null,0,0,0,0]
[null,{"$f":"'Yearly Class Attendance'!B46:B46","v":0},{"$f":"'Yearly Class Attendance'!C46:C46","v":0},null,null,null,null,null,null,null,null,null,null,null,null,null,null,null,null,null,null,null,null,null,null,null,null,null,null,null,null,null,null,null,0,0,0,0]
[null,{"$f":"'Yearly Class Attendance'!B47:C86","v":0},{"$f":"'Yearly Class Attendance'!C47:D86","v":0},null,null,null,null,null,null,null,null,null,null,null,null,null,null,null,null,null,null,null,null,null,null,null,null,null,null,null,null,null,null,null,0,0,0,0]
[null,{"$f":"'Yearly Class Attendance'!B48:B48","v":0},{"$f":"'Yearly Class Attendance'!C48:C48","v":0},null,null,null,null,null,null,null,null,null,null,null,null,null,null,null,null,null,null,null,null,null,null,null,null,null,null,null,null,null,null,null,0,0,0,0]
[null,{"$f":"'Yearly Class Attendance'!B49:C88","v":0},{"$f":"'Yearly Class Attendance'!C49:D88","v":0},null,null,null,null,null,null,null,null,null,null,null,null,null,null,null,null,null,null,null,null,null,null,null,null,null,null,null,null,null,null,null,0,0,0,0]
[null,{"$f":"'Yearly Class Attendance'!B50:B50","v":0},{"$f":"'Yearly Class Attendance'!C50:C50","v":0},null,null,null,null,null,null,null,null,null,null,null,null,null,null,null,null,null,null,null,null,null,null,null,null,null,null,null,null,null,null,null,0,0,0,0]
[]
[null,null,"CLICK HERE TO CREATE YEARLY CLASS ATTENDANCE SHEET TEMPLATES IN SMARTSHEET"]

{"sheet":"FEBRUARY","index":7,"n_rows":52,"n_cols":38,"rows_kept":52,"cut":false,"hidden":false,"merged":[[2,1,2,2],[2,4,2,15],[2,17,2,28],[2,30,2,37],[3,1,3,2],[3,4,3,15],[3,17,3,28],[3,30,3,36],[6,30,6,36],[4,30,4,36],[5,1,5,2],[5,4,5,15],[5,17,5,20],[5,21,5,25],[5,26,5,28],[5,30,5,36],[6,1,6,2],[6,4,6,15],[6,17,6,20],[6,21,6,25],[6,26,6,28],[51,2,51,33],[8,1,9,1],[8,2,9,2],[8,3,8,33],[8,34,8,37]]}
[null,"YEARLY CLASS ATTENDANCE SHEET"]
[]
[null,"SCHOOL NAME",null,null,"COURSE TITLE",null,null,null,null,null,null,null,null,null,null,null,null,"TIME / CLASS PERIOD",null,null,null,null,null,null,null,null,null,null,null,null,"KEY"]
[null,{"$f":"'Yearly Class Attendance'!B4:C4","v":0},null,null,{"$f":"'Yearly Class Attendance'!E4:P4","v":0},null,null,null,null,null,null,null,null,null,null,null,null,{"$f":"'Yearly Class Attendance'!R4:AC4","v":0},null,null,null,null,null,null,null,null,null,null,null,null,"PRESENT",null,null,null,null,null,null,"P"]
[null,null,null,null,null,null,null,null,null,null,null,null,null,null,null,null,null,null,null,null,null,null,null,null,null,null,null,null,null,null,"UNEXCUSED ABSENCE",null,null,null,null,null,null,"U"]
[null,"PROFESSOR NAME",null,null,"LOCATION",null,null,null,null,null,null,null,null,null,null,null,null,"SEMESTER",null,null,null,"MONTH",null,null,null,null,"YEAR",null,null,null,"EXCUSED ABSENCE",null,null,null,null,null,null,"E"]
[null,{"$f":"'Yearly Class Attendance'!B7:C7","v":0},null,null,{"$f":"'Yearly Class Attendance'!E7:P7","v":0},null,null,null,null,null,null,null,null,null,null,null,null,null,null,null,null,"FEBRUARY",null,null,null,null,null,null,null,null,"TARDY",null,null,null,null,null,null,"T"]
[]
[null,"STUDENT NAME","STUDENT ID","DATE",null,null,null,null,null,null,null,null,null,null,null,null,null,null,null,null,null,null,null,null,null,null,null,null,null,null,null,null,null,null,"TOTAL"]
[null,null,null,1,{"$f":"D10+1","v":2},{"$f":"E10+1","v":3},4,5,6,7,8,9,10,11,12,13,14,15,16,17,18,19,20,21,22,23,24,25,26,27,28,29,30,31,"P","U","E","T"]
[null,{"$f":"'Yearly Class Attendance'!B11:C50","v":0},{"$f":"'Yearly Class Attendance'!C11:D50","v":0},null,null,null,null,null,null,null,null,null,null,null,null,null,null,null,null,null,null,null,null,null,null,null,null,null,null,null,null,null,null,null,{"$f":"COUNTIF(D11:AH11,\"*\"&AI$10&\"*\")","v":0},{"$f":"COUNTIF(E11:AI11,\"*\"&AJ$10&\"*\")","v":0},0,0]
[null,{"$f":"'Yearly Class Attendance'!B12:B12","v":0},{"$f":"'Yearly Class Attendance'!C12:C12","v":0},null,null,null,null,null,null,null,null,null,null,null,null,null,null,null,null,null,null,null,null,null,null,null,null,null,null,null,null,null,null,null,{"$f":"COUNTIF(D12:AH12,\"*\"&AI$10&\"*\")","v":0},0,0,0]
[null,{"$f":"'Yearly Class Attendance'!B13:C52","v":0},{"$f":"'Yearly Class Attendance'!C13:D52","v":0},null,null,null,null,null,null,null,null,null,null,null,null,null,null,null,null,null,null,null,null,null,null,null,null,null,null,null,null,null,null,null,{"$f":"COUNTIF(D13:AH13,\"*\"&AI$10&\"*\")","v":0},0,0,0]
[null,{"$f":"'Yearly Class Attendance'!B14:B14","v":0},{"$f":"'Yearly Class Attendance'!C14:C14","v":0},null,null,null,null,null,null,null,null,null,null,null,null,null,null,null,null,null,null,null,null,null,null,null,null,null,null,null,null,null,null,null,0,0,0,0]
[null,{"$f":"'Yearly Class Attendance'!B15:C54","v":0},{"$f":"'Yearly Class Attendance'!C15:D54","v":0},null,null,null,null,null,null,null,null,null,null,null,null,null,null,null,null,null,null,null,null,null,null,null,null,null,null,null,null,null,null,null,0,0,0,0]
[null,{"$f":"'Yearly Class Attendance'!B16:B16","v":0},{"$f":"'Yearly Class Attendance'!C16:C16","v":0},null,null,null,null,null,null,null,null,null,null,null,null,null,null,null,null,null,null,null,null,null,null,null,null,null,null,null,null,null,null,null,0,0,0,0]
[null,{"$f":"'Yearly Class Attendance'!B17:C56","v":0},{"$f":"'Yearly Class Attendance'!C17:D56","v":0},null,null,null,null,null,null,null,null,null,null,null,null,null,null,null,null,null,null,null,null,null,null,null,null,null,null,null,null,null,null,null,0,0,0,0]
[null,{"$f":"'Yearly Class Attendance'!B18:B18","v":0},{"$f":"'Yearly Class Attendance'!C18:C18","v":0},null,null,null,null,null,null,null,null,null,null,null,null,null,null,null,null,null,null,null,null,null,null,null,null,null,null,null,null,null,null,null,0,0,0,0]
[null,{"$f":"'Yearly Class Attendance'!B19:C58","v":0},{"$f":"'Yearly Class Attendance'!C19:D58","v":0},null,null,null,null,null,null,null,null,null,null,null,null,null,null,null,null,null,null,null,null,null,null,null,null,null,null,null,null,null,null,null,0,0,0,0]
[null,{"$f":"'Yearly Class Attendance'!B20:B20","v":0},{"$f":"'Yearly Class Attendance'!C20:C20","v":0},null,null,null,null,null,null,null,null,null,null,null,null,null,null,null,null,null,null,null,null,null,null,null,null,null,null,null,null,null,null,null,0,0,0,0]
[null,{"$f":"'Yearly Class Attendance'!B21:C60","v":0},{"$f":"'Yearly Class Attendance'!C21:D60","v":0},null,null,null,null,null,null,null,null,null,null,null,null,null,null,null,null,null,null,null,null,null,null,null,null,null,null,null,null,null,null,null,0,0,0,0]
[null,{"$f":"'Yearly Class Attendance'!B22:B22","v":0},{"$f":"'Yearly Class Attendance'!C22:C22","v":0},null,null,null,null,null,null,null,null,null,null,null,null,null,null,null,null,null,null,null,null,null,null,null,null,null,null,null,null,null,null,null,0,0,0,0]
[null,{"$f":"'Yearly Class Attendance'!B23:C62","v":0},{"$f":"'Yearly Class Attendance'!C23:D62","v":0},null,null,null,null,null,null,null,null,null,null,null,null,null,null,null,null,null,null,null,null,null,null,null,null,null,null,null,null,null,null,null,0,0,0,0]
[null,{"$f":"'Yearly Class Attendance'!B24:B24","v":0},{"$f":"'Yearly Class Attendance'!C24:C24","v":0},null,null,null,null,null,null,null,null,null,null,null,null,null,null,null,null,null,null,null,null,null,null,null,null,null,null,null,null,null,null,null,0,0,0,0]
[null,{"$f":"'Yearly Class Attendance'!B25:C64","v":0},{"$f":"'Yearly Class Attendance'!C25:D64","v":0},null,null,null,null,null,null,null,null,null,null,null,null,null,null,null,null,null,null,null,null,null,null,null,null,null,null,null,null,null,null,null,0,0,0,0]
[null,{"$f":"'Yearly Class Attendance'!B26:B26","v":0},{"$f":"'Yearly Class Attendance'!C26:C26","v":0},null,null,null,null,null,null,null,null,null,null,null,null,null,null,null,null,null,null,null,null,null,null,null,null,null,null,null,null,null,null,null,0,0,0,0]
[null,{"$f":"'Yearly Class Attendance'!B27:C66","v":0},{"$f":"'Yearly Class Attendance'!C27:D66","v":0},null,null,null,null,null,null,null,null,null,null,null,null,null,null,null,null,null,null,null,null,null,null,null,null,null,null,null,null,null,null,null,0,0,0,0]
[null,{"$f":"'Yearly Class Attendance'!B28:B28","v":0},{"$f":"'Yearly Class Attendance'!C28:C28","v":0},null,null,null,null,null,null,null,null,null,null,null,null,null,null,null,null,null,null,null,null,null,null,null,null,null,null,null,null,null,null,null,0,0,0,0]
[null,{"$f":"'Yearly Class Attendance'!B29:C68","v":0},{"$f":"'Yearly Class Attendance'!C29:D68","v":0},null,null,null,null,null,null,null,null,null,null,null,null,null,null,null,null,null,null,null,null,null,null,null,null,null,null,null,null,null,null,null,{"$f":"COUNTIF(D29:AH29,\"*\"&AI$10&\"*\")","v":0},0,0,0]
[null,{"$f":"'Yearly Class Attendance'!B30:B30","v":0},{"$f":"'Yearly Class Attendance'!C30:C30","v":0},null,null,null,null,null,null,null,null,null,null,null,null,null,null,null,null,null,null,null,null,null,null,null,null,null,null,null,null,null,null,null,0,0,0,0]
[null,{"$f":"'Yearly Class Attendance'!B31:C70","v":0},{"$f":"'Yearly Class Attendance'!C31:D70","v":0},null,null,null,null,null,null,null,null,null,null,null,null,null,null,null,null,null,null,null,null,null,null,null,null,null,null,null,null,null,null,null,0,0,0,0]
[null,{"$f":"'Yearly Class Attendance'!B32:B32","v":0},{"$f":"'Yearly Class Attendance'!C32:C32","v":0},null,null,null,null,null,null,null,null,null,null,null,null,null,null,null,null,null,null,null,null,null,null,null,null,null,null,null,null,null,null,null,0,0,0,0]
[null,{"$f":"'Yearly Class Attendance'!B33:C72","v":0},{"$f":"'Yearly Class Attendance'!C33:D72","v":0},null,null,null,null,null,null,null,null,null,null,null,null,null,null,null,null,null,null,null,null,null,null,null,null,null,null,null,null,null,null,null,0,0,0,0]
[null,{"$f":"'Yearly Class Attendance'!B34:B34","v":0},{"$f":"'Yearly Class Attendance'!C34:C34","v":0},null,null,null,null,null,null,null,null,null,null,null,null,null,null,null,null,null,null,null,null,null,null,null,null,null,null,null,null,null,null,null,0,0,0,0]
[null,{"$f":"'Yearly Class Attendance'!B35:C74","v":0},{"$f":"'Yearly Class Attendance'!C35:D74","v":0},null,null,null,null,null,null,null,null,null,null,null,null,null,null,null,null,null,null,null,null,null,null,null,null,null,null,null,null,null,null,null,0,0,0,0]
[null,{"$f":"'Yearly Class Attendance'!B36:B36","v":0},{"$f":"'Yearly Class Attendance'!C36:C36","v":0},null,null,null,null,null,null,null,null,null,null,null,null,null,null,null,null,null,null,null,null,null,null,null,null,null,null,null,null,null,null,null,0,0,0,0]
[null,{"$f":"'Yearly Class Attendance'!B37:C76","v":0},{"$f":"'Yearly Class Attendance'!C37:D76","v":0},null,null,null,null,null,null,null,null,null,null,null,null,null,null,null,null,null,null,null,null,null,null,null,null,null,null,null,null,null,null,null,0,0,0,0]
[null,{"$f":"'Yearly Class Attendance'!B38:B38","v":0},{"$f":"'Yearly Class Attendance'!C38:C38","v":0},null,null,null,null,null,null,null,null,null,null,null,null,null,null,null,null,null,null,null,null,null,null,null,null,null,null,null,null,null,null,null,0,0,0,0]
[null,{"$f":"'Yearly Class Attendance'!B39:C78","v":0},{"$f":"'Yearly Class Attendance'!C39:D78","v":0},null,null,null,null,null,null,null,null,null,null,null,null,null,null,null,null,null,null,null,null,null,null,null,null,null,null,null,null,null,null,null,0,0,0,0]
[null,{"$f":"'Yearly Class Attendance'!B40:B40","v":0},{"$f":"'Yearly Class Attendance'!C40:C40","v":0},null,null,null,null,null,null,null,null,null,null,null,null,null,null,null,null,null,null,null,null,null,null,null,null,null,null,null,null,null,null,null,0,0,0,0]
[null,{"$f":"'Yearly Class Attendance'!B41:C80","v":0},{"$f":"'Yearly Class Attendance'!C41:D80","v":0},null,null,null,null,null,null,null,null,null,null,null,null,null,null,null,null,null,null,null,null,null,null,null,null,null,null,null,null,null,null,null,{"$f":"COUNTIF(D41:AH41,\"*\"&AI$10&\"*\")","v":0},{"$f":"COUNTIF(E41:AI41,\"*\"&AJ$10&\"*\")","v":0},{"$f":"COUNTIF(F41:AJ41,\"*\"&AK$10&\"*\")","v":0},{"$f":"COUNTIF(G41:AK41,\"*\"&AL$10&\"*\")","v":0}]
[null,{"$f":"'Yearly Class Attendance'!B42:B42","v":0},{"$f":"'Yearly Class Attendance'!C42:C42","v":0},null,null,null,null,null,null,null,null,null,null,null,null,null,null,null,null,null,null,null,null,null,null,null,null,null,null,null,null,null,null,null,0,0,0,0]
[null,{"$f":"'Yearly Class Attendance'!B43:C82","v":0},{"$f":"'Yearly Class Attendance'!C43:D82","v":0},null,null,null,null,null,null,null,null,null,null,null,null,null,null,null,null,null,null,null,null,null,null,null,null,null,null,null,null,null,null,null,0,0,0,0]
[null,{"$f":"'Yearly Class Attendance'!B44:B44","v":0},{"$f":"'Yearly Class Attendance'!C44:C44","v":0},null,null,null,null,null,null,null,null,null,null,null,null,null,null,null,null,null,null,null,null,null,null,null,null,null,null,null,null,null,null,null,0,0,0,0]
[null,{"$f":"'Yearly Class Attendance'!B45:C84","v":0},{"$f":"'Yearly Class Attendance'!C45:D84","v":0},null,null,null,null,null,null,null,null,null,null,null,null,null,null,null,null,null,null,null,null,null,null,null,null,null,null,null,null,null,null,null,0,0,0,0]
[null,{"$f":"'Yearly Class Attendance'!B46:B46","v":0},{"$f":"'Yearly Class Attendance'!C46:C46","v":0},null,null,null,null,null,null,null,null,null,null,null,null,null,null,null,null,null,null,null,null,null,null,null,null,null,null,null,null,null,null,null,0,0,0,0]
[null,{"$f":"'Yearly Class Attendance'!B47:C86","v":0},{"$f":"'Yearly Class Attendance'!C47:D86","v":0},null,null,null,null,null,null,null,null,null,null,null,null,null,null,null,null,null,null,null,null,null,null,null,null,null,null,null,null,null,null,null,0,0,0,0]
[null,{"$f":"'Yearly Class Attendance'!B48:B48","v":0},{"$f":"'Yearly Class Attendance'!C48:C48","v":0},null,null,null,null,null,null,null,null,null,null,null,null,null,null,null,null,null,null,null,null,null,null,null,null,null,null,null,null,null,null,null,0,0,0,0]
[null,{"$f":"'Yearly Class Attendance'!B49:C88","v":0},{"$f":"'Yearly Class Attendance'!C49:D88","v":0},null,null,null,null,null,null,null,null,null,null,null,null,null,null,null,null,null,null,null,null,null,null,null,null,null,null,null,null,null,null,null,0,0,0,0]
[null,{"$f":"'Yearly Class Attendance'!B50:B50","v":0},{"$f":"'Yearly Class Attendance'!C50:C50","v":0},null,null,null,null,null,null,null,null,null,null,null,null,null,null,null,null,null,null,null,null,null,null,null,null,null,null,null,null,null,null,null,0,0,0,0]
[]
[null,null,"CLICK HERE TO CREATE YEARLY CLASS ATTENDANCE SHEET TEMPLATES IN SMARTSHEET"]

{"sheet":"MARCH","index":8,"n_rows":52,"n_cols":38,"rows_kept":52,"cut":false,"hidden":false,"merged":[[2,1,2,2],[2,4,2,15],[2,17,2,28],[2,30,2,37],[3,1,3,2],[3,4,3,15],[3,17,3,28],[3,30,3,36],[6,30,6,36],[4,30,4,36],[5,1,5,2],[5,4,5,15],[5,17,5,20],[5,21,5,25],[5,26,5,28],[5,30,5,36],[6,1,6,2],[6,4,6,15],[6,17,6,20],[6,21,6,25],[6,26,6,28],[51,2,51,33],[8,1,9,1],[8,2,9,2],[8,3,8,33],[8,34,8,37]]}
[null,"YEARLY CLASS ATTENDANCE SHEET"]
[]
[null,"SCHOOL NAME",null,null,"COURSE TITLE",null,null,null,null,null,null,null,null,null,null,null,null,"TIME / CLASS PERIOD",null,null,null,null,null,null,null,null,null,null,null,null,"KEY"]
[null,{"$f":"'Yearly Class Attendance'!B4:C4","v":0},null,null,{"$f":"'Yearly Class Attendance'!E4:P4","v":0},null,null,null,null,null,null,null,null,null,null,null,null,{"$f":"'Yearly Class Attendance'!R4:AC4","v":0},null,null,null,null,null,null,null,null,null,null,null,null,"PRESENT",null,null,null,null,null,null,"P"]
[null,null,null,null,null,null,null,null,null,null,null,null,null,null,null,null,null,null,null,null,null,null,null,null,null,null,null,null,null,null,"UNEXCUSED ABSENCE",null,null,null,null,null,null,"U"]
[null,"PROFESSOR NAME",null,null,"LOCATION",null,null,null,null,null,null,null,null,null,null,null,null,"SEMESTER",null,null,null,"MONTH",null,null,null,null,"YEAR",null,null,null,"EXCUSED ABSENCE",null,null,null,null,null,null,"E"]
[null,{"$f":"'Yearly Class Attendance'!B7:C7","v":0},null,null,{"$f":"'Yearly Class Attendance'!E7:P7","v":0},null,null,null,null,null,null,null,null,null,null,null,null,null,null,null,null,"MARCH",null,null,null,null,null,null,null,null,"TARDY",null,null,null,null,null,null,"T"]
[]
[null,"STUDENT NAME","STUDENT ID","DATE",null,null,null,null,null,null,null,null,null,null,null,null,null,null,null,null,null,null,null,null,null,null,null,null,null,null,null,null,null,null,"TOTAL"]
[null,null,null,1,{"$f":"D10+1","v":2},{"$f":"E10+1","v":3},4,5,6,7,8,9,10,11,12,13,14,15,16,17,18,19,20,21,22,23,24,25,26,27,28,29,30,31,"P","U","E","T"]
[null,{"$f":"'Yearly Class Attendance'!B11:C50","v":0},{"$f":"'Yearly Class Attendance'!C11:D50","v":0},null,null,null,null,null,null,null,null,null,null,null,null,null,null,null,null,null,null,null,null,null,null,null,null,null,null,null,null,null,null,null,{"$f":"COUNTIF(D11:AH11,\"*\"&AI$10&\"*\")","v":0},{"$f":"COUNTIF(E11:AI11,\"*\"&AJ$10&\"*\")","v":0},0,0]
[null,{"$f":"'Yearly Class Attendance'!B12:B12","v":0},{"$f":"'Yearly Class Attendance'!C12:C12","v":0},null,null,null,null,null,null,null,null,null,null,null,null,null,null,null,null,null,null,null,null,null,null,null,null,null,null,null,null,null,null,null,{"$f":"COUNTIF(D12:AH12,\"*\"&AI$10&\"*\")","v":0},0,0,0]
[null,{"$f":"'Yearly Class Attendance'!B13:C52","v":0},{"$f":"'Yearly Class Attendance'!C13:D52","v":0},null,null,null,null,null,null,null,null,null,null,null,null,null,null,null,null,null,null,null,null,null,null,null,null,null,null,null,null,null,null,null,{"$f":"COUNTIF(D13:AH13,\"*\"&AI$10&\"*\")","v":0},0,0,0]
[null,{"$f":"'Yearly Class Attendance'!B14:B14","v":0},{"$f":"'Yearly Class Attendance'!C14:C14","v":0},null,null,null,null,null,null,null,null,null,null,null,null,null,null,null,null,null,null,null,null,null,null,null,null,null,null,null,null,null,null,null,0,0,0,0]
[null,{"$f":"'Yearly Class Attendance'!B15:C54","v":0},{"$f":"'Yearly Class Attendance'!C15:D54","v":0},null,null,null,null,null,null,null,null,null,null,null,null,null,null,null,null,null,null,null,null,null,null,null,null,null,null,null,null,null,null,null,0,0,0,0]
[null,{"$f":"'Yearly Class Attendance'!B16:B16","v":0},{"$f":"'Yearly Class Attendance'!C16:C16","v":0},null,null,null,null,null,null,null,null,null,null,null,null,null,null,null,null,null,null,null,null,null,null,null,null,null,null,null,null,null,null,null,0,0,0,0]
[null,{"$f":"'Yearly Class Attendance'!B17:C56","v":0},{"$f":"'Yearly Class Attendance'!C17:D56","v":0},null,null,null,null,null,null,null,null,null,null,null,null,null,null,null,null,null,null,null,null,null,null,null,null,null,null,null,null,null,null,null,0,0,0,0]
[null,{"$f":"'Yearly Class Attendance'!B18:B18","v":0},{"$f":"'Yearly Class Attendance'!C18:C18","v":0},null,null,null,null,null,null,null,null,null,null,null,null,null,null,null,null,null,null,null,null,null,null,null,null,null,null,null,null,null,null,null,0,0,0,0]
[null,{"$f":"'Yearly Class Attendance'!B19:C58","v":0},{"$f":"'Yearly Class Attendance'!C19:D58","v":0},null,null,null,null,null,null,null,null,null,null,null,null,null,null,null,null,null,null,null,null,null,null,null,null,null,null,null,null,null,null,null,0,0,0,0]
[null,{"$f":"'Yearly Class Attendance'!B20:B20","v":0},{"$f":"'Yearly Class Attendance'!C20:C20","v":0},null,null,null,null,null,null,null,null,null,null,null,null,null,null,null,null,null,null,null,null,null,null,null,null,null,null,null,null,null,null,null,0,0,0,0]
[null,{"$f":"'Yearly Class Attendance'!B21:C60","v":0},{"$f":"'Yearly Class Attendance'!C21:D60","v":0},null,null,null,null,null,null,null,null,null,null,null,null,null,null,null,null,null,null,null,null,null,null,null,null,null,null,null,null,null,null,null,0,0,0,0]
[null,{"$f":"'Yearly Class Attendance'!B22:B22","v":0},{"$f":"'Yearly Class Attendance'!C22:C22","v":0},null,null,null,null,null,null,null,null,null,null,null,null,null,null,null,null,null,null,null,null,null,null,null,null,null,null,null,null,null,null,null,0,0,0,0]
[null,{"$f":"'Yearly Class Attendance'!B23:C62","v":0},{"$f":"'Yearly Class Attendance'!C23:D62","v":0},null,null,null,null,null,null,null,null,null,null,null,null,null,null,null,null,null,null,null,null,null,null,null,null,null,null,null,null,null,null,null,0,0,0,0]
[null,{"$f":"'Yearly Class Attendance'!B24:B24","v":0},{"$f":"'Yearly Class Attendance'!C24:C24","v":0},null,null,null,null,null,null,null,null,null,null,null,null,null,null,null,null,null,null,null,null,null,null,null,null,null,null,null,null,null,null,null,0,0,0,0]
[null,{"$f":"'Yearly Class Attendance'!B25:C64","v":0},{"$f":"'Yearly Class Attendance'!C25:D64","v":0},null,null,null,null,null,null,null,null,null,null,null,null,null,null,null,null,null,null,null,null,null,null,null,null,null,null,null,null,null,null,null,0,0,0,0]
[null,{"$f":"'Yearly Class Attendance'!B26:B26","v":0},{"$f":"'Yearly Class Attendance'!C26:C26","v":0},null,null,null,null,null,null,null,null,null,null,null,null,null,null,null,null,null,null,null,null,null,null,null,null,null,null,null,null,null,null,null,0,0,0,0]
[null,{"$f":"'Yearly Class Attendance'!B27:C66","v":0},{"$f":"'Yearly Class Attendance'!C27:D66","v":0},null,null,null,null,null,null,null,null,null,null,null,null,null,null,null,null,null,null,null,null,null,null,null,null,null,null,null,null,null,null,null,0,0,0,0]
[null,{"$f":"'Yearly Class Attendance'!B28:B28","v":0},{"$f":"'Yearly Class Attendance'!C28:C28","v":0},null,null,null,null,null,null,null,null,null,null,null,null,null,null,null,null,null,null,null,null,null,null,null,null,null,null,null,null,null,null,null,0,0,0,0]
[null,{"$f":"'Yearly Class Attendance'!B29:C68","v":0},{"$f":"'Yearly Class Attendance'!C29:D68","v":0},null,null,null,null,null,null,null,null,null,null,null,null,null,null,null,null,null,null,null,null,null,null,null,null,null,null,null,null,null,null,null,{"$f":"COUNTIF(D29:AH29,\"*\"&AI$10&\"*\")","v":0},0,0,0]
[null,{"$f":"'Yearly Class Attendance'!B30:B30","v":0},{"$f":"'Yearly Class Attendance'!C30:C30","v":0},null,null,null,null,null,null,null,null,null,null,null,null,null,null,null,null,null,null,null,null,null,null,null,null,null,null,null,null,null,null,null,0,0,0,0]
[null,{"$f":"'Yearly Class Attendance'!B31:C70","v":0},{"$f":"'Yearly Class Attendance'!C31:D70","v":0},null,null,null,null,null,null,null,null,null,null,null,null,null,null,null,null,null,null,null,null,null,null,null,null,null,null,null,null,null,null,null,0,0,0,0]
[null,{"$f":"'Yearly Class Attendance'!B32:B32","v":0},{"$f":"'Yearly Class Attendance'!C32:C32","v":0},null,null,null,null,null,null,null,null,null,null,null,null,null,null,null,null,null,null,null,null,null,null,null,null,null,null,null,null,null,null,null,0,0,0,0]
[null,{"$f":"'Yearly Class Attendance'!B33:C72","v":0},{"$f":"'Yearly Class Attendance'!C33:D72","v":0},null,null,null,null,null,null,null,null,null,null,null,null,null,null,null,null,null,null,null,null,null,null,null,null,null,null,null,null,null,null,null,0,0,0,0]
[null,{"$f":"'Yearly Class Attendance'!B34:B34","v":0},{"$f":"'Yearly Class Attendance'!C34:C34","v":0},null,null,null,null,null,null,null,null,null,null,null,null,null,null,null,null,null,null,null,null,null,null,null,null,null,null,null,null,null,null,null,0,0,0,0]
[null,{"$f":"'Yearly Class Attendance'!B35:C74","v":0},{"$f":"'Yearly Class Attendance'!C35:D74","v":0},null,null,null,null,null,null,null,null,null,null,null,null,null,null,null,null,null,null,null,null,null,null,null,null,null,null,null,null,null,null,null,0,0,0,0]
[null,{"$f":"'Yearly Class Attendance'!B36:B36","v":0},{"$f":"'Yearly Class Attendance'!C36:C36","v":0},null,null,null,null,null,null,null,null,null,null,null,null,null,null,null,null,null,null,null,null,null,null,null,null,null,null,null,null,null,null,null,0,0,0,0]
[null,{"$f":"'Yearly Class Attendance'!B37:C76","v":0},{"$f":"'Yearly Class Attendance'!C37:D76","v":0},null,null,null,null,null,null,null,null,null,null,null,null,null,null,null,null,null,null,null,null,null,null,null,null,null,null,null,null,null,null,null,0,0,0,0]
[null,{"$f":"'Yearly Class Attendance'!B38:B38","v":0},{"$f":"'Yearly Class Attendance'!C38:C38","v":0},null,null,null,null,null,null,null,null,null,null,null,null,null,null,null,null,null,null,null,null,null,null,null,null,null,null,null,null,null,null,null,0,0,0,0]
[null,{"$f":"'Yearly Class Attendance'!B39:C78","v":0},{"$f":"'Yearly Class Attendance'!C39:D78","v":0},null,null,null,null,null,null,null,null,null,null,null,null,null,null,null,null,null,null,null,null,null,null,null,null,null,null,null,null,null,null,null,0,0,0,0]
[null,{"$f":"'Yearly Class Attendance'!B40:B40","v":0},{"$f":"'Yearly Class Attendance'!C40:C40","v":0},null,null,null,null,null,null,null,null,null,null,null,null,null,null,null,null,null,null,null,null,null,null,null,null,null,null,null,null,null,null,null,0,0,0,0]
[null,{"$f":"'Yearly Class Attendance'!B41:C80","v":0},{"$f":"'Yearly Class Attendance'!C41:D80","v":0},null,null,null,null,null,null,null,null,null,null,null,null,null,null,null,null,null,null,null,null,null,null,null,null,null,null,null,null,null,null,null,{"$f":"COUNTIF(D41:AH41,\"*\"&AI$10&\"*\")","v":0},{"$f":"COUNTIF(E41:AI41,\"*\"&AJ$10&\"*\")","v":0},{"$f":"COUNTIF(F41:AJ41,\"*\"&AK$10&\"*\")","v":0},{"$f":"COUNTIF(G41:AK41,\"*\"&AL$10&\"*\")","v":0}]
[null,{"$f":"'Yearly Class Attendance'!B42:B42","v":0},{"$f":"'Yearly Class Attendance'!C42:C42","v":0},null,null,null,null,null,null,null,null,null,null,null,null,null,null,null,null,null,null,null,null,null,null,null,null,null,null,null,null,null,null,null,0,0,0,0]
[null,{"$f":"'Yearly Class Attendance'!B43:C82","v":0},{"$f":"'Yearly Class Attendance'!C43:D82","v":0},null,null,null,null,null,null,null,null,null,null,null,null,null,null,null,null,null,null,null,null,null,null,null,null,null,null,null,null,null,null,null,0,0,0,0]
[null,{"$f":"'Yearly Class Attendance'!B44:B44","v":0},{"$f":"'Yearly Class Attendance'!C44:C44","v":0},null,null,null,null,null,null,null,null,null,null,null,null,null,null,null,null,null,null,null,null,null,null,null,null,null,null,null,null,null,null,null,0,0,0,0]
[null,{"$f":"'Yearly Class Attendance'!B45:C84","v":0},{"$f":"'Yearly Class Attendance'!C45:D84","v":0},null,null,null,null,null,null,null,null,null,null,null,null,null,null,null,null,null,null,null,null,null,null,null,null,null,null,null,null,null,null,null,0,0,0,0]
[null,{"$f":"'Yearly Class Attendance'!B46:B46","v":0},{"$f":"'Yearly Class Attendance'!C46:C46","v":0},null,null,null,null,null,null,null,null,null,null,null,null,null,null,null,null,null,null,null,null,null,null,null,null,null,null,null,null,null,null,null,0,0,0,0]
[null,{"$f":"'Yearly Class Attendance'!B47:C86","v":0},{"$f":"'Yearly Class Attendance'!C47:D86","v":0},null,null,null,null,null,null,null,null,null,null,null,null,null,null,null,null,null,null,null,null,null,null,null,null,null,null,null,null,null,null,null,0,0,0,0]
[null,{"$f":"'Yearly Class Attendance'!B48:B48","v":0},{"$f":"'Yearly Class Attendance'!C48:C48","v":0},null,null,null,null,null,null,null,null,null,null,null,null,null,null,null,null,null,null,null,null,null,null,null,null,null,null,null,null,null,null,null,0,0,0,0]
[null,{"$f":"'Yearly Class Attendance'!B49:C88","v":0},{"$f":"'Yearly Class Attendance'!C49:D88","v":0},null,null,null,null,null,null,null,null,null,null,null,null,null,null,null,null,null,null,null,null,null,null,null,null,null,null,null,null,null,null,null,0,0,0,0]
[null,{"$f":"'Yearly Class Attendance'!B50:B50","v":0},{"$f":"'Yearly Class Attendance'!C50:C50","v":0},null,null,null,null,null,null,null,null,null,null,null,null,null,null,null,null,null,null,null,null,null,null,null,null,null,null,null,null,null,null,null,0,0,0,0]
[]
[null,null,"CLICK HERE TO CREATE YEARLY CLASS ATTENDANCE SHEET TEMPLATES IN SMARTSHEET"]

{"sheet":"APRIL","index":9,"n_rows":52,"n_cols":38,"rows_kept":52,"cut":false,"hidden":false,"merged":[[2,1,2,2],[2,4,2,15],[2,17,2,28],[2,30,2,37],[3,1,3,2],[3,4,3,15],[3,17,3,28],[3,30,3,36],[6,30,6,36],[4,30,4,36],[5,1,5,2],[5,4,5,15],[5,17,5,20],[5,21,5,25],[5,26,5,28],[5,30,5,36],[6,1,6,2],[6,4,6,15],[6,17,6,20],[6,21,6,25],[6,26,6,28],[51,2,51,33],[8,1,9,1],[8,2,9,2],[8,3,8,33],[8,34,8,37]]}
[null,"YEARLY CLASS ATTENDANCE SHEET"]
[]
[null,"SCHOOL NAME",null,null,"COURSE TITLE",null,null,null,null,null,null,null,null,null,null,null,null,"TIME / CLASS PERIOD",null,null,null,null,null,null,null,null,null,null,null,null,"KEY"]
[null,{"$f":"'Yearly Class Attendance'!B4:C4","v":0},null,null,{"$f":"'Yearly Class Attendance'!E4:P4","v":0},null,null,null,null,null,null,null,null,null,null,null,null,{"$f":"'Yearly Class Attendance'!R4:AC4","v":0},null,null,null,null,null,null,null,null,null,null,null,null,"PRESENT",null,null,null,null,null,null,"P"]
[null,null,null,null,null,null,null,null,null,null,null,null,null,null,null,null,null,null,null,null,null,null,null,null,null,null,null,null,null,null,"UNEXCUSED ABSENCE",null,null,null,null,null,null,"U"]
[null,"PROFESSOR NAME",null,null,"LOCATION",null,null,null,null,null,null,null,null,null,null,null,null,"SEMESTER",null,null,null,"MONTH",null,null,null,null,"YEAR",null,null,null,"EXCUSED ABSENCE",null,null,null,null,null,null,"E"]
[null,{"$f":"'Yearly Class Attendance'!B7:C7","v":0},null,null,{"$f":"'Yearly Class Attendance'!E7:P7","v":0},null,null,null,null,null,null,null,null,null,null,null,null,null,null,null,null,"APRIL",null,null,null,null,null,null,null,null,"TARDY",null,null,null,null,null,null,"T"]
[]
[null,"STUDENT NAME","STUDENT ID","DATE",null,null,null,null,null,null,null,null,null,null,null,null,null,null,null,null,null,null,null,null,null,null,null,null,null,null,null,null,null,null,"TOTAL"]
[null,null,null,1,{"$f":"D10+1","v":2},{"$f":"E10+1","v":3},4,5,6,7,8,9,10,11,12,13,14,15,16,17,18,19,20,21,22,23,24,25,26,27,28,29,30,31,"P","U","E","T"]
[null,{"$f":"'Yearly Class Attendance'!B11:C50","v":0},{"$f":"'Yearly Class Attendance'!C11:D50","v":0},null,null,null,null,null,null,null,null,null,null,null,null,null,null,null,null,null,null,null,null,null,null,null,null,null,null,null,null,null,null,null,{"$f":"COUNTIF(D11:AH11,\"*\"&AI$10&\"*\")","v":0},{"$f":"COUNTIF(E11:AI11,\"*\"&AJ$10&\"*\")","v":0},0,0]
[null,{"$f":"'Yearly Class Attendance'!B12:B12","v":0},{"$f":"'Yearly Class Attendance'!C12:C12","v":0},null,null,null,null,null,null,null,null,null,null,null,null,null,null,null,null,null,null,null,null,null,null,null,null,null,null,null,null,null,null,null,{"$f":"COUNTIF(D12:AH12,\"*\"&AI$10&\"*\")","v":0},0,0,0]
[null,{"$f":"'Yearly Class Attendance'!B13:C52","v":0},{"$f":"'Yearly Class Attendance'!C13:D52","v":0},null,null,null,null,null,null,null,null,null,null,null,null,null,null,null,null,null,null,null,null,null,null,null,null,null,null,null,null,null,null,null,{"$f":"COUNTIF(D13:AH13,\"*\"&AI$10&\"*\")","v":0},0,0,0]
[null,{"$f":"'Yearly Class Attendance'!B14:B14","v":0},{"$f":"'Yearly Class Attendance'!C14:C14","v":0},null,null,null,null,null,null,null,null,null,null,null,null,null,null,null,null,null,null,null,null,null,null,null,null,null,null,null,null,null,null,null,0,0,0,0]
[null,{"$f":"'Yearly Class Attendance'!B15:C54","v":0},{"$f":"'Yearly Class Attendance'!C15:D54","v":0},null,null,null,null,null,null,null,null,null,null,null,null,null,null,null,null,null,null,null,null,null,null,null,null,null,null,null,null,null,null,null,0,0,0,0]
[null,{"$f":"'Yearly Class Attendance'!B16:B16","v":0},{"$f":"'Yearly Class Attendance'!C16:C16","v":0},null,null,null,null,null,null,null,null,null,null,null,null,null,null,null,null,null,null,null,null,null,null,null,null,null,null,null,null,null,null,null,0,0,0,0]
[null,{"$f":"'Yearly Class Attendance'!B17:C56","v":0},{"$f":"'Yearly Class Attendance'!C17:D56","v":0},null,null,null,null,null,null,null,null,null,null,null,null,null,null,null,null,null,null,null,null,null,null,null,null,null,null,null,null,null,null,null,0,0,0,0]
[null,{"$f":"'Yearly Class Attendance'!B18:B18","v":0},{"$f":"'Yearly Class Attendance'!C18:C18","v":0},null,null,null,null,null,null,null,null,null,null,null,null,null,null,null,null,null,null,null,null,null,null,null,null,null,null,null,null,null,null,null,0,0,0,0]
[null,{"$f":"'Yearly Class Attendance'!B19:C58","v":0},{"$f":"'Yearly Class Attendance'!C19:D58","v":0},null,null,null,null,null,null,null,null,null,null,null,null,null,null,null,null,null,null,null,null,null,null,null,null,null,null,null,null,null,null,null,0,0,0,0]
[null,{"$f":"'Yearly Class Attendance'!B20:B20","v":0},{"$f":"'Yearly Class Attendance'!C20:C20","v":0},null,null,null,null,null,null,null,null,null,null,null,null,null,null,null,null,null,null,null,null,null,null,null,null,null,null,null,null,null,null,null,0,0,0,0]
[null,{"$f":"'Yearly Class Attendance'!B21:C60","v":0},{"$f":"'Yearly Class Attendance'!C21:D60","v":0},null,null,null,null,null,null,null,null,null,null,null,null,null,null,null,null,null,null,null,null,null,null,null,null,null,null,null,null,null,null,null,0,0,0,0]
[null,{"$f":"'Yearly Class Attendance'!B22:B22","v":0},{"$f":"'Yearly Class Attendance'!C22:C22","v":0},null,null,null,null,null,null,null,null,null,null,null,null,null,null,null,null,null,null,null,null,null,null,null,null,null,null,null,null,null,null,null,0,0,0,0]
[null,{"$f":"'Yearly Class Attendance'!B23:C62","v":0},{"$f":"'Yearly Class Attendance'!C23:D62","v":0},null,null,null,null,null,null,null,null,null,null,null,null,null,null,null,null,null,null,null,null,null,null,null,null,null,null,null,null,null,null,null,0,0,0,0]
[null,{"$f":"'Yearly Class Attendance'!B24:B24","v":0},{"$f":"'Yearly Class Attendance'!C24:C24","v":0},null,null,null,null,null,null,null,null,null,null,null,null,null,null,null,null,null,null,null,null,null,null,null,null,null,null,null,null,null,null,null,0,0,0,0]
[null,{"$f":"'Yearly Class Attendance'!B25:C64","v":0},{"$f":"'Yearly Class Attendance'!C25:D64","v":0},null,null,null,null,null,null,null,null,null,null,null,null,null,null,null,null,null,null,null,null,null,null,null,null,null,null,null,null,null,null,null,0,0,0,0]
[null,{"$f":"'Yearly Class Attendance'!B26:B26","v":0},{"$f":"'Yearly Class Attendance'!C26:C26","v":0},null,null,null,null,null,null,null,null,null,null,null,null,null,null,null,null,null,null,null,null,null,null,null,null,null,null,null,null,null,null,null,0,0,0,0]
[null,{"$f":"'Yearly Class Attendance'!B27:C66","v":0},{"$f":"'Yearly Class Attendance'!C27:D66","v":0},null,null,null,null,null,null,null,null,null,null,null,null,null,null,null,null,null,null,null,null,null,null,null,null,null,null,null,null,null,null,null,0,0,0,0]
[null,{"$f":"'Yearly Class Attendance'!B28:B28","v":0},{"$f":"'Yearly Class Attendance'!C28:C28","v":0},null,null,null,null,null,null,null,null,null,null,null,null,null,null,null,null,null,null,null,null,null,null,null,null,null,null,null,null,null,null,null,0,0,0,0]
[null,{"$f":"'Yearly Class Attendance'!B29:C68","v":0},{"$f":"'Yearly Class Attendance'!C29:D68","v":0},null,null,null,null,null,null,null,null,null,null,null,null,null,null,null,null,null,null,null,null,null,null,null,null,null,null,null,null,null,null,null,{"$f":"COUNTIF(D29:AH29,\"*\"&AI$10&\"*\")","v":0},0,0,0]
[null,{"$f":"'Yearly Class Attendance'!B30:B30","v":0},{"$f":"'Yearly Class Attendance'!C30:C30","v":0},null,null,null,null,null,null,null,null,null,null,null,null,null,null,null,null,null,null,null,null,null,null,null,null,null,null,null,null,null,null,null,0,0,0,0]
[null,{"$f":"'Yearly Class Attendance'!B31:C70","v":0},{"$f":"'Yearly Class Attendance'!C31:D70","v":0},null,null,null,null,null,null,null,null,null,null,null,null,null,null,null,null,null,null,null,null,null,null,null,null,null,null,null,null,null,null,null,0,0,0,0]
[null,{"$f":"'Yearly Class Attendance'!B32:B32","v":0},{"$f":"'Yearly Class Attendance'!C32:C32","v":0},null,null,null,null,null,null,null,null,null,null,null,null,null,null,null,null,null,null,null,null,null,null,null,null,null,null,null,null,null,null,null,0,0,0,0]
[null,{"$f":"'Yearly Class Attendance'!B33:C72","v":0},{"$f":"'Yearly Class Attendance'!C33:D72","v":0},null,null,null,null,null,null,null,null,null,null,null,null,null,null,null,null,null,null,null,null,null,null,null,null,null,null,null,null,null,null,null,0,0,0,0]
[null,{"$f":"'Yearly Class Attendance'!B34:B34","v":0},{"$f":"'Yearly Class Attendance'!C34:C34","v":0},null,null,null,null,null,null,null,null,null,null,null,null,null,null,null,null,null,null,null,null,null,null,null,null,null,null,null,null,null,null,null,0,0,0,0]
[null,{"$f":"'Yearly Class Attendance'!B35:C74","v":0},{"$f":"'Yearly Class Attendance'!C35:D74","v":0},null,null,null,null,null,null,null,null,null,null,null,null,null,null,null,null,null,null,null,null,null,null,null,null,null,null,null,null,null,null,null,0,0,0,0]
[null,{"$f":"'Yearly Class Attendance'!B36:B36","v":0},{"$f":"'Yearly Class Attendance'!C36:C36","v":0},null,null,null,null,null,null,null,null,null,null,null,null,null,null,null,null,null,null,null,null,null,null,null,null,null,null,null,null,null,null,null,0,0,0,0]
[null,{"$f":"'Yearly Class Attendance'!B37:C76","v":0},{"$f":"'Yearly Class Attendance'!C37:D76","v":0},null,null,null,null,null,null,null,null,null,null,null,null,null,null,null,null,null,null,null,null,null,null,null,null,null,null,null,null,null,null,null,0,0,0,0]
[null,{"$f":"'Yearly Class Attendance'!B38:B38","v":0},{"$f":"'Yearly Class Attendance'!C38:C38","v":0},null,null,null,null,null,null,null,null,null,null,null,null,null,null,null,null,null,null,null,null,null,null,null,null,null,null,null,null,null,null,null,0,0,0,0]
[null,{"$f":"'Yearly Class Attendance'!B39:C78","v":0},{"$f":"'Yearly Class Attendance'!C39:D78","v":0},null,null,null,null,null,null,null,null,null,null,null,null,null,null,null,null,null,null,null,null,null,null,null,null,null,null,null,null,null,null,null,0,0,0,0]
[null,{"$f":"'Yearly Class Attendance'!B40:B40","v":0},{"$f":"'Yearly Class Attendance'!C40:C40","v":0},null,null,null,null,null,null,null,null,null,null,null,null,null,null,null,null,null,null,null,null,null,null,null,null,null,null,null,null,null,null,null,0,0,0,0]
[null,{"$f":"'Yearly Class Attendance'!B41:C80","v":0},{"$f":"'Yearly Class Attendance'!C41:D80","v":0},null,null,null,null,null,null,null,null,null,null,null,null,null,null,null,null,null,null,null,null,null,null,null,null,null,null,null,null,null,null,null,{"$f":"COUNTIF(D41:AH41,\"*\"&AI$10&\"*\")","v":0},{"$f":"COUNTIF(E41:AI41,\"*\"&AJ$10&\"*\")","v":0},{"$f":"COUNTIF(F41:AJ41,\"*\"&AK$10&\"*\")","v":0},{"$f":"COUNTIF(G41:AK41,\"*\"&AL$10&\"*\")","v":0}]
[null,{"$f":"'Yearly Class Attendance'!B42:B42","v":0},{"$f":"'Yearly Class Attendance'!C42:C42","v":0},null,null,null,null,null,null,null,null,null,null,null,null,null,null,null,null,null,null,null,null,null,null,null,null,null,null,null,null,null,null,null,0,0,0,0]
[null,{"$f":"'Yearly Class Attendance'!B43:C82","v":0},{"$f":"'Yearly Class Attendance'!C43:D82","v":0},null,null,null,null,null,null,null,null,null,null,null,null,null,null,null,null,null,null,null,null,null,null,null,null,null,null,null,null,null,null,null,0,0,0,0]
[null,{"$f":"'Yearly Class Attendance'!B44:B44","v":0},{"$f":"'Yearly Class Attendance'!C44:C44","v":0},null,null,null,null,null,null,null,null,null,null,null,null,null,null,null,null,null,null,null,null,null,null,null,null,null,null,null,null,null,null,null,0,0,0,0]
[null,{"$f":"'Yearly Class Attendance'!B45:C84","v":0},{"$f":"'Yearly Class Attendance'!C45:D84","v":0},null,null,null,null,null,null,null,null,null,null,null,null,null,null,null,null,null,null,null,null,null,null,null,null,null,null,null,null,null,null,null,0,0,0,0]
[null,{"$f":"'Yearly Class Attendance'!B46:B46","v":0},{"$f":"'Yearly Class Attendance'!C46:C46","v":0},null,null,null,null,null,null,null,null,null,null,null,null,null,null,null,null,null,null,null,null,null,null,null,null,null,null,null,null,null,null,null,0,0,0,0]
[null,{"$f":"'Yearly Class Attendance'!B47:C86","v":0},{"$f":"'Yearly Class Attendance'!C47:D86","v":0},null,null,null,null,null,null,null,null,null,null,null,null,null,null,null,null,null,null,null,null,null,null,null,null,null,null,null,null,null,null,null,0,0,0,0]
[null,{"$f":"'Yearly Class Attendance'!B48:B48","v":0},{"$f":"'Yearly Class Attendance'!C48:C48","v":0},null,null,null,null,null,null,null,null,null,null,null,null,null,null,null,null,null,null,null,null,null,null,null,null,null,null,null,null,null,null,null,0,0,0,0]
[null,{"$f":"'Yearly Class Attendance'!B49:C88","v":0},{"$f":"'Yearly Class Attendance'!C49:D88","v":0},null,null,null,null,null,null,null,null,null,null,null,null,null,null,null,null,null,null,null,null,null,null,null,null,null,null,null,null,null,null,null,0,0,0,0]
[null,{"$f":"'Yearly Class Attendance'!B50:B50","v":0},{"$f":"'Yearly Class Attendance'!C50:C50","v":0},null,null,null,null,null,null,null,null,null,null,null,null,null,null,null,null,null,null,null,null,null,null,null,null,null,null,null,null,null,null,null,0,0,0,0]
[]
[null,null,"CLICK HERE TO CREATE YEARLY CLASS ATTENDANCE SHEET TEMPLATES IN SMARTSHEET"]

{"sheet":"MAY","index":10,"n_rows":52,"n_cols":38,"rows_kept":52,"cut":false,"hidden":false,"merged":[[2,1,2,2],[2,4,2,15],[2,17,2,28],[2,30,2,37],[3,1,3,2],[3,4,3,15],[3,17,3,28],[3,30,3,36],[6,30,6,36],[4,30,4,36],[5,1,5,2],[5,4,5,15],[5,17,5,20],[5,21,5,25],[5,26,5,28],[5,30,5,36],[6,1,6,2],[6,4,6,15],[6,17,6,20],[6,21,6,25],[6,26,6,28],[51,2,51,33],[8,1,9,1],[8,2,9,2],[8,3,8,33],[8,34,8,37]]}
[null,"YEARLY CLASS ATTENDANCE SHEET"]
[]
[null,"SCHOOL NAME",null,null,"COURSE TITLE",null,null,null,null,null,null,null,null,null,null,null,null,"TIME / CLASS PERIOD",null,null,null,null,null,null,null,null,null,null,null,null,"KEY"]
[null,{"$f":"'Yearly Class Attendance'!B4:C4","v":0},null,null,{"$f":"'Yearly Class Attendance'!E4:P4","v":0},null,null,null,null,null,null,null,null,null,null,null,null,{"$f":"'Yearly Class Attendance'!R4:AC4","v":0},null,null,null,null,null,null,null,null,null,null,null,null,"PRESENT",null,null,null,null,null,null,"P"]
[null,null,null,null,null,null,null,null,null,null,null,null,null,null,null,null,null,null,null,null,null,null,null,null,null,null,null,null,null,null,"UNEXCUSED ABSENCE",null,null,null,null,null,null,"U"]
[null,"PROFESSOR NAME",null,null,"LOCATION",null,null,null,null,null,null,null,null,null,null,null,null,"SEMESTER",null,null,null,"MONTH",null,null,null,null,"YEAR",null,null,null,"EXCUSED ABSENCE",null,null,null,null,null,null,"E"]
[null,{"$f":"'Yearly Class Attendance'!B7:C7","v":0},null,null,{"$f":"'Yearly Class Attendance'!E7:P7","v":0},null,null,null,null,null,null,null,null,null,null,null,null,null,null,null,null,"MAY",null,null,null,null,null,null,null,null,"TARDY",null,null,null,null,null,null,"T"]
[]
[null,"STUDENT NAME","STUDENT ID","DATE",null,null,null,null,null,null,null,null,null,null,null,null,null,null,null,null,null,null,null,null,null,null,null,null,null,null,null,null,null,null,"TOTAL"]
[null,null,null,1,{"$f":"D10+1","v":2},{"$f":"E10+1","v":3},4,5,6,7,8,9,10,11,12,13,14,15,16,17,18,19,20,21,22,23,24,25,26,27,28,29,30,31,"P","U","E","T"]
[null,{"$f":"'Yearly Class Attendance'!B11:C50","v":0},{"$f":"'Yearly Class Attendance'!C11:D50","v":0},null,null,null,null,null,null,null,null,null,null,null,null,null,null,null,null,null,null,null,null,null,null,null,null,null,null,null,null,null,null,null,{"$f":"COUNTIF(D11:AH11,\"*\"&AI$10&\"*\")","v":0},{"$f":"COUNTIF(E11:AI11,\"*\"&AJ$10&\"*\")","v":0},0,0]
[null,{"$f":"'Yearly Class Attendance'!B12:B12","v":0},{"$f":"'Yearly Class Attendance'!C12:C12","v":0},null,null,null,null,null,null,null,null,null,null,null,null,null,null,null,null,null,null,null,null,null,null,null,null,null,null,null,null,null,null,null,{"$f":"COUNTIF(D12:AH12,\"*\"&AI$10&\"*\")","v":0},0,0,0]
[null,{"$f":"'Yearly Class Attendance'!B13:C52","v":0},{"$f":"'Yearly Class Attendance'!C13:D52","v":0},null,null,null,null,null,null,null,null,null,null,null,null,null,null,null,null,null,null,null,null,null,null,null,null,null,null,null,null,null,null,null,{"$f":"COUNTIF(D13:AH13,\"*\"&AI$10&\"*\")","v":0},0,0,0]
[null,{"$f":"'Yearly Class Attendance'!B14:B14","v":0},{"$f":"'Yearly Class Attendance'!C14:C14","v":0},null,null,null,null,null,null,null,null,null,null,null,null,null,null,null,null,null,null,null,null,null,null,null,null,null,null,null,null,null,null,null,0,0,0,0]
[null,{"$f":"'Yearly Class Attendance'!B15:C54","v":0},{"$f":"'Yearly Class Attendance'!C15:D54","v":0},null,null,null,null,null,null,null,null,null,null,null,null,null,null,null,null,null,null,null,null,null,null,null,null,null,null,null,null,null,null,null,0,0,0,0]
[null,{"$f":"'Yearly Class Attendance'!B16:B16","v":0},{"$f":"'Yearly Class Attendance'!C16:C16","v":0},null,null,null,null,null,null,null,null,null,null,null,null,null,null,null,null,null,null,null,null,null,null,null,null,null,null,null,null,null,null,null,0,0,0,0]
[null,{"$f":"'Yearly Class Attendance'!B17:C56","v":0},{"$f":"'Yearly Class Attendance'!C17:D56","v":0},null,null,null,null,null,null,null,null,null,null,null,null,null,null,null,null,null,null,null,null,null,null,null,null,null,null,null,null,null,null,null,0,0,0,0]
[null,{"$f":"'Yearly Class Attendance'!B18:B18","v":0},{"$f":"'Yearly Class Attendance'!C18:C18","v":0},null,null,null,null,null,null,null,null,null,null,null,null,null,null,null,null,null,null,null,null,null,null,null,null,null,null,null,null,null,null,null,0,0,0,0]
[null,{"$f":"'Yearly Class Attendance'!B19:C58","v":0},{"$f":"'Yearly Class Attendance'!C19:D58","v":0},null,null,null,null,null,null,null,null,null,null,null,null,null,null,null,null,null,null,null,null,null,null,null,null,null,null,null,null,null,null,null,0,0,0,0]
[null,{"$f":"'Yearly Class Attendance'!B20:B20","v":0},{"$f":"'Yearly Class Attendance'!C20:C20","v":0},null,null,null,null,null,null,null,null,null,null,null,null,null,null,null,null,null,null,null,null,null,null,null,null,null,null,null,null,null,null,null,0,0,0,0]
[null,{"$f":"'Yearly Class Attendance'!B21:C60","v":0},{"$f":"'Yearly Class Attendance'!C21:D60","v":0},null,null,null,null,null,null,null,null,null,null,null,null,null,null,null,null,null,null,null,null,null,null,null,null,null,null,null,null,null,null,null,0,0,0,0]
[null,{"$f":"'Yearly Class Attendance'!B22:B22","v":0},{"$f":"'Yearly Class Attendance'!C22:C22","v":0},null,null,null,null,null,null,null,null,null,null,null,null,null,null,null,null,null,null,null,null,null,null,null,null,null,null,null,null,null,null,null,0,0,0,0]
[null,{"$f":"'Yearly Class Attendance'!B23:C62","v":0},{"$f":"'Yearly Class Attendance'!C23:D62","v":0},null,null,null,null,null,null,null,null,null,null,null,null,null,null,null,null,null,null,null,null,null,null,null,null,null,null,null,null,null,null,null,0,0,0,0]
[null,{"$f":"'Yearly Class Attendance'!B24:B24","v":0},{"$f":"'Yearly Class Attendance'!C24:C24","v":0},null,null,null,null,null,null,null,null,null,null,null,null,null,null,null,null,null,null,null,null,null,null,null,null,null,null,null,null,null,null,null,0,0,0,0]
[null,{"$f":"'Yearly Class Attendance'!B25:C64","v":0},{"$f":"'Yearly Class Attendance'!C25:D64","v":0},null,null,null,null,null,null,null,null,null,null,null,null,null,null,null,null,null,null,null,null,null,null,null,null,null,null,null,null,null,null,null,0,0,0,0]
[null,{"$f":"'Yearly Class Attendance'!B26:B26","v":0},{"$f":"'Yearly Class Attendance'!C26:C26","v":0},null,null,null,null,null,null,null,null,null,null,null,null,null,null,null,null,null,null,null,null,null,null,null,null,null,null,null,null,null,null,null,0,0,0,0]
[null,{"$f":"'Yearly Class Attendance'!B27:C66","v":0},{"$f":"'Yearly Class Attendance'!C27:D66","v":0},null,null,null,null,null,null,null,null,null,null,null,null,null,null,null,null,null,null,null,null,null,null,null,null,null,null,null,null,null,null,null,0,0,0,0]
[null,{"$f":"'Yearly Class Attendance'!B28:B28","v":0},{"$f":"'Yearly Class Attendance'!C28:C28","v":0},null,null,null,null,null,null,null,null,null,null,null,null,null,null,null,null,null,null,null,null,null,null,null,null,null,null,null,null,null,null,null,0,0,0,0]
[null,{"$f":"'Yearly Class Attendance'!B29:C68","v":0},{"$f":"'Yearly Class Attendance'!C29:D68","v":0},null,null,null,null,null,null,null,null,null,null,null,null,null,null,null,null,null,null,null,null,null,null,null,null,null,null,null,null,null,null,null,{"$f":"COUNTIF(D29:AH29,\"*\"&AI$10&\"*\")","v":0},0,0,0]
[null,{"$f":"'Yearly Class Attendance'!B30:B30","v":0},{"$f":"'Yearly Class Attendance'!C30:C30","v":0},null,null,null,null,null,null,null,null,null,null,null,null,null,null,null,null,null,null,null,null,null,null,null,null,null,null,null,null,null,null,null,0,0,0,0]
[null,{"$f":"'Yearly Class Attendance'!B31:C70","v":0},{"$f":"'Yearly Class Attendance'!C31:D70","v":0},null,null,null,null,null,null,null,null,null,null,null,null,null,null,null,null,null,null,null,null,null,null,null,null,null,null,null,null,null,null,null,0,0,0,0]
[null,{"$f":"'Yearly Class Attendance'!B32:B32","v":0},{"$f":"'Yearly Class Attendance'!C32:C32","v":0},null,null,null,null,null,null,null,null,null,null,null,null,null,null,null,null,null,null,null,null,null,null,null,null,null,null,null,null,null,null,null,0,0,0,0]
[null,{"$f":"'Yearly Class Attendance'!B33:C72","v":0},{"$f":"'Yearly Class Attendance'!C33:D72","v":0},null,null,null,null,null,null,null,null,null,null,null,null,null,null,null,null,null,null,null,null,null,null,null,null,null,null,null,null,null,null,null,0,0,0,0]
[null,{"$f":"'Yearly Class Attendance'!B34:B34","v":0},{"$f":"'Yearly Class Attendance'!C34:C34","v":0},null,null,null,null,null,null,null,null,null,null,null,null,null,null,null,null,null,null,null,null,null,null,null,null,null,null,null,null,null,null,null,0,0,0,0]
[null,{"$f":"'Yearly Class Attendance'!B35:C74","v":0},{"$f":"'Yearly Class Attendance'!C35:D74","v":0},null,null,null,null,null,null,null,null,null,null,null,null,null,null,null,null,null,null,null,null,null,null,null,null,null,null,null,null,null,null,null,0,0,0,0]
[null,{"$f":"'Yearly Class Attendance'!B36:B36","v":0},{"$f":"'Yearly Class Attendance'!C36:C36","v":0},null,null,null,null,null,null,null,null,null,null,null,null,null,null,null,null,null,null,null,null,null,null,null,null,null,null,null,null,null,null,null,0,0,0,0]
[null,{"$f":"'Yearly Class Attendance'!B37:C76","v":0},{"$f":"'Yearly Class Attendance'!C37:D76","v":0},null,null,null,null,null,null,null,null,null,null,null,null,null,null,null,null,null,null,null,null,null,null,null,null,null,null,null,null,null,null,null,0,0,0,0]
[null,{"$f":"'Yearly Class Attendance'!B38:B38","v":0},{"$f":"'Yearly Class Attendance'!C38:C38","v":0},null,null,null,null,null,null,null,null,null,null,null,null,null,null,null,null,null,null,null,null,null,null,null,null,null,null,null,null,null,null,null,0,0,0,0]
[null,{"$f":"'Yearly Class Attendance'!B39:C78","v":0},{"$f":"'Yearly Class Attendance'!C39:D78","v":0},null,null,null,null,null,null,null,null,null,null,null,null,null,null,null,null,null,null,null,null,null,null,null,null,null,null,null,null,null,null,null,0,0,0,0]
[null,{"$f":"'Yearly Class Attendance'!B40:B40","v":0},{"$f":"'Yearly Class Attendance'!C40:C40","v":0},null,null,null,null,null,null,null,null,null,null,null,null,null,null,null,null,null,null,null,null,null,null,null,null,null,null,null,null,null,null,null,0,0,0,0]
[null,{"$f":"'Yearly Class Attendance'!B41:C80","v":0},{"$f":"'Yearly Class Attendance'!C41:D80","v":0},null,null,null,null,null,null,null,null,null,null,null,null,null,null,null,null,null,null,null,null,null,null,null,null,null,null,null,null,null,null,null,{"$f":"COUNTIF(D41:AH41,\"*\"&AI$10&\"*\")","v":0},{"$f":"COUNTIF(E41:AI41,\"*\"&AJ$10&\"*\")","v":0},{"$f":"COUNTIF(F41:AJ41,\"*\"&AK$10&\"*\")","v":0},{"$f":"COUNTIF(G41:AK41,\"*\"&AL$10&\"*\")","v":0}]
[null,{"$f":"'Yearly Class Attendance'!B42:B42","v":0},{"$f":"'Yearly Class Attendance'!C42:C42","v":0},null,null,null,null,null,null,null,null,null,null,null,null,null,null,null,null,null,null,null,null,null,null,null,null,null,null,null,null,null,null,null,0,0,0,0]
[null,{"$f":"'Yearly Class Attendance'!B43:C82","v":0},{"$f":"'Yearly Class Attendance'!C43:D82","v":0},null,null,null,null,null,null,null,null,null,null,null,null,null,null,null,null,null,null,null,null,null,null,null,null,null,null,null,null,null,null,null,0,0,0,0]
[null,{"$f":"'Yearly Class Attendance'!B44:B44","v":0},{"$f":"'Yearly Class Attendance'!C44:C44","v":0},null,null,null,null,null,null,null,null,null,null,null,null,null,null,null,null,null,null,null,null,null,null,null,null,null,null,null,null,null,null,null,0,0,0,0]
[null,{"$f":"'Yearly Class Attendance'!B45:C84","v":0},{"$f":"'Yearly Class Attendance'!C45:D84","v":0},null,null,null,null,null,null,null,null,null,null,null,null,null,null,null,null,null,null,null,null,null,null,null,null,null,null,null,null,null,null,null,0,0,0,0]
[null,{"$f":"'Yearly Class Attendance'!B46:B46","v":0},{"$f":"'Yearly Class Attendance'!C46:C46","v":0},null,null,null,null,null,null,null,null,null,null,null,null,null,null,null,null,null,null,null,null,null,null,null,null,null,null,null,null,null,null,null,0,0,0,0]
[null,{"$f":"'Yearly Class Attendance'!B47:C86","v":0},{"$f":"'Yearly Class Attendance'!C47:D86","v":0},null,null,null,null,null,null,null,null,null,null,null,null,null,null,null,null,null,null,null,null,null,null,null,null,null,null,null,null,null,null,null,0,0,0,0]
[null,{"$f":"'Yearly Class Attendance'!B48:B48","v":0},{"$f":"'Yearly Class Attendance'!C48:C48","v":0},null,null,null,null,null,null,null,null,null,null,null,null,null,null,null,null,null,null,null,null,null,null,null,null,null,null,null,null,null,null,null,0,0,0,0]
[null,{"$f":"'Yearly Class Attendance'!B49:C88","v":0},{"$f":"'Yearly Class Attendance'!C49:D88","v":0},null,null,null,null,null,null,null,null,null,null,null,null,null,null,null,null,null,null,null,null,null,null,null,null,null,null,null,null,null,null,null,0,0,0,0]
[null,{"$f":"'Yearly Class Attendance'!B50:B50","v":0},{"$f":"'Yearly Class Attendance'!C50:C50","v":0},null,null,null,null,null,null,null,null,null,null,null,null,null,null,null,null,null,null,null,null,null,null,null,null,null,null,null,null,null,null,null,0,0,0,0]
[]
[null,null,"CLICK HERE TO CREATE YEARLY CLASS ATTENDANCE SHEET TEMPLATES IN SMARTSHEET"]

{"sheet":"JUNE","index":11,"n_rows":52,"n_cols":38,"rows_kept":52,"cut":false,"hidden":false,"merged":[[2,1,2,2],[2,4,2,15],[2,17,2,28],[2,30,2,37],[3,1,3,2],[3,4,3,15],[3,17,3,28],[3,30,3,36],[6,30,6,36],[4,30,4,36],[5,1,5,2],[5,4,5,15],[5,17,5,20],[5,21,5,25],[5,26,5,28],[5,30,5,36],[6,1,6,2],[6,4,6,15],[6,17,6,20],[6,21,6,25],[6,26,6,28],[51,2,51,33],[8,1,9,1],[8,2,9,2],[8,3,8,33],[8,34,8,37]]}
[null,"YEARLY CLASS ATTENDANCE SHEET"]
[]
[null,"SCHOOL NAME",null,null,"COURSE TITLE",null,null,null,null,null,null,null,null,null,null,null,null,"TIME / CLASS PERIOD",null,null,null,null,null,null,null,null,null,null,null,null,"KEY"]
[null,{"$f":"'Yearly Class Attendance'!B4:C4","v":0},null,null,{"$f":"'Yearly Class Attendance'!E4:P4","v":0},null,null,null,null,null,null,null,null,null,null,null,null,{"$f":"'Yearly Class Attendance'!R4:AC4","v":0},null,null,null,null,null,null,null,null,null,null,null,null,"PRESENT",null,null,null,null,null,null,"P"]
[null,null,null,null,null,null,null,null,null,null,null,null,null,null,null,null,null,null,null,null,null,null,null,null,null,null,null,null,null,null,"UNEXCUSED ABSENCE",null,null,null,null,null,null,"U"]
[null,"PROFESSOR NAME",null,null,"LOCATION",null,null,null,null,null,null,null,null,null,null,null,null,"SEMESTER",null,null,null,"MONTH",null,null,null,null,"YEAR",null,null,null,"EXCUSED ABSENCE",null,null,null,null,null,null,"E"]
[null,{"$f":"'Yearly Class Attendance'!B7:C7","v":0},null,null,{"$f":"'Yearly Class Attendance'!E7:P7","v":0},null,null,null,null,null,null,null,null,null,null,null,null,null,null,null,null,"JUNE",null,null,null,null,null,null,null,null,"TARDY",null,null,null,null,null,null,"T"]
[]
[null,"STUDENT NAME","STUDENT ID","DATE",null,null,null,null,null,null,null,null,null,null,null,null,null,null,null,null,null,null,null,null,null,null,null,null,null,null,null,null,null,null,"TOTAL"]
[null,null,null,1,{"$f":"D10+1","v":2},{"$f":"E10+1","v":3},4,5,6,7,8,9,10,11,12,13,14,15,16,17,18,19,20,21,22,23,24,25,26,27,28,29,30,31,"P","U","E","T"]
[null,{"$f":"'Yearly Class Attendance'!B11:C50","v":0},{"$f":"'Yearly Class Attendance'!C11:D50","v":0},null,null,null,null,null,null,null,null,null,null,null,null,null,null,null,null,null,null,null,null,null,null,null,null,null,null,null,null,null,null,null,{"$f":"COUNTIF(D11:AH11,\"*\"&AI$10&\"*\")","v":0},{"$f":"COUNTIF(E11:AI11,\"*\"&AJ$10&\"*\")","v":0},0,0]
[null,{"$f":"'Yearly Class Attendance'!B12:B12","v":0},{"$f":"'Yearly Class Attendance'!C12:C12","v":0},null,null,null,null,null,null,null,null,null,null,null,null,null,null,null,null,null,null,null,null,null,null,null,null,null,null,null,null,null,null,null,{"$f":"COUNTIF(D12:AH12,\"*\"&AI$10&\"*\")","v":0},0,0,0]
[null,{"$f":"'Yearly Class Attendance'!B13:C52","v":0},{"$f":"'Yearly Class Attendance'!C13:D52","v":0},null,null,null,null,null,null,null,null,null,null,null,null,null,null,null,null,null,null,null,null,null,null,null,null,null,null,null,null,null,null,null,{"$f":"COUNTIF(D13:AH13,\"*\"&AI$10&\"*\")","v":0},0,0,0]
[null,{"$f":"'Yearly Class Attendance'!B14:B14","v":0},{"$f":"'Yearly Class Attendance'!C14:C14","v":0},null,null,null,null,null,null,null,null,null,null,null,null,null,null,null,null,null,null,null,null,null,null,null,null,null,null,null,null,null,null,null,0,0,0,0]
[null,{"$f":"'Yearly Class Attendance'!B15:C54","v":0},{"$f":"'Yearly Class Attendance'!C15:D54","v":0},null,null,null,null,null,null,null,null,null,null,null,null,null,null,null,null,null,null,null,null,null,null,null,null,null,null,null,null,null,null,null,0,0,0,0]
[null,{"$f":"'Yearly Class Attendance'!B16:B16","v":0},{"$f":"'Yearly Class Attendance'!C16:C16","v":0},null,null,null,null,null,null,null,null,null,null,null,null,null,null,null,null,null,null,null,null,null,null,null,null,null,null,null,null,null,null,null,0,0,0,0]
[null,{"$f":"'Yearly Class Attendance'!B17:C56","v":0},{"$f":"'Yearly Class Attendance'!C17:D56","v":0},null,null,null,null,null,null,null,null,null,null,null,null,null,null,null,null,null,null,null,null,null,null,null,null,null,null,null,null,null,null,null,0,0,0,0]
[null,{"$f":"'Yearly Class Attendance'!B18:B18","v":0},{"$f":"'Yearly Class Attendance'!C18:C18","v":0},null,null,null,null,null,null,null,null,null,null,null,null,null,null,null,null,null,null,null,null,null,null,null,null,null,null,null,null,null,null,null,0,0,0,0]
[null,{"$f":"'Yearly Class Attendance'!B19:C58","v":0},{"$f":"'Yearly Class Attendance'!C19:D58","v":0},null,null,null,null,null,null,null,null,null,null,null,null,null,null,null,null,null,null,null,null,null,null,null,null,null,null,null,null,null,null,null,0,0,0,0]
[null,{"$f":"'Yearly Class Attendance'!B20:B20","v":0},{"$f":"'Yearly Class Attendance'!C20:C20","v":0},null,null,null,null,null,null,null,null,null,null,null,null,null,null,null,null,null,null,null,null,null,null,null,null,null,null,null,null,null,null,null,0,0,0,0]
[null,{"$f":"'Yearly Class Attendance'!B21:C60","v":0},{"$f":"'Yearly Class Attendance'!C21:D60","v":0},null,null,null,null,null,null,null,null,null,null,null,null,null,null,null,null,null,null,null,null,null,null,null,null,null,null,null,null,null,null,null,0,0,0,0]
[null,{"$f":"'Yearly Class Attendance'!B22:B22","v":0},{"$f":"'Yearly Class Attendance'!C22:C22","v":0},null,null,null,null,null,null,null,null,null,null,null,null,null,null,null,null,null,null,null,null,null,null,null,null,null,null,null,null,null,null,null,0,0,0,0]
[null,{"$f":"'Yearly Class Attendance'!B23:C62","v":0},{"$f":"'Yearly Class Attendance'!C23:D62","v":0},null,null,null,null,null,null,null,null,null,null,null,null,null,null,null,null,null,null,null,null,null,null,null,null,null,null,null,null,null,null,null,0,0,0,0]
[null,{"$f":"'Yearly Class Attendance'!B24:B24","v":0},{"$f":"'Yearly Class Attendance'!C24:C24","v":0},null,null,null,null,null,null,null,null,null,null,null,null,null,null,null,null,null,null,null,null,null,null,null,null,null,null,null,null,null,null,null,0,0,0,0]
[null,{"$f":"'Yearly Class Attendance'!B25:C64","v":0},{"$f":"'Yearly Class Attendance'!C25:D64","v":0},null,null,null,null,null,null,null,null,null,null,null,null,null,null,null,null,null,null,null,null,null,null,null,null,null,null,null,null,null,null,null,0,0,0,0]
[null,{"$f":"'Yearly Class Attendance'!B26:B26","v":0},{"$f":"'Yearly Class Attendance'!C26:C26","v":0},null,null,null,null,null,null,null,null,null,null,null,null,null,null,null,null,null,null,null,null,null,null,null,null,null,null,null,null,null,null,null,0,0,0,0]
[null,{"$f":"'Yearly Class Attendance'!B27:C66","v":0},{"$f":"'Yearly Class Attendance'!C27:D66","v":0},null,null,null,null,null,null,null,null,null,null,null,null,null,null,null,null,null,null,null,null,null,null,null,null,null,null,null,null,null,null,null,0,0,0,0]
[null,{"$f":"'Yearly Class Attendance'!B28:B28","v":0},{"$f":"'Yearly Class Attendance'!C28:C28","v":0},null,null,null,null,null,null,null,null,null,null,null,null,null,null,null,null,null,null,null,null,null,null,null,null,null,null,null,null,null,null,null,0,0,0,0]
[null,{"$f":"'Yearly Class Attendance'!B29:C68","v":0},{"$f":"'Yearly Class Attendance'!C29:D68","v":0},null,null,null,null,null,null,null,null,null,null,null,null,null,null,null,null,null,null,null,null,null,null,null,null,null,null,null,null,null,null,null,{"$f":"COUNTIF(D29:AH29,\"*\"&AI$10&\"*\")","v":0},0,0,0]
[null,{"$f":"'Yearly Class Attendance'!B30:B30","v":0},{"$f":"'Yearly Class Attendance'!C30:C30","v":0},null,null,null,null,null,null,null,null,null,null,null,null,null,null,null,null,null,null,null,null,null,null,null,null,null,null,null,null,null,null,null,0,0,0,0]
[null,{"$f":"'Yearly Class Attendance'!B31:C70","v":0},{"$f":"'Yearly Class Attendance'!C31:D70","v":0},null,null,null,null,null,null,null,null,null,null,null,null,null,null,null,null,null,null,null,null,null,null,null,null,null,null,null,null,null,null,null,0,0,0,0]
[null,{"$f":"'Yearly Class Attendance'!B32:B32","v":0},{"$f":"'Yearly Class Attendance'!C32:C32","v":0},null,null,null,null,null,null,null,null,null,null,null,null,null,null,null,null,null,null,null,null,null,null,null,null,null,null,null,null,null,null,null,0,0,0,0]
[null,{"$f":"'Yearly Class Attendance'!B33:C72","v":0},{"$f":"'Yearly Class Attendance'!C33:D72","v":0},null,null,null,null,null,null,null,null,null,null,null,null,null,null,null,null,null,null,null,null,null,null,null,null,null,null,null,null,null,null,null,0,0,0,0]
[null,{"$f":"'Yearly Class Attendance'!B34:B34","v":0},{"$f":"'Yearly Class Attendance'!C34:C34","v":0},null,null,null,null,null,null,null,null,null,null,null,null,null,null,null,null,null,null,null,null,null,null,null,null,null,null,null,null,null,null,null,0,0,0,0]
[null,{"$f":"'Yearly Class Attendance'!B35:C74","v":0},{"$f":"'Yearly Class Attendance'!C35:D74","v":0},null,null,null,null,null,null,null,null,null,null,null,null,null,null,null,null,null,null,null,null,null,null,null,null,null,null,null,null,null,null,null,0,0,0,0]
[null,{"$f":"'Yearly Class Attendance'!B36:B36","v":0},{"$f":"'Yearly Class Attendance'!C36:C36","v":0},null,null,null,null,null,null,null,null,null,null,null,null,null,null,null,null,null,null,null,null,null,null,null,null,null,null,null,null,null,null,null,0,0,0,0]
[null,{"$f":"'Yearly Class Attendance'!B37:C76","v":0},{"$f":"'Yearly Class Attendance'!C37:D76","v":0},null,null,null,null,null,null,null,null,null,null,null,null,null,null,null,null,null,null,null,null,null,null,null,null,null,null,null,null,null,null,null,0,0,0,0]
[null,{"$f":"'Yearly Class Attendance'!B38:B38","v":0},{"$f":"'Yearly Class Attendance'!C38:C38","v":0},null,null,null,null,null,null,null,null,null,null,null,null,null,null,null,null,null,null,null,null,null,null,null,null,null,null,null,null,null,null,null,0,0,0,0]
[null,{"$f":"'Yearly Class Attendance'!B39:C78","v":0},{"$f":"'Yearly Class Attendance'!C39:D78","v":0},null,null,null,null,null,null,null,null,null,null,null,null,null,null,null,null,null,null,null,null,null,null,null,null,null,null,null,null,null,null,null,0,0,0,0]
[null,{"$f":"'Yearly Class Attendance'!B40:B40","v":0},{"$f":"'Yearly Class Attendance'!C40:C40","v":0},null,null,null,null,null,null,null,null,null,null,null,null,null,null,null,null,null,null,null,null,null,null,null,null,null,null,null,null,null,null,null,0,0,0,0]
[null,{"$f":"'Yearly Class Attendance'!B41:C80","v":0},{"$f":"'Yearly Class Attendance'!C41:D80","v":0},null,null,null,null,null,null,null,null,null,null,null,null,null,null,null,null,null,null,null,null,null,null,null,null,null,null,null,null,null,null,null,{"$f":"COUNTIF(D41:AH41,\"*\"&AI$10&\"*\")","v":0},{"$f":"COUNTIF(E41:AI41,\"*\"&AJ$10&\"*\")","v":0},{"$f":"COUNTIF(F41:AJ41,\"*\"&AK$10&\"*\")","v":0},{"$f":"COUNTIF(G41:AK41,\"*\"&AL$10&\"*\")","v":0}]
[null,{"$f":"'Yearly Class Attendance'!B42:B42","v":0},{"$f":"'Yearly Class Attendance'!C42:C42","v":0},null,null,null,null,null,null,null,null,null,null,null,null,null,null,null,null,null,null,null,null,null,null,null,null,null,null,null,null,null,null,null,0,0,0,0]
[null,{"$f":"'Yearly Class Attendance'!B43:C82","v":0},{"$f":"'Yearly Class Attendance'!C43:D82","v":0},null,null,null,null,null,null,null,null,null,null,null,null,null,null,null,null,null,null,null,null,null,null,null,null,null,null,null,null,null,null,null,0,0,0,0]
[null,{"$f":"'Yearly Class Attendance'!B44:B44","v":0},{"$f":"'Yearly Class Attendance'!C44:C44","v":0},null,null,null,null,null,null,null,null,null,null,null,null,null,null,null,null,null,null,null,null,null,null,null,null,null,null,null,null,null,null,null,0,0,0,0]
[null,{"$f":"'Yearly Class Attendance'!B45:C84","v":0},{"$f":"'Yearly Class Attendance'!C45:D84","v":0},null,null,null,null,null,null,null,null,null,null,null,null,null,null,null,null,null,null,null,null,null,null,null,null,null,null,null,null,null,null,null,0,0,0,0]
[null,{"$f":"'Yearly Class Attendance'!B46:B46","v":0},{"$f":"'Yearly Class Attendance'!C46:C46","v":0},null,null,null,null,null,null,null,null,null,null,null,null,null,null,null,null,null,null,null,null,null,null,null,null,null,null,null,null,null,null,null,0,0,0,0]
[null,{"$f":"'Yearly Class Attendance'!B47:C86","v":0},{"$f":"'Yearly Class Attendance'!C47:D86","v":0},null,null,null,null,null,null,null,null,null,null,null,null,null,null,null,null,null,null,null,null,null,null,null,null,null,null,null,null,null,null,null,0,0,0,0]
[null,{"$f":"'Yearly Class Attendance'!B48:B48","v":0},{"$f":"'Yearly Class Attendance'!C48:C48","v":0},null,null,null,null,null,null,null,null,null,null,null,null,null,null,null,null,null,null,null,null,null,null,null,null,null,null,null,null,null,null,null,0,0,0,0]
[null,{"$f":"'Yearly Class Attendance'!B49:C88","v":0},{"$f":"'Yearly Class Attendance'!C49:D88","v":0},null,null,null,null,null,null,null,null,null,null,null,null,null,null,null,null,null,null,null,null,null,null,null,null,null,null,null,null,null,null,null,0,0,0,0]
[null,{"$f":"'Yearly Class Attendance'!B50:B50","v":0},{"$f":"'Yearly Class Attendance'!C50:C50","v":0},null,null,null,null,null,null,null,null,null,null,null,null,null,null,null,null,null,null,null,null,null,null,null,null,null,null,null,null,null,null,null,0,0,0,0]
[]
[null,null,"CLICK HERE TO CREATE YEARLY CLASS ATTENDANCE SHEET TEMPLATES IN SMARTSHEET"]

{"sheet":"JULY","index":12,"n_rows":52,"n_cols":38,"rows_kept":52,"cut":false,"hidden":false,"merged":[[2,1,2,2],[2,4,2,15],[2,17,2,28],[2,30,2,37],[3,1,3,2],[3,4,3,15],[3,17,3,28],[3,30,3,36],[6,30,6,36],[4,30,4,36],[5,1,5,2],[5,4,5,15],[5,17,5,20],[5,21,5,25],[5,26,5,28],[5,30,5,36],[6,1,6,2],[6,4,6,15],[6,17,6,20],[6,21,6,25],[6,26,6,28],[51,2,51,33],[8,1,9,1],[8,2,9,2],[8,3,8,33],[8,34,8,37]]}
[null,"YEARLY CLASS ATTENDANCE SHEET"]
[]
[null,"SCHOOL NAME",null,null,"COURSE TITLE",null,null,null,null,null,null,null,null,null,null,null,null,"TIME / CLASS PERIOD",null,null,null,null,null,null,null,null,null,null,null,null,"KEY"]
[null,{"$f":"'Yearly Class Attendance'!B4:C4","v":0},null,null,{"$f":"'Yearly Class Attendance'!E4:P4","v":0},null,null,null,null,null,null,null,null,null,null,null,null,{"$f":"'Yearly Class Attendance'!R4:AC4","v":0},null,null,null,null,null,null,null,null,null,null,null,null,"PRESENT",null,null,null,null,null,null,"P"]
[null,null,null,null,null,null,null,null,null,null,null,null,null,null,null,null,null,null,null,null,null,null,null,null,null,null,null,null,null,null,"UNEXCUSED ABSENCE",null,null,null,null,null,null,"U"]
[null,"PROFESSOR NAME",null,null,"LOCATION",null,null,null,null,null,null,null,null,null,null,null,null,"SEMESTER",null,null,null,"MONTH",null,null,null,null,"YEAR",null,null,null,"EXCUSED ABSENCE",null,null,null,null,null,null,"E"]
[null,{"$f":"'Yearly Class Attendance'!B7:C7","v":0},null,null,{"$f":"'Yearly Class Attendance'!E7:P7","v":0},null,null,null,null,null,null,null,null,null,null,null,null,null,null,null,null,"JULY",null,null,null,null,null,null,null,null,"TARDY",null,null,null,null,null,null,"T"]
[]
[null,"STUDENT NAME","STUDENT ID","DATE",null,null,null,null,null,null,null,null,null,null,null,null,null,null,null,null,null,null,null,null,null,null,null,null,null,null,null,null,null,null,"TOTAL"]
[null,null,null,1,{"$f":"D10+1","v":2},{"$f":"E10+1","v":3},4,5,6,7,8,9,10,11,12,13,14,15,16,17,18,19,20,21,22,23,24,25,26,27,28,29,30,31,"P","U","E","T"]
[null,{"$f":"'Yearly Class Attendance'!B11:C50","v":0},{"$f":"'Yearly Class Attendance'!C11:D50","v":0},null,null,null,null,null,null,null,null,null,null,null,null,null,null,null,null,null,null,null,null,null,null,null,null,null,null,null,null,null,null,null,{"$f":"COUNTIF(D11:AH11,\"*\"&AI$10&\"*\")","v":0},{"$f":"COUNTIF(E11:AI11,\"*\"&AJ$10&\"*\")","v":0},0,0]
[null,{"$f":"'Yearly Class Attendance'!B12:B12","v":0},{"$f":"'Yearly Class Attendance'!C12:C12","v":0},null,null,null,null,null,null,null,null,null,null,null,null,null,null,null,null,null,null,null,null,null,null,null,null,null,null,null,null,null,null,null,{"$f":"COUNTIF(D12:AH12,\"*\"&AI$10&\"*\")","v":0},0,0,0]
[null,{"$f":"'Yearly Class Attendance'!B13:C52","v":0},{"$f":"'Yearly Class Attendance'!C13:D52","v":0},null,null,null,null,null,null,null,null,null,null,null,null,null,null,null,null,null,null,null,null,null,null,null,null,null,null,null,null,null,null,null,{"$f":"COUNTIF(D13:AH13,\"*\"&AI$10&\"*\")","v":0},0,0,0]
[null,{"$f":"'Yearly Class Attendance'!B14:B14","v":0},{"$f":"'Yearly Class Attendance'!C14:C14","v":0},null,null,null,null,null,null,null,null,null,null,null,null,null,null,null,null,null,null,null,null,null,null,null,null,null,null,null,null,null,null,null,0,0,0,0]
[null,{"$f":"'Yearly Class Attendance'!B15:C54","v":0},{"$f":"'Yearly Class Attendance'!C15:D54","v":0},null,null,null,null,null,null,null,null,null,null,null,null,null,null,null,null,null,null,null,null,null,null,null,null,null,null,null,null,null,null,null,0,0,0,0]
[null,{"$f":"'Yearly Class Attendance'!B16:B16","v":0},{"$f":"'Yearly Class Attendance'!C16:C16","v":0},null,null,null,null,null,null,null,null,null,null,null,null,null,null,null,null,null,null,null,null,null,null,null,null,null,null,null,null,null,null,null,0,0,0,0]
[null,{"$f":"'Yearly Class Attendance'!B17:C56","v":0},{"$f":"'Yearly Class Attendance'!C17:D56","v":0},null,null,null,null,null,null,null,null,null,null,null,null,null,null,null,null,null,null,null,null,null,null,null,null,null,null,null,null,null,null,null,0,0,0,0]
[null,{"$f":"'Yearly Class Attendance'!B18:B18","v":0},{"$f":"'Yearly Class Attendance'!C18:C18","v":0},null,null,null,null,null,null,null,null,null,null,null,null,null,null,null,null,null,null,null,null,null,null,null,null,null,null,null,null,null,null,null,0,0,0,0]
[null,{"$f":"'Yearly Class Attendance'!B19:C58","v":0},{"$f":"'Yearly Class Attendance'!C19:D58","v":0},null,null,null,null,null,null,null,null,null,null,null,null,null,null,null,null,null,null,null,null,null,null,null,null,null,null,null,null,null,null,null,0,0,0,0]
[null,{"$f":"'Yearly Class Attendance'!B20:B20","v":0},{"$f":"'Yearly Class Attendance'!C20:C20","v":0},null,null,null,null,null,null,null,null,null,null,null,null,null,null,null,null,null,null,null,null,null,null,null,null,null,null,null,null,null,null,null,0,0,0,0]
[null,{"$f":"'Yearly Class Attendance'!B21:C60","v":0},{"$f":"'Yearly Class Attendance'!C21:D60","v":0},null,null,null,null,null,null,null,null,null,null,null,null,null,null,null,null,null,null,null,null,null,null,null,null,null,null,null,null,null,null,null,0,0,0,0]
[null,{"$f":"'Yearly Class Attendance'!B22:B22","v":0},{"$f":"'Yearly Class Attendance'!C22:C22","v":0},null,null,null,null,null,null,null,null,null,null,null,null,null,null,null,null,null,null,null,null,null,null,null,null,null,null,null,null,null,null,null,0,0,0,0]
[null,{"$f":"'Yearly Class Attendance'!B23:C62","v":0},{"$f":"'Yearly Class Attendance'!C23:D62","v":0},null,null,null,null,null,null,null,null,null,null,null,null,null,null,null,null,null,null,null,null,null,null,null,null,null,null,null,null,null,null,null,0,0,0,0]
[null,{"$f":"'Yearly Class Attendance'!B24:B24","v":0},{"$f":"'Yearly Class Attendance'!C24:C24","v":0},null,null,null,null,null,null,null,null,null,null,null,null,null,null,null,null,null,null,null,null,null,null,null,null,null,null,null,null,null,null,null,0,0,0,0]
[null,{"$f":"'Yearly Class Attendance'!B25:C64","v":0},{"$f":"'Yearly Class Attendance'!C25:D64","v":0},null,null,null,null,null,null,null,null,null,null,null,null,null,null,null,null,null,null,null,null,null,null,null,null,null,null,null,null,null,null,null,0,0,0,0]
[null,{"$f":"'Yearly Class Attendance'!B26:B26","v":0},{"$f":"'Yearly Class Attendance'!C26:C26","v":0},null,null,null,null,null,null,null,null,null,null,null,null,null,null,null,null,null,null,null,null,null,null,null,null,null,null,null,null,null,null,null,0,0,0,0]
[null,{"$f":"'Yearly Class Attendance'!B27:C66","v":0},{"$f":"'Yearly Class Attendance'!C27:D66","v":0},null,null,null,null,null,null,null,null,null,null,null,null,null,null,null,null,null,null,null,null,null,null,null,null,null,null,null,null,null,null,null,0,0,0,0]
[null,{"$f":"'Yearly Class Attendance'!B28:B28","v":0},{"$f":"'Yearly Class Attendance'!C28:C28","v":0},null,null,null,null,null,null,null,null,null,null,null,null,null,null,null,null,null,null,null,null,null,null,null,null,null,null,null,null,null,null,null,0,0,0,0]
[null,{"$f":"'Yearly Class Attendance'!B29:C68","v":0},{"$f":"'Yearly Class Attendance'!C29:D68","v":0},null,null,null,null,null,null,null,null,null,null,null,null,null,null,null,null,null,null,null,null,null,null,null,null,null,null,null,null,null,null,null,{"$f":"COUNTIF(D29:AH29,\"*\"&AI$10&\"*\")","v":0},0,0,0]
[null,{"$f":"'Yearly Class Attendance'!B30:B30","v":0},{"$f":"'Yearly Class Attendance'!C30:C30","v":0},null,null,null,null,null,null,null,null,null,null,null,null,null,null,null,null,null,null,null,null,null,null,null,null,null,null,null,null,null,null,null,0,0,0,0]
[null,{"$f":"'Yearly Class Attendance'!B31:C70","v":0},{"$f":"'Yearly Class Attendance'!C31:D70","v":0},null,null,null,null,null,null,null,null,null,null,null,null,null,null,null,null,null,null,null,null,null,null,null,null,null,null,null,null,null,null,null,0,0,0,0]
[null,{"$f":"'Yearly Class Attendance'!B32:B32","v":0},{"$f":"'Yearly Class Attendance'!C32:C32","v":0},null,null,null,null,null,null,null,null,null,null,null,null,null,null,null,null,null,null,null,null,null,null,null,null,null,null,null,null,null,null,null,0,0,0,0]
[null,{"$f":"'Yearly Class Attendance'!B33:C72","v":0},{"$f":"'Yearly Class Attendance'!C33:D72","v":0},null,null,null,null,null,null,null,null,null,null,null,null,null,null,null,null,null,null,null,null,null,null,null,null,null,null,null,null,null,null,null,0,0,0,0]
[null,{"$f":"'Yearly Class Attendance'!B34:B34","v":0},{"$f":"'Yearly Class Attendance'!C34:C34","v":0},null,null,null,null,null,null,null,null,null,null,null,null,null,null,null,null,null,null,null,null,null,null,null,null,null,null,null,null,null,null,null,0,0,0,0]
[null,{"$f":"'Yearly Class Attendance'!B35:C74","v":0},{"$f":"'Yearly Class Attendance'!C35:D74","v":0},null,null,null,null,null,null,null,null,null,null,null,null,null,null,null,null,null,null,null,null,null,null,null,null,null,null,null,null,null,null,null,0,0,0,0]
[null,{"$f":"'Yearly Class Attendance'!B36:B36","v":0},{"$f":"'Yearly Class Attendance'!C36:C36","v":0},null,null,null,null,null,null,null,null,null,null,null,null,null,null,null,null,null,null,null,null,null,null,null,null,null,null,null,null,null,null,null,0,0,0,0]
[null,{"$f":"'Yearly Class Attendance'!B37:C76","v":0},{"$f":"'Yearly Class Attendance'!C37:D76","v":0},null,null,null,null,null,null,null,null,null,null,null,null,null,null,null,null,null,null,null,null,null,null,null,null,null,null,null,null,null,null,null,0,0,0,0]
[null,{"$f":"'Yearly Class Attendance'!B38:B38","v":0},{"$f":"'Yearly Class Attendance'!C38:C38","v":0},null,null,null,null,null,null,null,null,null,null,null,null,null,null,null,null,null,null,null,null,null,null,null,null,null,null,null,null,null,null,null,0,0,0,0]
[null,{"$f":"'Yearly Class Attendance'!B39:C78","v":0},{"$f":"'Yearly Class Attendance'!C39:D78","v":0},null,null,null,null,null,null,null,null,null,null,null,null,null,null,null,null,null,null,null,null,null,null,null,null,null,null,null,null,null,null,null,0,0,0,0]
[null,{"$f":"'Yearly Class Attendance'!B40:B40","v":0},{"$f":"'Yearly Class Attendance'!C40:C40","v":0},null,null,null,null,null,null,null,null,null,null,null,null,null,null,null,null,null,null,null,null,null,null,null,null,null,null,null,null,null,null,null,0,0,0,0]
[null,{"$f":"'Yearly Class Attendance'!B41:C80","v":0},{"$f":"'Yearly Class Attendance'!C41:D80","v":0},null,null,null,null,null,null,null,null,null,null,null,null,null,null,null,null,null,null,null,null,null,null,null,null,null,null,null,null,null,null,null,{"$f":"COUNTIF(D41:AH41,\"*\"&AI$10&\"*\")","v":0},{"$f":"COUNTIF(E41:AI41,\"*\"&AJ$10&\"*\")","v":0},{"$f":"COUNTIF(F41:AJ41,\"*\"&AK$10&\"*\")","v":0},{"$f":"COUNTIF(G41:AK41,\"*\"&AL$10&\"*\")","v":0}]
[null,{"$f":"'Yearly Class Attendance'!B42:B42","v":0},{"$f":"'Yearly Class Attendance'!C42:C42","v":0},null,null,null,null,null,null,null,null,null,null,null,null,null,null,null,null,null,null,null,null,null,null,null,null,null,null,null,null,null,null,null,0,0,0,0]
[null,{"$f":"'Yearly Class Attendance'!B43:C82","v":0},{"$f":"'Yearly Class Attendance'!C43:D82","v":0},null,null,null,null,null,null,null,null,null,null,null,null,null,null,null,null,null,null,null,null,null,null,null,null,null,null,null,null,null,null,null,0,0,0,0]
[null,{"$f":"'Yearly Class Attendance'!B44:B44","v":0},{"$f":"'Yearly Class Attendance'!C44:C44","v":0},null,null,null,null,null,null,null,null,null,null,null,null,null,null,null,null,null,null,null,null,null,null,null,null,null,null,null,null,null,null,null,0,0,0,0]
[null,{"$f":"'Yearly Class Attendance'!B45:C84","v":0},{"$f":"'Yearly Class Attendance'!C45:D84","v":0},null,null,null,null,null,null,null,null,null,null,null,null,null,null,null,null,null,null,null,null,null,null,null,null,null,null,null,null,null,null,null,0,0,0,0]
[null,{"$f":"'Yearly Class Attendance'!B46:B46","v":0},{"$f":"'Yearly Class Attendance'!C46:C46","v":0},null,null,null,null,null,null,null,null,null,null,null,null,null,null,null,null,null,null,null,null,null,null,null,null,null,null,null,null,null,null,null,0,0,0,0]
[null,{"$f":"'Yearly Class Attendance'!B47:C86","v":0},{"$f":"'Yearly Class Attendance'!C47:D86","v":0},null,null,null,null,null,null,null,null,null,null,null,null,null,null,null,null,null,null,null,null,null,null,null,null,null,null,null,null,null,null,null,0,0,0,0]
[null,{"$f":"'Yearly Class Attendance'!B48:B48","v":0},{"$f":"'Yearly Class Attendance'!C48:C48","v":0},null,null,null,null,null,null,null,null,null,null,null,null,null,null,null,null,null,null,null,null,null,null,null,null,null,null,null,null,null,null,null,0,0,0,0]
[null,{"$f":"'Yearly Class Attendance'!B49:C88","v":0},{"$f":"'Yearly Class Attendance'!C49:D88","v":0},null,null,null,null,null,null,null,null,null,null,null,null,null,null,null,null,null,null,null,null,null,null,null,null,null,null,null,null,null,null,null,0,0,0,0]
[null,{"$f":"'Yearly Class Attendance'!B50:B50","v":0},{"$f":"'Yearly Class Attendance'!C50:C50","v":0},null,null,null,null,null,null,null,null,null,null,null,null,null,null,null,null,null,null,null,null,null,null,null,null,null,null,null,null,null,null,null,0,0,0,0]
[]
[null,null,"CLICK HERE TO CREATE YEARLY CLASS ATTENDANCE SHEET TEMPLATES IN SMARTSHEET"]

{"sheet":"Sheet1","index":13,"n_rows":0,"n_cols":0,"rows_kept":0,"cut":false,"hidden":false,"merged":[]}